Workbook

Sheet Varianti
A1: Uzvārds | B1: Vārds | C1: variants
A2: Balodis | B2: Ernests | C2: 23
A3: Blite | B3: Roberts | C3: 27
A4: Cironoka | B4: Gabriēla Marija | C4: 15
A5: Greiers | B5: Erlends | C5: 25
A6: Grundāns | B6: Maksis | C6: 22
A7: Gustiņš | B7: Mariuss Kristians | C7: 17
A8: Ivanova | B8: Laura | C8: 20
A9: Jākobsons | B9: Eduards | C9: 5
A10: Jansons | B10: Roberts | C10: 1
A11: Jēkabsons | B11: Ervīns | C11: 10
A12: Kalniņš | B12: Edijs | C12: 11
A13: Kalvaitis | B13: Markuss | C13: 12
A14: Kapicka | B14: Ruslana | C14: 7
A15: Kokina | B15: Laura | C15: 18
A16: Kriščuns | B16: Haralds | C16: 14
A17: Ķirkums | B17: Niks Matīss | C17: 2
A18: Ļisnojs | B18: Maksims | C18: 4
A19: Mālnieks | B19: Kārlis | C19: 21
A20: Ozols | B20: Toms Renarts | C20: 6
A21: Paulovičs | B21: Dāvids | C21: 9
A22: Reimanis | B22: Armands | C22: 8
A23: Riters | B23: Ralfs | C23: 19
A24: Saulītis | B24: Roberts | C24: 28
A25: Sluckis | B25: Rihards | C25: 13
A26: Šeluha | B26: Ralfs | C26: 3
A27: Teclavs | B27: Vladislavs | C27: 29
A28: Vinbergs | B28: Ralfs | C28: 16
A32: brīvi
A33: 18
A34: 25
A35: 26
A36: 29
A37: 30

Sheet 01
D1: IKDIENAS UZTURĒŠANA | G1: Līguma NR. PIL/2-4/22/73
A3: Jelgavas valstspilsētas luksoforu objektu uzturēšana
A5: N.p.k | B5: Pas. Nr | C5: Darbu vieta | D5: Paredzamie darbi | E5: Kods | F5: Paredzamais izpildes datums | G5: Apjoms | H5: Daudzums | I5: Kopējais apjoms | J5: Vienības cena, EUR | K5: Izmaksas, EUR
A6: Pēc CSNg Zemgales prospekta un Sporta ielas krustojumā nepieciešams veikt luksofora atjaunošanas darbus.
A7: 1 | B7: 103213 | C7: Zemgales prospekta – Sporta ielas krustojums luksofors uz Sporta ielas, remontdarbi pēc 07.12.2022. CSNg | D7: Luksofora balsta demontāža | E7: 1.2 | F7: 2022-12-12 | I7: 1 | J7: 75.00 | K7: =I7*J7 -> 75.00
A8: 2 | D8: Luksofora balsta pamata demontāža | E8: 1.4 | F8: 2022-12-12 | I8: 1 | J8: 50.00 | K8: 50.00
A9: 3 | D9: Signālgalvas demontāža | E9: 1.6 | F9: 2022-12-12 | I9: 2 | J9: 50.00 | K9: 100.00
A10: 4 | D10: Gājēju izsaukuma pogas demontāža | E10: 1.7 | F10: 2022-12-12 | I10: 1 | J10: 40.00 | K10: 40.00
A11: 5 | D11: Signālkabeļa spaiļu komplekta nomaiņa balstā, konsolē, vārtos | E11: 2.16 | F11: 2022-12-12 | I11: 1 | J11: 40.00 | K11: 40.00
A12: 6 | D12: Luksofora balsta montāža | E12: 3.1 | F12: 2022-12-12 | I12: 1 | J12: 80.00 | K12: 80.00
A13: 7 | D13: Luksofora balsta pamata montāža | E13: 3.3 | F13: 2022-12-12 | I13: 1 | J13: 35.00 | K13: 35.00
A14: 8 | D14: Datorizētās akustiskās gājēju izsaukuma pogas montāža | E14: 3.8 | F14: 2022-12-12 | I14: 1 | J14: 40.00 | K14: 40.00
A15: 9 | D15: Transporta signālgalvas montāža uz balsta | E15: 5.1 | F15: 2022-12-12 | I15: 1 | J15: 70.00 | K15: 70.00
A16: 10 | D16: Gājēju signālgalvas ar laika atskaites displeju montāža | E16: 5.6 | F16: 2022-12-12 | I16: 1 | J16: 70.00 | K16: 70.00
A17: 11 | D17: Signālkabeļa spaiļu komplekts (līdz 10 gab.) | E17: 9.11 | F17: 2022-12-12 | I17: 1 | J17: 10.00 | K17: 10.00
A18: 12 | D18: Luksofora balsts h=4m Technopali STP45-114-2 | E18: 10.1 | F18: 2022-12-12 | I18: 1 | J18: 184.60 | K18: 184.60
A19: 13 | D19: Luksofora balsta pamatne P-1 | E19: 10.4 | F19: 2022-12-12 | I19: 1 | J19: 48.57 | K19: 48.57
J20: Kopā: | K20: =SUM(K6:K19) -> 843.17
A21: Sagatavoja: | J21: Kopā, ar PVN 21% | K21: =K20*1.21 -> 1020.24
A22: xxxx xxxxxxx
A23: dd.mm.yyyy

Sheet 02
A1: Uzdevuma numurs | B1: Uzdevums | C1: Atbilžu variants | D1: Pareizā atbilde
A2: 1. | B2: Programmēšanas valodas | D2: Kopā
A3: 1.1. | B3: Pamatjēdzieni
A4: 1.1.1 | B4: Kādam mērķim programmēšanas valodās izmanto ciklus? | C4: a) lai izvadītu informāciju uz ekrāna
C5: b) lai kādas darbības atkārtotu vairākas reizes | D5: x
C6: c) lai izvēlētos vienu variantu no vairākiem
C7: d) lai salīdzinātu divas vērtības
A8: 1.1.2 | B8: Kas ir viendimensiju masīva elementa indekss? | C8: a) masīva elementa vērtība
C9: b) masīva elementa numurs | D9: x
C10: c) masīva rindas numurs
C11: d) masīva kolonas numurs
A12: 1.1.3 | B12: Kā izpaužas rekursija? | C12: a) apakšprogramma izsauc pati sevi | D12: x
C13: b) apakšprogramma izsauc apakšprogrammu, kas uzrakstīta augstāk
C14: c) apakšprogramma izsauc apakšprogrammu, kas uzrakstīta zemāk
C15: d) apakšprogramma izsauc standartprocedūru
A16: 1.1.4 | B16: Kas ir „klase”? | C16: a) programmēšanas valodas operators
C17: b) sakārtots vienāda tipa elementu kopums
C18: c) datu tips, kurš ietver datu elementus un to apstrādāšanas metodes | D18: x
C19: d) funkcijas tips, kurš apstrādā dažādu tipu datu laukus
A20: 1.1.5 | B20: Kas ir programmas mazākā izpildāmā vienība? | C20: a) operators | D20: x
C21: b) operands
C22: c) teikums
C23: d) parametrs
A24: 1.1.6 | B24: Kādiem mērķiem programmēšanas valodās izmanto sazarojumus? | C24: a) lai izvadītu informāciju uz ekrāna
C25: b) lai kādas darbības atkārtotu vairākas reizes
C26: c) lai izvēlētos vienu no programmas izpildes ceļiem | D26: x
C27: d) lai noteiktā programmas vietā izpildītu nevis vienu, bet vairākus operatorus
A28: 1.1.7 | B28: Kas programmēšanas valodās pēc noklusējuma kalpo par standarta izvades plūsmu? | C28: a) RAM
C29: b) disks
C30: c) monitors | D30: x
C31: d) printeris
A32: 1.1.8 | B32: Cik baitu atmiņā C++ un Pascal valodās aizņem char tipa mainīgais? | C32: a) 2
C33: b) 0
C34: c) 1 | D34: x
C35: d) 4
A36: 1.1.9 | B36: Kas ir dinamiskie mainīgie? | C36: a) mainīgie, kuriem vieta atmiņā tiek izdalīta un atbrīvota programmas darbības laikā | D36: x
C37: b) mainīgie, kuru vērtības var mainīt programmas darbības laikā
C38: c) mainīgie, kuru vērtības nedrīkst mainīt programmas darbības laikā
C39: d) mainīgie, kuriem vieta atmiņā tiek izdalīta pirms programmas kompilēšanas
A40: 1.1.10 | B40: Kas ir translators? | C40: a) tulkotājs no augstā līmeņa programmēšanas valodas uz zemā līmeņa valodu | D40: x
C41: b) tulkotājs no vienas mašīnas komandu valodas uz citas mašīnas valodu
C42: c) tulkotājs no mašīnvalodas uz augstā līmeņa valodu
C43: d) jebkura programma mašīnvalodā
A44: 1.1.11 | B44: Kuras bāzes klases metodes ir obligāti jāpārdefinē atvasinātajā klasē? | C44: a) statiskās
C45: b) abstraktās | D45: x
C46: c) publiskās
C47: d) aizsargātās
A48: 1.1.12 | B48: Kas ir programmēšanas valodās netipiskie vai ārkārtējie apstākļi, kas prasa īpašu apstrādi? | C48: a) izņēmumi (exception) | D48: x
C49: b) funkcijas (function)
C50: c) operācijas (operation)
C51: d) metodes (member function)
A52: 1.1.13 | B52: Kas OOP ļauj veidot jaunas klases uz jau esošo klašu bāzes? | C52: a) mantošana | D52: x
C53: b) tipu abstrakcija
C54: c) pārslogošana
C55: d) pārdefinēšana
A56: 1.1.14 | B56: Kuras datu struktūras neļauj apvienot zem viena nosaukuma vairākus datus? | C56: a) ieraksti
C57: b) masīvi
C58: c) dinamiskie masīvi
C59: d) decimālās konstantes | D59: x
A60: 1.1.15 | B60: Kuri klases atribūti pieder pašai klasei (visiem klases objektiem), nevis tikai konkrētajam objektam? | C60: a) statiskie | D60: x
C61: b) abstraktie
C62: c) publiskie
C63: d) dinamiskie
A64: 1.1.16 | B64: Cik konstruktoru un destruktoru var būt klasei OOP valodās C++, C#, Object Pascal un JAVA? | C64: a) viens konstruktors un viens destruktors
C65: b) viens konstruktors un vairāki destruktori
C66: c) vairāki konstruktori un viens destruktors | D66: x
C67: d) vairāki konstruktori un vairāki destruktori
A68: 1.1.17
A72: 1.1.18 | B72: Kas ir kopīgs programmēšanas valodu operatoriem for, while un repeat (vai do...while)? | C72: a) visiem jāpalielina skaitītājs par 1
C73: b) visi ir cikla operatori | D73: x
C74: c) visi ir nosacījuma operatori
C75: d) visiem skaitītājs palielinās automātiski
A76: 1.1.19 | B76: Kuras datu struktūras realizācijai programmēšanas valodās ir paredzētas konstrukcijas struct vai record? | C76: a) rakstzīmju virknei
C77: b) ierakstam | D77: x
C78: c) reālam skaitlim
C79: d) masīvam
A80: 1.1.21 | B80: Kas ir masīvs programmēšanās valodās Pascal, JAVA, C# vai C++? | C80: a) ierobežots vienāda tipa elementu kopums | D80: x
C81: b) sakārtots dažādu tipu elementu kopums
C82: c) ierobežots dažādu tipu elementu kopums
C83: d) elementu kopa, kas ir izvēlēta no noteikta vērtību komplekta
A84: 1.1.22 | B84: Kurš no šiem cikliem ir cikls ar pēcnosacījumu? | C84: a) while
C85: b) repeat (vai do...while) | D85: x
C86: c) if
C87: d) for
A88: 1.1.23 | B88: Kurš ir pareizs apgalvojums par if operatora nosacījuma daļu? | C88: a) to var nenorādīt, ja nav else daļas
C89: b) tas ir obligāti jānorāda | D89: x
C90: c) to var nenorādīt, ja ir else daļa
C91: d) to var nenoradīt, ja atļauj programmēšanas valoda
A92: 1.1.24 | B92: Kurš operators programmēšanas valodās Pascal, C++, C# vai Java pārtrauc cikla izpildi un nodod vadību nākamajai komandai aiz cikla? | C92: a) break | D92: x
C93: b) continue
C94: c) gotoxy
C95: d) default
A96: 1.1.25 | B96: Kura metode izveido klases objektu? | C96: a) iekļautā funkcija
C97: b) ārējā funkcija
C98: c) konstruktors | D98: x
C99: d) destruktors
A100: 1.1.26 | B100: Kad klases metodes ir pārslogotas (overload) nepareizi? | C100: a) kad tās atšķiras tikai pēc atgriežamās vērtības tipa | D100: x
C101: b) kad tās atšķiras tikai pēc parametru tipa
C102: c) kad tās atšķiras tikai pēc parametru skaita
C103: d) ja tās atšķiras pēc parametru tipa un skaita
A104: 1.1.27 | B104: Cik reizes izpildīsies šis cikls for (int i = 0; i <= 5; i += 3)? | C104: a) 5 reizes
C105: b) nevienu reizi
C106: c) 2 reizes | D106: x
C107: d) 3 reizes
A108: 1.1.28 | B108: Kura nav salīdzināšanas operācijas zīme programmēšanas valodās? | C108: a) >
C109: b) <
C110: c) >=
C111: d) -> | D111: x
A112: 1.1.29 | B112: Kuru simbolu lieto C++, C#, Delfi vai Java programmas rindas komentāram? | C112: a) // | D112: x
C113: b) #
C114: c) !!
C115: d) <
A116: 1.1.30 | B116: Ko JAVA / PHP / C# / C++ valodas metodēm dod atslēgvārds "static"? | C116: a) metodes atgriežamā vērtība kļūst nemainīga
C117: b) metodes neveic nekādu darbību
C118: c) metodes pieder klasei un var tikt izsauktas bez klases objekta | D118: x
C119: d) metodes var izsaukt tikai no klases un tās objektiem
A120: 1.1.31 | B120: Kura no norādītām izteiksmēm nav C++, C# vai Java programmu operācija? | C120: a) a:= 5; | D120: x
C121: b) a += 5;
C122: c) a %= 5;
C123: d) a *= 5;
A124: 1.1.32 | B124: Cik reizes izpildīsies cikls dotajā programmas fragmentā (ja c un sum ir veselā tipa mainīgie)? Pascal: sum:= 0; c := 5; WHILE c > 5 do Begin sum := sum + c; c := c + 2; end; C++ / C# / Java: c = 5; sum = 0; while (c > 5){ sum = sum + c;c+= 2; } | C124: 0 | D124: x
C125: 1
C126: 2
C127: 5
A128: 1.1.33 | B128: Dots programmas fragments C++/Java/C#:void myAge( ){int age = 20;} Pascal:procedure myAge; var age: integer; begin age := 20; end; Kas ir age? | C128: a) lokālais mainīgais | D128: x
C129: b) globālais mainīgais
C130: c) funkcijas/procedūras parametrs
C131: d) funkcijas/procedūras ārējais mainīgais
A132: 1.1.34 | B132: Kurā vietā C++/Java/C# funkcijā (metodē) var aprakstīt mainīgo? | C132: a) tikai funkcijas sākumā
C133: b) uzreiz pēc funkcijas nosaukuma
C134: c) tikai funkcijas beigās
C135: d) jebkurā funkcijas vietā pirms mainīgā izmantošanas | D135: x
A136: 1.1.35 | B136: Kurš ir pareizs funkcijas (metodes) „vards” apraksts (prototips) C++/Java/C# valodā? | C136: a) int vards: function;
C137: b) function vards : int;
C138: c) int vards ( ); | D138: x
C139: d) int function vards ( );
A140: 1.1.36 | B140: Kā izskatīsies skaitlis 999000 zinātniskā (scientific) formā? | C140: a) 1,00E+6
C141: b) 9,99E+05 | D141: x
C142: c) 9,99E-05
C143: d) 9,99E^05
A144: 1.1.37 | B144: Kurš nav C++/Java/C# valodas nosacījuma operators vai operācija? | C144: a) ?
C145: b) if
C146: c) switch
C147: d) confirm | D147: x
A148: 1.1.38 | B148: Kurš nav C++/Java/C# valodas cikla operators? | C148: a) if | D148: x
C149: b) for
C150: c) while
C151: d) do while
A152: 1.1.39 | B152: Kāda būs x mainīgā vērtība, ja ir dots šāds C++/Java/C# valodas programmas fragments? int a = 4; int b = 3; double x = a/b; | C152: a) būs kompilācijas kļūda
C153: b) 1.333333333
C154: c) 2
C155: d) 1 | D155: x
A156: 1.1.40 | B156: Kurš nav C++/Java/C# rezervētais vārds? | C156: a) break
C157: b) insert | D157: x
C158: c) else
C159: d) continue
A160: 1.1.41 | B160: Ko dara dotais kods, ja m ir masīvs ar 10 elementiem, bet mainīgie sm un i ir veselie? C++/Java/C#: sm = 0; i = 0; while (i < 10) {sm = sm + m[i]; i++;} Pascal: sm := 0; i := 0; while (i < 10) begin sm := sm + m[i]; inc(i); end; | C160: a) saskaita masīva elementu skaitu
C161: b) nosaka i robežas
C162: c) saskaita sm un m
C163: d) sasummē masīva m elementu vērtības | D163: x
A164: 1.1.42 | B164: Kā sauc globālā redzamības apgabala sadalījumu, kas nodrošina nosaukumu sadursmes (name collision) neiestāšanos? | C164: a) nosaukumu telpa | D164: x
C165: b) nosaukumu apgabals
C166: c) identifikātoru ierobežojums
C167: d) klase
A168: 1.1.43 | B168: Kur apraksta funkciju /metožu parametrus? | C168: a) pirms funkcijas / metodes kā globālos mainīgos
C169: b) pie funkcijas / metodes vārda iekavās | D169: x
C170: c) funkcijas / metodes ķermenī, kā lokālos mainīgos
C171: d) jebkurā programmas vietā
A172: 1.1.44 | B172: Ko nodrošina atslēgas vārda this izmantošana valodās C++/Java/C#? | C172: a) piekļuvi klases sākuma adresei
C173: b) klases atribūta izveidošanu
C174: c) piekļuvi klases eksemplāram | D174: x
C175: d) objekta atribūta izveidošanu
A176: 1.1.45 | B176: Tiek veidota klase MyClass. Kā var izveidot šīs klases konstruktoru C++ / Java / C# valodā? | C176: a) void MyClass( ){..} / public void MyClass( ){...}
C177: b) MyConstructor( ){…} / public MyConstructor( ) {…}
C178: c) MyClass( ){…} / public MyClass( ){…} | D178: x
C179: d) constructor MyClass( ){…} / public constructor MyClass( ){…}
A180: 1.1.46 | B180: Kā izpaužas polimorfisms? | C180: a) ļauj vienu uzdevumu risināt dažādos veidos
C181: b) apvieno datus un kodu, kas manipulē ar šiem datiem
C182: c) aizsargā datus un metodes no ārējās iejaukšanās vai nepareizās izmantošanas
C183: d) ļauj vienu vārdu izmantot vairāku līdzīgu, bet tehniski atšķirīgu uzdevumu risināšanai | D183: x
A184: 1.1.47 | B184: Kas C++ / Java / C# valodās ir "void"? | C184: a) konstante
C185: b) datu tips | D185: x
C186: c) tukšums
C187: d) operators
A188: 1.1.48 | B188: Kas objektu orientētajā programmēšanā ir metode? | C188: a) Funkcija, kas definēta klasē | D188: x
C189: b) Funkcija, kas izsauc klasi
C190: c) Funkcija, kas izveido klasi
C191: d) Funkcija, kas izveido objektu
A192: 1.1.49 | B192: Kas ir klases atribūts (lauks)? | C192: a) Klases instance
C193: b) Mainīgais, kas apraksta klases datus | D193: x
C194: c) Metodes arguments
C195: d) Lokālais metodes mainīgais
A196: 1.1.50 | B196: Kādam ir jābūt funkcijas atgriežamās vērtības tipam valodās C++/Java/C#, lai varētu neizmantot operatoru "return"? | C196: a) int
C197: b) void | D197: x
C198: c) double
C199: d) bool
A200: 1.1.51 | B200: Kurš C++ / Java / C# valodas operators izsauc objekta mansObjekts metodi manaMetode bez argumentiem? | C200: a) manaMetode.mansObjekts;
C201: b) mansObjekts.manaMetode;
C202: c) mansObjekts.manaMetode(); | D202: x
C203: d) manaMetode().mansObjekts;
... 189 more rows

Sheet 03
A1: Nekustamā īpašuma nodokļa pārskats dd.mm.2024
A4: Pašvaldība: Jelgavas valstspilsēta
A5: Maksātājs: xxxxxxx xxxxxx
A6: Konta Nr. | B6: Īpašums | C6: Kadastra Nr. | D6: Banka | F6: Pamatparāds | G6: Nokavējuma nauda | H6: Kopsumma | I6: Valūta | J6: NĪN tips | K6: Kārtējie termiņi
D7: Nosaukums | E7: Konts | K7: Datums | L7: Summa
A8: 109911 | B8: Alkšņu iela 36 | C8: 0900 007 0251 | D8: Luminor Bank AS Latvijas filiāle | E8: LV05RIKO0002013095917 | F8: 0.00 | G8: 0.00 | H8: 59.30 | I8: EUR | J8: NĪN par zemi | K8: 02.04.2024 | L8: 14.83
D9: Swedbank | E9: LV93HABA0551000076525 | K9: 15.05.2024 | L9: 14.83
D10: SEB banka | E10: LV96UNLA0008001130601 | K10: 15.08.2024 | L10: 14.82
D11: Citadele banka | E11: LV37PARX0005697570001 | K11: 15.11.2024 | L11: 14.82
A12: 109912 | B12: Alkšņu iela 36 | C12: 0900 007 0251 | D12: Citadele banka | E12: LV37PARX0005697570001 | F12: 0.00 | G12: 0.00 | H12: 122.24 | I12: EUR | J12: NĪN par ēkām | K12: 02.04.2024 | L12: 30.56
D13: Luminor Bank AS Latvijas filiāle | E13: LV05RIKO0002013095917 | K13: 15.05.2024 | L13: 30.56
D14: Swedbank | E14: LV93HABA0551000076525 | K14: 15.08.2024 | L14: 30.56
D15: SEB banka | E15: LV96UNLA0008001130601 | K15: 15.11.2024 | L15: 30.56
A16: Kopā jāmaksā: | H16: 181.54 | I16: EUR

Sheet 04
A1: Nr. | B1: Luksoforu objekts | C1: Kontrolieru tips | D1: Signālgrupu skaits | E1: Signālgalvas
A3: 1 | B3: Lielās ielas -J.Čakstes ielas krust. | C3: EC-2, Nīderlande | D3: 8 | E3: “VILATI”, Ungārija
A4: 2 | B4: Lielās ielas -Akadēmijas ielas krust. | C4: EC-2, Nīderlande | D4: 8 | E4: “ VILATI”, Ungārija
A5: 3 | B5: Lielās ielas - Katoļu ielas krust. | C5: EC-2, Nīderlande | D5: 4 | E5: “ VILATI”, Ungārija
A6: 4 | B6: Lielās ielas - Pasta ielas krust. | C6: EC-2, Nīderlande | D6: 8 | E6: “ VILATI”, Ungārija
A7: 5 | B7: Lielās ielas -J.Mātera ielas krust. | C7: EC-2, Nīderlande | D7: 8 | E7: “ VILATI”, Ungārija
A8: 6 | B8: Lielās ielas - Pētera ielas krust. | C8: EC-2, Nīderlande | D8: 8 | E8: “ VILATI”,
E9: LED, Ungārija
A10: 7 | B10: Lielās ielas -Dambja ielas krust. | C10: EC-2, Nīderlande | D10: 8 | E10: “ SWARCO” LED, Austrija
A11: 8 | B11: Raiņa ielas - Akadēmijas ielas krust. | C11: EC-2, Nīderlande | D11: 8 | E11: “ Peek Traffic”,
E12: LED 42V, Nīderlande
A13: 9 | B13: Raiņa ielas - Katoļu ielas krust. | C13: EC-2, Nīderlande | D13: 8 | E13: “ Peek Traffic”,
E14: LED 42V, Nīderlande
A15: 10 | B15: Raiņa ielas - Pasta ielas krust. | C15: EC-2, Nīderlande | D15: 8 | E15: “ Peek Traffic”,
E16: LED 42V, Nīderlande
A17: 11 | B17: Raiņa ielas - J.Mātera ielas krust. | C17: EC-2, Nīderlande | D17: 8 | E17: “ Peek Traffic”,
E18: LED 42V, Nīderlande
A19: 12 | B19: Svētes ielas - J.Mātera ielas krust. | C19: EC-2, Nīderlande | D19: 16 | E19: “ VILATI”, Ungārija
A20: 13 | B20: Pasta ielas - Driksas ielas krust. | C20: EC-2, Nīderlande | D20: 4 | E20: “ VILATI”, Ungārija
A21: 14 | B21: Pasta ielas - S.Edžus ielas krust. | C21: EC-2, Nīderlande | D21: 8 | E21: “ VILATI”, Ungārija
A22: 15 | B22: Uzvaras ielas - Kr.Barona ielas krust. | C22: EC-2, Nīderlande | D22: 4 | E22: “ VILATI”, Ungārija
A23: 16 | B23: Dobeles ielas - Pulkv.Brieža ielas krust. | C23: EC-2, Nīderlande | D23: 8 | E23: “ VILATI”,
E24: LED, Ungārija
A25: 17 | B25: Lielās ielas, gājēju pāreja „IKI” | C25: VTC2000 mini, Ungārija | D25: 6 | E25: “ SWARCO” LED, Austrija
A26: 18 | B26: Dobeles šosejas - Māras ielas krust. | C26: VTC2000, Ungārija | D26: 12 | E26: “ “ SWARCO” LED, Austrija
A27: 19 | B27: Dobeles šosejas - Satiksmes ielas krust. | C27: VTC2000, Ungārija | D27: 12 | E27: “ SWARCO” LED, Austrija
A28: 20 | B28: Dobeles šosejas - Atmodas ielas krust. | C28: VTC2000, Ungārija | D28: 12 | E28: “ SWARCO” LED, Austrija
A29: 21 | B29: Dobeles šosejas - 4.līnijas krust. | C29: EC-2, Nīderlande | D29: 8 | E29: “ Peek Traffic”,
E30: LED 42V, Nīderlande
A31: 22 | B31: Rūpniecības ielas - J.Mātera ielas krust. | C31: VSF12, Ungārija | D31: 12 | E31: “ VILATI”, Ungārija
A32: 23 | B32: Rūpniecības ielas - Pulkv.O.Kalpaka ielas krust. | C32: VSF12, Ungārija | D32: 12 | E32: “ VILATI”, Ungārija
A33: 24 | B33: Rūpniecības ielas gājēju pāreja | C33: VTC1040, Ungārija | D33: 4 | E33: “ VILATI”, Ungārija
A34: 25 | B34: Rūpniecības ielas - Tērvetes ielas krust. | C34: VSF12, Ungārija | D34: 12 | E34: “ VILATI”, Ungārija
A35: 26 | B35: Rūpniecības ielas - Filozofu ielas krust. | C35: VTC2000, Ungārija | D35: 12 | E35: “ SWARCO”, Austrija
A36: 27 | B36: Rūpniecības ielas - Dambja ielas krust. | C36: VTC2000, Ungārija | D36: 12 | E36: “ SWARCO”, Austrija
A37: 28 | B37: Pasta ielas - Stacijas ielas krust. gājēju pāreja | C37: VTC1040, Ungārija | D37: 4 | E37: “ VILATI”, Ungārija
A38: 29 | B38: Stacijas ielas gājēju pāreja | C38: GE "Fanuc", Japāna | D38: 4 | E38: “ VILATI”, Ungārija
A39: 30 | B39: Zemgales prospekta gājēju pāreja | C39: VTC1040, Ungārija | D39: 4 | E39: “ VILATI”,
E40: LED, Ungārija
A41: 31 | B41: Lietuvas šosejas - Miera ielas krust. | C41: VSF12, Ungārija | D41: 12 | E41: “ VILATI”, Ungārija
A42: 32 | B42: Meiju ceļa - Satiksmes ielas krust. | C42: VSF12, Ungārija | D42: 12 | E42: “ VILATI”,
E43: LED, Ungārija
A44: 33 | B44: Tērvetes ielas - Raiņa ielas krust. | C44: EC-2, Nīderlande | D44: 8 | E44: “ Peek Traffic”,
E45: LED 42V, Nīderlande
A46: 34 | B46: Raiņa ielas - Pulkv.O.Kalpaka krust. | C46: EC-2, Nīderlande | D46: 8 | E46: “ Peek Traffic”,
E47: LED 42V, Nīderlande
A48: 35 | B48: Rīgas ielas - Brīvības bulvāra krust. | C48: VTC2000, Ungārija | D48: 12 | E48: “ VILATI”,
E49: LED, Ungārija
A50: 36 | B50: Rīgas ielas - Kalnciema ceļa krust. | C50: VTC2000, Ungārija | D50: 12 | E50: “ VILATI”,
E51: LED, Ungārija
A52: 37 | B52: Brīvības bulvāra - Garozas ielas krust. | C52: VTC2000, Ungārija | D52: 12 | E52: “ VILATI”,
E53: LED, Ungārija
A54: 38 | B54: Brīvības bulvāra - Lāčplēša ielas krust. | C54: VTC2000, Ungārija | D54: 12 | E54: “ VILATI”,
E55: LED, Ungārija
A56: 39 | B56: Rīgas ielas - Izstādes ielas krust. | C56: VTC1080, | D56: 8 | E56: “ VILATI”, Ungārija
C57: Ungārija
A58: 40 | B58: Rīgas ielas - Institūta ielas krust. | C58: VTC2012, | D58: 12 | E58: “ VILATI”,
C59: Ungārija | E59: LED, Ungārija
A60: 41 | B60: Rīgas ielas - Strazdu ielas krust. | C60: VSF12, | D60: 12 | E60: “ VILATI”, Ungārija
C61: Ungārija
A62: 42 | B62: Rīgas ielas - Pērnavas ielas krust. | C62: VSF12, | D62: 12 | E62: “ VILATI”, Ungārija
C63: Ungārija
A64: 43 | B64: Rīgas ielas - Loka maģistrāles krust. | C64: VSF12, | D64: 12 | E64: “ VILATI”, Ungārija
C65: Ungārija
A66: 44 | B66: Rīgas ielas -„Keramika” krust. | C66: VSF6, | D66: 6 | E66: “ VILATI”,
C67: Ungārija | E67: LED, Ungārija
A68: 45 | B68: Dobeles-Pasta-Blaumaņa ielu krust. | C68: EC-2, Nīderlande | D68: 8 | E68: “ Peek Traffic”,
E69: LED 42V, Nīderlande
A70: 46 | B70: Dobeles šosejas - 5.līnijas krust. | C70: EC-2, Nīderlande | D70: 8 | E70: “ Peek Traffic”,
E71: LED 42V, Nīderlande

Sheet 05
E1: JĀPADOMĀ! Jo aprēķinu datus neglabā DB!
A2: Enerģijas patēriņa pārskats
A3: Klients | B3: xxxx xxxxxx
A4: Adrese | B4: Alkšņu iela 36, Jelgava
A5: Periods | B5: - Februāris 2024
B8: Janvāris | C8: Februāris | D8: Marts | E8: Aprīlis | F8: Maijs | G8: Jūnijs | H8: Jūlijs | I8: Augusts | J8: Septembris | K8: Oktobris | L8: Novembris | M8: Decembris
A9: 2021 | D9: 411.11 | E9: 413.84 | F9: 388.09 | G9: 350.17 | H9: 361.57 | I9: 308.72 | J9: 362.32 | K9: 394.44 | L9: 448.75 | M9: 475.28
A10: 2022 | B10: 444.36 | C10: 396.79 | D10: 393.16 | E10: 373.11 | F10: 354.97 | G10: 309.48 | H10: 286.76 | I10: 378.33 | J10: 319.24 | K10: 338.94 | L10: 367.77 | M10: 389.38
A11: 2023 | B11: 391.44 | C11: 325.18 | D11: 362.94 | E11: 329.51 | F11: 337.29 | G11: 321.54 | H11: 349.06 | I11: 349.58 | J11: 305.9 | K11: 328.45 | L11: 339.94 | M11: 395.74
A12: 2024 | B12: 375.11 | C12: 342.11

Sheet 06

Sheet 07
A1: Jelgavas tehnikums, 2010./2011. mācību gads | C1: IEVĒROJOT Datu DROŠĪBAS principus
A2: 108 grupa
A4: Uzvārds, Vārds, Otrais vārds | B4: atskaitīts
A5: Andruhovs Kaspars
A6: Bernatovičs Aļģis
A7: Briuvers Artūrs
A8: Cilinska Daiga
A9: Dauvarts Jānis
A10: Dundurs Ivo
A11: Gailis Jānis
A12: Gorbačevskis Mihails
A13: Grīnbergs Silvestrs
A14: Grīnfelde Anžela Helēna
A15: Harlamovs Rihards
A16: Kairišs Raimonds
A17: Kaseļska Aleksandra Keta
A18: Kociņš-Klucis Jānis
A19: Krauze Elvis
A20: Krivcovs Valerijs
A21: Poikāns Kaspars
A22: Priede Sandis
A23: Rāviņš Artūrs
A24: Rozenbergs Mārtiņš
A25: Runis Sandijs
A26: Silkāns Jānis
A27: Stašuls Dens | B27: 2020-10-05
A28: Strautnieks Jānis
A29: Šapenkovs Vadims
A30: Šēnfelds Kalvis Reinis
A31: Šimkevics Elijs
A32: Vecaukums Lorens
A33: Veselovs Marks
A34: Vinovskis Sandris
A35: Zingniks Dainis
A36: Žogla Ilmārs
A37: 208 grupa
A39: Uzvārds, Vārds, Otrais vārds
A40: Ancāns Aigars
A41: Auza Matīss
A42: Baikovskis Artūrs
A43: Bogdanovs Elvijs
A44: Embrekšs Dāvids
A45: Fadejevs Ruslans
A46: Helvigs Rūdolfs
A47: Jankausks Niklāvs
A48: Jegorkins Igors
A49: Kaļiņičenko Ņikita
A50: Kogutičs Jānis
A51: Kovšuks Pāvels
A52: Lastovskis Kārlis-Mārtiņš
A53: Mališevs Ruslans
A54: Marfjuks Iļja
A55: Matjuks Deniss
A56: Matvejs Aivis
A57: Ņemčinovs Valentīns
A58: Oļehnovičs Raitis
A59: Pučinskis Vjačeslavs
A60: Putns Modris
A61: Šaulis Aleksejs
A62: Uļčugačevs Vadims
A63: Veidemanis Toms
A64: Zandmanis Reinis
A65: 308 grupa
A67: Uzvārds, Vārds, Otrais vārds
A68: Ārmanis Artūrs
A69: Bukovskis Gatis
A70: Cinovskis Kristaps
A71: Grandbergs Gints
A72: Ivaņenko Artūrs
A73: Janšauskis Matīss
A74: Juškevičs Dmitrijs
A75: Koke Kārlis
A76: Kondrašovs Dmitrijs
A77: Krauklis Dāvis
A78: Ļeņenkovs Deniss
A79: Ļevanovičs Edgars
A80: Maruščaks Elvijs
A81: Mikuļskis Guntis
A82: Millers Guntis
A83: Ņikiforovs Matīss
A84: Rasmanis Miks
A85: Rimkus Haralds
A86: Spruģis Dāvids
A87: Šprenks Andis
A88: Timermanis Rolands
A89: Vaļģis Madars
A90: Vulfs Jānis
A91: Zātiņš Jānis
A92: 408 grupa
A94: Uzvārds, Vārds, Otrais vārds
A95: Adamenko Aleksejs
A96: Antonovs Klimentijs
A97: Bromults Pauls
A98: Bubinskis Edgars
A99: Burņevskis Mārtiņš
A100: Garnītis Daniels
A101: Ikarts Ilvars
A102: Janšauskis Aivis
A103: Karlsons Kārlis
A104: Kaulenis Jāzeps
A105: Kuļikovskis Aleksejs
A106: Luščenoks Kristaps
A107: Ļebedevs Aleksis
A108: Macevičs Ņikita
A109: Makarenkovs Sergejs
A110: Martuzāns Raivis
A111: Pakārklis Dzintars
A112: Polukejevs Dmitrijs
A113: Rašitinis Arvis
A114: Rēdlihs Artūrs
A115: Taupmanis Elvijs
A116: Terlanova Inga

Sheet 08
A1: Name | B1: Latitude | C1: Longitude | D1: Address
A2: Aspazijas | B2: 56.65204393 | C2: 23.69668459 | D2: Dobeles šoseja 26, Jelgava, LV-3007, Latvia
A3: Aspazijas | B3: 56.64873775 | C3: 23.69201713 | D3: Atmodas iela 38, Jelgava, LV-3001, Latvia
A4: Atmodas dob | B4: 56.65267754 | C4: 23.69066988 | D4: Dobeles šoseja 46, Jelgava, LV-3007, Latvia
A5: Blacplesa | B5: 56.65877098 | C5: 23.7542582 | D5: Brīvības bulvāris 10A, Jelgava, LV-3002, Latvia
A6: Blaumana | B6: 56.65444953 | C6: 23.72063494 | D6: Dobeles iela 9, Jelgava, LV-3001, Latvia
A7: Brieza | B7: 56.65318098 | C7: 23.7150027 | D7: Dobeles iela 42, Jelgava, LV-3001, Latvia
A8: Cakstes | B8: 56.65348737 | C8: 23.72962033 | D8: Lielā iela 6, Jelgava, LV-3001, Latvia
A9: Dambja | B9: 56.6502687 | C9: 23.71116028 | D9: Lielā iela 36, Jelgava, LV-3001, Latvia
A10: Daspazijas | B10: 56.65267754 | C10: 23.69066988 | D10: Dobeles šoseja 46, Jelgava, LV-3007, Latvia
A11: Driksas | B11: 56.65002843 | C11: 23.72388696 | D11: Pasta iela 41, Jelgava, LV-3001, Latvia
A12: Edzus | B12: 56.64704636 | C12: 23.72559267 | D12: P95 34, Jelgava, LV-3001, Latvia
A13: Filozofu | B13: 56.64129201 | C13: 23.69703179 | D13: Filozofu iela 62, Jelgava, LV-3008, Latvia
A14: Garozas | B14: 56.65711455 | C14: 23.74507848 | D14: Brīvības bulvāris 3A, Jelgava, LV-3002, Latvia
A15: Izstades | B15: 56.66074482 | C15: 23.74663022 | D15: Rīgas iela 20A, Jelgava, LV-3002, Latvia
A16: Kalnciema | B16: 56.65763841 | C16: 23.74300366 | D16: Brīvības bulvāris 1, Jelgava, LV-3002, Latvia
A17: Keramika | B17: 56.67230582 | C17: 23.76617377 | D17: Jelgavas pilsēta, Jelgava, Latvia
A18: Lakademijas | B18: 56.65266083 | C18: 23.72707858 | D18: Lielā iela 3A, Jelgava, LV-3001, Latvia
A19: Lkalpaka | B19: 56.64847359 | C19: 23.71351412 | D19: Jāņa Asara iela 17, Jelgava, LV-3001, Latvia
A20: Lkatolu | B20: 56.6517442 | C20: 23.72432143 | D20: Katoļu iela 2, Jelgava, LV-3001, Latvia
A21: Lmatera | B21: 56.65090265 | C21: 23.72066171 | D21: Mātera iela 23/25, Jelgava, LV-3001, Latvia
A22: Loka | B22: 56.67000252 | C22: 23.7626338 | D22: Rīgas iela 59, Jelgava, LV-3004, Latvia
A23: Loka | B23: 56.66994476 | C23: 23.76264581 | D23: Rīgas iela 50, Jelgava, LV-3004, Latvia
A24: Lpasta | B24: 56.65209715 | C24: 23.72264166 | D24: Pasta iela 35, Jelgava, LV-3001, Latvia
A25: Maras | B25: 56.65153388 | C25: 23.70326749 | D25: Dobeles šoseja 6, Jelgava, LV-3007, Latvia
A26: Meiju | B26: 56.65918067 | C26: 23.70667916 | D26: Meiju ceļš 25, Jelgava, LV-3007, Latvia
A27: Miera | B27: 56.6301495 | C27: 23.7261095 | D27: Platones iela 2, Jelgava, LV-3001, Latvia
A28: PAsta | B28: 56.64172464 | C28: 23.72915696 | D28: P95 67, Jelgava, LV-3001, Latvia
A29: PErnavas | B29: 56.6677162 | C29: 23.75911759 | D29: Pumpura iela 2, Jelgava, LV-3004, Latvia
A30: Petera | B30: 56.65064373 | C30: 23.71661419 | D30: Pulkveža Brieža iela 1, Jelgava, LV-3001, Latvia
A31: Pzemgales | B31: 56.64453863 | C31: 23.73017142 | D31: Zemgales prospekts 10, Jelgava, LV-3001, Latvia
A32: R matera | B32: 56.63986218 | C32: 23.72480277 | D32: Mātera iela 74, Jelgava, LV-3001, Latvia
A33: Rakademijas | B33: 56.64947215 | C33: 23.72990109 | D33: Raiņa iela 3, Jelgava, LV-3001, Latvia
A34: Rkakpaka | B34: 56.64659198 | C34: 23.71534186 | D34: Pulkveža Oskara Kalpaka iela 13, Jelgava, LV-3001, Latvia
A35: Rkalpaka | B35: 56.63860773 | C35: 23.72048539 | D35: P95 33, Jelgava, LV-3001, Latvia
A36: Rkotolu | B36: 56.64868586 | C36: 23.72607238 | D36: Pasta iela 47, Jelgava, LV-3001, Latvia
A37: Rlacplesa | B37: 56.6627634 | C37: 23.7504077 | D37: Rīgas iela 15, Jelgava, LV-3004, Latvia
A38: Rmayera | B38: 56.64819799 | C38: 23.72191235 | D38: Raiņa iela 15, Jelgava, LV-3001, Latvia
A39: Rpasta | B39: 56.64892025 | C39: 23.72468722 | D39: Pasta iela 45, Jelgava, LV-3001, Latvia
A40: Rūpniecības | B40: 56.63783609 | C40: 23.71657084 | D40: Rūpniecības iela 18A, Jelgava, LV-3001, Latvia
A41: Sarmas | B41: 56.64445505 | C41: 23.71231763 | D41: Tērvetes iela 5, Jelgava, LV-3008, Latvia
A42: Savienibas | B42: 56.63557809 | C42: 23.72788804 | D42: Lietuvas šoseja 5, Jelgava, LV-3001, Latvia
A43: Start | B43: 56.63131028 | C43: 23.72534843 | D43: Aveņu iela 37, Jelgava, LV-3001, Latvia
A44: Starte | B44: 56.6312295 | C44: 23.7250855 | D44: Aveņu iela 36, Jelgava, LV-3001, Latvia
A45: Strazdu | B45: 56.66399909 | C45: 23.7533043 | D45: Strazdu iela 16, Jelgava, LV-3004, Latvia
A46: Svetes | B46: 56.64907798 | C46: 23.71856921 | D46: LLU Ekonomikas un Sabiedrības attīstības fakultāte, Svētes iela 18, Jelgava, LV-3001, Latvia
A47: Szemgales | B47: 56.64393604 | C47: 23.73097072 | D47: Zemgales prospekts 12a, Jelgava, LV-3001, Latvia
A48: Tervetes | B48: 56.6368916 | C48: 23.70869229 | D48: Tērvetes iela 68, Jelgava, LV-3008, Latvia
A49: Ubarona | B49: 56.65381752 | C49: 23.72451043 | D49: Uzvaras iela 6A, Jelgava, LV-3001, Latvia
A50: Udobeles | B50: 56.65369461 | C50: 23.72261381 | D50: Uzvaras iela 1, Jelgava, LV-3001, Latvia
A51: Zmateru | B51: 56.64324189 | C51: 23.72365617 | D51: Mātera iela 47, Jelgava, LV-3001, Latvia
A52: Zpasta | B52: 56.64289214 | C52: 23.72712041 | D52: Zirgu iela 5, Jelgava, LV-3001, Latvia

Sheet 09
A1: Degvielas cenas 2021.12.29
A2: Uzpildes stacija | B2: Adrese | C2: DD | D2: 98 | E2: 95 | F2: LPG
A3: Circle K Muitas | B3: Muitas iela 4, Rīga | C3: 1.334EUR | D3: 1.534EUR | E3: 1.494EUR
A4: Circle K Eksporta | B4: Eksporta iela 1C, Rīga | C4: 1.334EUR | E4: 1.494EUR
A5: Neste Dzirnavu | B5: Dzirnavu iela 127, Rīga | C5: 1.317EUR | D5: 1.517EUR | E5: 1.477EUR
A6: Latvijas Nafta Sporta | B6: Sporta iela 9, Rīga | C6: 1.257EUR | D6: 1.457EUR | E6: 1.417EUR
A7: Neste Skanstes | B7: Skanstes iela 7, Rīga | C7: 1.317EUR | D7: 1.517EUR | E7: 1.477EUR
A8: Metro Satekles | B8: Satekles iela 2, Rīga | C8: 1.270EUR | E8: 1.440EUR | F8: 0.750EUR
A9: Viada Mūkusalas 1 | B9: Mūkusalas iela 59, Rīga | C9: 1.327EUR | D9: 1.522EUR | E9: 1.487EUR
A10: LPG Mūkusalas 2 | B10: Mūkusalas iela 59A, Rīga | D10: 1.435EUR | E10: 1.410EUR
A11: Virši Arkādijs | B11: Uzvaras bulvāris 16, Rīga | C11: 1.334EUR | E11: 1.494EUR | F11: 0.805EUR
A12: Neste Lucavsala | B12: Lucavsalas iela 1, Rīga | C12: 1.317EUR | D12: 1.517EUR | E12: 1.477EUR
A13: Circle K Kurbada | B13: Kurbada iela 8, Rīga | C13: 1.334EUR | D13: 1.534EUR | E13: 1.494EUR
A14: Circle K Mūkusala | B14: Mūkusalas iela 75, Rīga | C14: 1.334EUR | D14: 1.554EUR | E14: 1.494EUR
A15: LPG Mūkusalas 1 | B15: Mūkusalas iela 75B, Rīga | F15: 0.805EUR
A16: Virši Mūkusala | B16: Mūkusalas iela 75B, Rīga | C16: 1.249EUR
A17: Neste Katoļu | B17: Katoļu iela 4, Rīga | C17: 1.317EUR | D17: 1.517EUR | E17: 1.477EUR
A18: Neste Ganību | B18: Rankas iela 2, Rīga | C18: 1.317EUR | D18: 1.517EUR | E18: 1.477EUR
A19: LPG Skanstes | B19: Skanstes iela 48, Rīga | F19: 0.795EUR
A20: Circle K Valdemāra | B20: Krišjāņa Valdemāra iela 104, Rīga | C20: 1.344EUR | D20: 1.594EUR | E20: 1.504EUR
A21: Circle K Daugava | B21: Krasta iela 47, Rīga | C21: 1.334EUR | D21: 1.534EUR | E21: 1.494EUR
A22: Circle K Rīgā | B22: Kandavas iela 7 | C22: 1.284 EUR | D22: 1.484 EUR | E22: 1.444 EUR | F22: 0.785 EUR
A23: Neste Rīgā | B23: Vienības gatve 77 | C23: 1.287 | D23: 1.487 | E23: 1.447
A24: Viada Valdeķu | B24: Valdeķu iela 34 | C24: 1.287 EUR | D24: 1.482 EUR | E24: 1.447 EUR
A25: Viada krasta | B25: Krasta iela 50 | C25: 1.287 EUR | E25: 1.472 EUR | F25: 0.775 EUR
A26: Virši | B26: Granīta iela 13a | C26: 1.317 | D26: 1.527 | E26: 1.477
A27: Kool | B27: Dārzciema iela 127 | C27: 1.298 | D27: 1.513 | E27: 1.469 | F27: 0.78

Sheet 10
A1: Pasūtītājs: JVPI Pilsētsaimniecība
A2: Vien. reģ. Nr. 90001282486
A3: Pulkv.O.Kalpaka 16a, Jelgava
A5: Izpildītājs: Mītavas Elektra SIA
A6: Vien. reģ. Nr. 43603009810
A7: Jelgava, Vaļņu iela 8, LV-3001
A8: Līguma Nr. PIL/2-4/22/73
A9: Jelgavas valstspilsētas luksoforu objektu uzturēšana
A11: Par 2024. gada februāra mēnesī izpildītajiem darbiem
F12: PB 3.4.03
A13: Kods | B13: Pakalpojuma veids | C13: Mēr- vienība | D13: Daudzums | E13: Vienības cena EUR | F13: Kopā EUR (bez PVN)
A14: 6.9 | B14: Izstrādātā signālplāna palaišana un atslēgšana uz noteiktu laiku | C14: gab. | D14: 3 | E14: 200.00 | F14: =ROUND(D14*E14,2) -> 600.00
D15: Kopā (bez PVN) EUR | F15: =SUM(F14:F14) -> 600.00
D16: PVN 21% EUR | F16: =F15*0.21 -> 126.00
D17: Kopā ar PVN EUR | F17: =F15+F16 -> 726.00
F19: ACF 5.1.31
A20: Kods | B20: Pakalpojuma veids | C20: Mēr- vienība | D20: Daudzums | E20: Vienības cena EUR | F20: Kopā EUR (bez PVN)
A21: 5.10 | B21: Signālgalvas aizsargjumtiņa nomaiņa uz balsta | C21: gab. | D21: 2 | E21: 30.00 | F21: =ROUND(D21*E21,2) -> 60.00
A22: 5.13 | B22: Signāllēcas nomaiņa uz balsta | C22: gab. | D22: 2 | E22: 50.00 | F22: 100.00
A23: 7.1 | B23: Tehniskā apkope visiem (52) luksoforu objektiem | C23: mēnesis | D23: 1 | E23: 14000.00 | F23: 14000.00
A24: 11.11 | B24: Signāllēca (300mm, LED 230V) Swarco Futurled | C24: gab. | D24: 1 | E24: 123.50 | F24: 123.50
A25: 11.12 | B25: Signāllēca (200mm, LED 230V) Swarco Futurled | C25: gab. | D25: 1 | E25: 93.60 | F25: 93.60
A26: 11.18 | B26: Signālgalvas aizsargjumtiņš | C26: gab. | D26: 2 | E26: 15.60 | F26: 31.20
D27: Kopā (bez PVN) EUR | F27: =SUM(F21:F26) -> 14408.30
D28: PVN 21% EUR | F28: =F27*0.21 -> 3025.74
D29: Kopā ar PVN EUR | F29: =F27+F28 -> 17434.04
C31: Pavisam kopā (bez PVN) EUR | F31: =F15+F27 -> 15008.30
C32: Pavisam kopā PVN 21% EUR | F32: =F16+F28 -> 3151.74
C33: Pavisam kopā ar PVN EUR | F33: =F31+F32 -> 18160.04

Sheet 11
A1: Maksas aprēķins
B3: Objekta nosaukums | C3: Luksoforu kontroliera sadalnes nomaiņa un darbības atjaunošana Rīgas un Apiņu ielu krustojumā, Salaspilī.
B4: Objekta adrese | C4: Rīgas iela, Salaspils
B5: Darba nosaukums | C5: ELT_LUKSOFORS
A7: N.p.k. | B7: Darba nosaukums | C7: Mēr- vienība | D7: Daudzums | E7: Vienības izmaksas | K7: Kopā visam apjomam
E8: Laika norma | F8: Kategorijas likme (EUR/st) | G8: Darba alga (EUR) | H8: Materiāli (EUR) | I8: Mehānismi (EUR) | J8: Kopā (EUR) | K8: Nepie- ciešamais laiks (c/st) | L8: Darba alga (EUR) | M8: Materiāli (EUR) | N8: Mehānismi (EUR) | O8: Summa (EUR)
B9: materiālu specifikācija
A10: 1 | B10: Kabeļu marķēšana, atvienošana un demontāža | C10: kompl. | D10: 1 | E10: 0.50 | F10: 9.00 | G10: =F10*E10 -> 4.50 | H10: 5.00 | I10: 1.00 | J10: =ROUND(SUM(G10:I10),2) -> 10.50 | K10: =ROUND(D10*E10,2) -> 0.50 | L10: =ROUND(D10*G10,2) -> 4.50 | M10: =ROUND(D10*H10,2) -> 5.00 | N10: =ROUND(D10*I10,2) -> 1.00 | O10: =ROUND(SUM(L10:N10),2) -> 10.50
A11: 2 | B11: Sadalnes demontāža | C11: gab. | D11: 1 | E11: 2.00 | F11: 9.00 | G11: =F11*E11 -> 18.00 | I11: 5.00 | J11: =ROUND(SUM(G11:I11),2) -> 23.00 | K11: 2.00 | L11: 18.00 | M11: 0 | N11: 5.00 | O11: 23.00
A12: 3 | B12: Pamata plates demontāža | C12: gab. | D12: 1 | E12: 2.00 | F12: 9.00 | G12: =F12*E12 -> 18.00 | I12: 3.00 | J12: 21.00 | K12: 2.00 | L12: 18.00 | M12: 0 | N12: 3.00 | O12: 21.00
A13: 4 | B13: Kontroliera, bloku, spaiļu, un esošo iekārtu demontāža no vecās sadalnes | C13: kompl. | D13: 1 | E13: =45/60 -> 0.75 | F13: 9.00 | G13: 6.75 | H13: 1.00 | I13: 3.00 | J13: 10.75 | K13: 0.75 | L13: 6.75 | M13: 1.00 | N13: 3.00 | O13: 10.75
A14: 5 | B14: Kontroliera ,bloku, spaiļu, un esošo iekārtu montāža jaunā sadalnē | C14: kompl. | D14: 1 | E14: 1.00 | F14: 9.00 | G14: 9.00 | H14: 10.00 | I14: 5.00 | J14: 24.00 | K14: 1.00 | L14: 9.00 | M14: 10.00 | N14: 5.00 | O14: 24.00
A15: 6 | B15: Kontroliera sadalne uzstādīšana* | C15: gab. | D15: 1 | E15: 1.00 | F15: 9.00 | G15: 9.00 | H15: 700.00 | I15: 51.00 | J15: =ROUND(SUM(G15:I15),2) -> 760.00 | K15: =ROUND(D15*E15,2) -> 1.00 | L15: =ROUND(D15*G15,2) -> 9.00 | M15: =ROUND(D15*H15,2) -> 700.00 | N15: =ROUND(D15*I15,2) -> 51.00 | O15: 760.00
A16: 7 | B16: Luksofora LED 1x200mm moduļa nomaiņa | C16: gab. | D16: 1 | E16: =20/60 -> 0.33 | F16: 9.00 | G16: 3.00 | H16: 50.00 | I16: 2.00 | J16: =ROUND(SUM(G16:I16),2) -> 55.00 | K16: =ROUND(D16*E16,2) -> 0.33 | L16: =ROUND(D16*G16,2) -> 3.00 | M16: =ROUND(D16*H16,2) -> 50.00 | N16: =ROUND(D16*I16,2) -> 2.00 | O16: 55.00
A17: 8 | B17: Ebonīta plaksne nosega montāža uz pamata | C17: gab. | D17: 1 | E17: =20/60 -> 0.33 | F17: 9.00 | G17: 3.00 | H17: 30.00 | I17: 7.00 | J17: 40.00 | K17: 0.33 | L17: 3.00 | M17: 30.00 | N17: 7.00 | O17: 40.00
A18: 9 | B18: Kabeļu instalācija jaunā aizsargplatē | C18: kompl. | D18: 1 | E18: 0.33 | F18: 9.00 | G18: 3.00 | H18: 10.00 | I18: 10.00 | J18: 23.00 | K18: 0.33 | L18: 3.00 | M18: 10.00 | N18: 10.00 | O18: 23.00
A19: 10 | B19: Kabeļu savienošana kontrolierī | C19: kompl. | D19: 1 | E19: 0.50 | F19: 9.00 | G19: 4.50 | H19: 5.00 | I19: 1.00 | J19: =ROUND(SUM(G19:I19),2) -> 10.50 | K19: 0.50 | L19: 4.50 | M19: 5.00 | N19: 1.00 | O19: 10.50
A20: 11 | B20: Induktīvās cilpas saslēgšana | C20: gab. | D20: 2 | E20: 0.50 | F20: 9.00 | G20: 4.50 | H20: 5.00 | I20: 5.00 | J20: 14.50 | K20: 1.00 | L20: 9.00 | M20: 10.00 | N20: 10.00 | O20: 29.00
A21: 12 | B21: Luksoforu kontrollera programmēšana, darbības pārbaude objektā | C21: gab. | D21: 1 | E21: 2.00 | F21: 9.00 | G21: 18.00 | H21: 150.00 | I21: 50.00 | J21: 218.00 | K21: 2.00 | L21: 18.00 | M21: 150.00 | N21: 50.00 | O21: 218.00
A22: 13 | B22: Izpilddokumentācija un mērījumi | C22: kompl. | D22: 1 | E22: 8.00 | F22: 9.00 | G22: 72.00 | H22: 8.00 | I22: 20.00 | J22: 100.00 | K22: 8.00 | L22: 72.00 | M22: 8.00 | N22: 20.00 | O22: 100.00
A23: Kopā tiešās izmaksas, tai skaitā sociālais nodoklis: | K23: =SUM(K10:K22) -> 19.74 | L23: =SUM(L10:L22) -> 177.75 | M23: =SUM(M10:M22) -> 979.00 | N23: =SUM(N10:N22) -> 168.00 | O23: =SUM(O10:O22) -> 1,324.75
E24: Ceļa izdevumi | K24: 240.00 | L24: 1.30 | M24: =L24*K24 -> 312.00 | O24: =M24 -> 312.00
A25: Pavisam kopā: | O25: =SUM(O23:O24) -> 1636.75
B26: Izņemt no tāmes
A27: 13 | B27: Izpilddokumentācija un mērījumi | C27: kompl. | D27: -1 | E27: 8.00 | F27: 9.00 | G27: =F27*E27 -> 72.00 | H27: 8.00 | I27: 20.00 | J27: =ROUND(SUM(G27:I27),2) -> 100.00 | K27: =ROUND(D27*E27,2) -> -8.00 | L27: =ROUND(D27*G27,2) -> -72.00 | M27: =ROUND(D27*H27,2) -> -8.00 | N27: =ROUND(D27*I27,2) -> -20.00 | O27: =ROUND(SUM(L27:N27),2) -> -100.00
A28: Pavisam kopā: | O28: =SUM(O27:O27) -> -100.00
A30: Pavisam kopā: | O30: =SUM(O28,O25) -> 1536.75
A31: PVN 21%: | O31: =O30*0.21 -> 322.72
A32: Pavisam KOPĀ: | O32: =SUM(O30:O31) -> 1859.47
B33: Tāme sastādīta 2018.gada 03. augusts

Sheet 12
A1: Materiālu , darbu veidi un plānotie apjomi 48 mēnešiem:
B2: Līguma nr.: | C2: PIL/2-4/19/70
A3: Nr. p.k. | B3: Darba veids | C3: Mērvienība | D3: Plānotais apjoms 48 mēn.
A4: Veicamo darbu un materiālu saraksts
A5: Remontdarbi
A6: 1 | B6: Tranšejas rakšana un aizbēršana | C6: m | D6: 600
A7: 2 | B7: Plastmasas caurules guldīšana tranšejā | C7: m | D7: 600
A8: 3 | B8: Caurules guldīšana ar caurduršanu, caurvilkšanu | C8: m | D8: 200
A9: 4 | B9: Kabeļa brīdinājuma lentas ieklāšana | C9: m | D9: 600
A10: 5 | B10: Asfalta zāģēšana un noņemšana | C10: m2 | D10: 200
A11: 6 | B11: Bruģa noņemšana | C11: m2 | D11: 200
A12: 7 | B12: Zālāja atjaunošana ar melnzemes pievešanu | C12: m2 | D12: 200
A13: 8 | B13: Kabeļa ievēršana ieguldītā caurulē | C13: m | D13: 600
A14: 9 | B14: Spēka kabeļa gala apdares montāža | C14: kompl. | D14: 10
A15: 10 | B15: Spēka kabeļa savienojuma uzmavas montāža | C15: kompl. | D15: 10
A16: 11 | B16: Signālkabeļa 7-19x1,5-2,5 gala apdare, pieslēgšana | C16: kompl. | D16: 60
A17: 12 | B17: Signālkabeļa 3-7x1,5-2,5 montāža balstā, konsolē, vārtos | C17: m | D17: 300
A18: 13 | B18: Signālkabeļa 3-7x1,5-2,5 gala apdare, pieslēgšana | C18: kompl. | D18: 60
A19: 14 | B19: Datu kabeļa montāža balstā, konsolē, vārtos | C19: m | D19: 200
A20: 15 | B20: Datu kabeļa gala apdare, pieslēgšana | C20: kompl. | D20: 40
A21: 16 | B21: Signālkabeļa spaiļu komplekta nomaiņa balstā, konsolē, vārtos | C21: kompl. | D21: 240
A22: 17 | B22: Luksofora balsta montāža | C22: gab. | D22: 40
A23: 18 | B23: Luksofora konsoles montāža | C23: gab. | D23: 8
A24: 19 | B24: Luksofora vārtu montāža | C24: gab. | D24: 4
A25: 20 | B25: Luksofora balsta pamatnes montāža | C25: gab. | D25: 40
A26: 21 | B26: Luksofora konsoles, vārtu pamatnes montāža | C26: gab. | D26: 16
A27: 22 | B27: Luksofora balsta taisnošana, remonts | C27: gab. | D27: 140
A28: 23 | B28: Luksofora konsoles (vārtu) taisnošana, remonts | C28: gab. | D28: 40
A29: 24 | B29: Transporta signālgalvas montāža uz balsta, konsoles, vārtiem | C29: kompl. | D29: 80
A30: 25 | B30: Papildsekcijas transporta signālgalvas montāža uz balsta, konsoles, vārtiem | C30: kompl. | D30: 40
A31: 26 | B31: Gājēju signālgalvas montāža | C31: kompl. | D31: 80
A32: 27 | B32: Gājēju laika atskaites displeja montāža | C32: kompl. | D32: 30
A33: 28 | B33: Signālgalvas atstarojošā rāmīša nomaiņa | C33: gab. | D33: 40
A34: 29 | B34: Signālgalvas ar papildsekciju atstarojošā rāmīša nomaiņa | C34: gab. | D34: 20
A35: 30 | B35: Signālgalvas aizsargjumtiņa nomaiņa uz balsta | C35: gab. | D35: 300
A36: 31 | B36: Signālgalvas aizsargjumtiņa nomaiņa uz konsoles, vārtiem | C36: gab. | D36: 40
A37: 32 | B37: Spuldzes nomaiņa uz balsta | C37: gab. | D37: 300
A38: 33 | B38: Spuldzes nomaiņa uz konsoles, vārtiem | C38: gab. | D38: 60
A39: 34 | B39: Signāllēcas nomaiņa uz balsta | C39: gab. | D39: 80
A40: 35 | B40: Signāllēcas nomaiņa uz konsoles, vārtiem | C40: gab. | D40: 20
A41: 36 | B41: Gājēju izsaukuma pogas nomaiņa | C41: gab. | D41: 20
A42: 37 | B42: Datorizētās akustiskās gājēju izsaukuma pogas nomaiņa | C42: gab. | D42: 20
A43: 38 | B43: Gājēju izsaukuma pogas remonts | C43: gab. | D43: 40
A44: 39 | B44: Datorizētās akustiskās gājēju izsaukuma pogas konfigurēšana, remonts | C44: gab. | D44: 100
A45: 40 | B45: Infrasarkano staru transporta kustības detektora nomaiņa | C45: gab. | D45: 8
A46: 41 | B46: Infrasarkano staru transporta kustības detektora regulēšana | C46: gab. | D46: 140
A47: 42 | B47: Skaņas signāla iekārtas nomaiņa | C47: gab. | D47: 20
A48: 43 | B48: Skaņas signāla iekārtas regulēšana | C48: gab. | D48: 80
A49: 44 | B49: Balsta vāka nomaiņa | C49: gab. | D49: 60
A50: 45 | B50: WDS detektora nomaiņa asfalta virskārtas segā | C50: gab. | D50: 60
A51: 46 | B51: WDS atkārtotāja antenas nomaiņa | C51: gab. | D51: 20
A52: 47 | B52: WDS uztvērēja antenas nomaiņa | C52: gab. | D52: 20
A53: 48 | B53: WDS atkārtotāja antenas baterijas nomaiņa | C53: gab. | D53: 100
A54: 49 | B54: Epoksīdu sveķu aizsargslāņa atjaunošana WDS detektoram asfalta virskārtā | C54: gab. | D54: 300
A55: 50 | B55: Signālgalvas stiprinājuma kronšteina nomaiņa uz balsta | C55: gab. | D55: 100
A56: 51 | B56: Balsta jumtiņa nomaiņa | C56: gab. | D56: 60
A57: 52 | B57: Luksofora gājēju laika atskaites konfigurēšana | C57: gab. | D57: 60
A58: 53 | B58: Kontroliera montāža | C58: kompl. | D58: 10
A59: 54 | B59: Kontroliera bloka nomaiņa | C59: gab. | D59: 48
A60: 55 | B60: Kontroliera termoregulatora nomaiņa | C60: gab. | D60: 16
A61: 56 | B61: Kontroliera astronomiska laika releja nomaiņa | C61: gab. | D61: 8
A62: 57 | B62: Kontroliera GSM antenas nomaiņa | C62: gab. | D62: 16
A63: 58 | B63: Kontroliera datu pārraides bloka nomaiņa | C63: gab. | D63: 8
A64: 59 | B64: Vadības plates drošinātāja nomaiņa | C64: gab. | D64: 200
A65: 60 | B65: Automātiska slēdža nomaiņa | C65: gab. | D65: 36
A66: 61 | B66: Starpreleja nomaiņa | C66: gab. | D66: 12
A67: 62 | B67: Diferenciālas aizsardzības automāta nomaiņa | C67: gab. | D67: 12
A68: 63 | B68: Pārsprieguma novadītāja nomaiņa | C68: gab. | D68: 12
A69: 64 | B69: Pārsprieguma novadītāja ieliktņa nomaiņa | C69: gab. | D69: 24
A70: 65 | B70: Luksofora objekta signālplāna izstrāde, nomaiņa | C70: gab. | D70: 48
A71: 66 | B71: Kontroliera demontāža | C71: kompl. | D71: 10
A72: 67 | B72: Luksofora balsta demontāža | C72: kompl. | D72: 24
A73: 68 | B73: Konsoles demontāža | C73: kompl. | D73: 8
A74: 69 | B74: Vārtu demontāža | C74: kompl. | D74: 2
A75: 70 | B75: Signālgalvas demontāža uz balsta, konsoles, vārtiem | C75: gab. | D75: 120
A76: 71 | B76: Informatīvas signālgalvas montāža | C76: kompl. | D76: 12
A77: 72 | B77: Luksoforu objektu tehniskā apkope
A78: 72.1 | B78: Visiem (51) luksoforu objektiem | C78: mēnesis | D78: 48
A79: 72.2 | B79: Vienam luksoforu objektam mēnesī | C79: objekts | D79: 50
A80: Avārijas darbi
A81: 73 | B81: Luksofora balsta demontāža | C81: gab. | D81: 16
A82: 74 | B82: Konsoles demontāža | C82: gab. | D82: 4
A83: 75 | B83: Vārtu demontāža | C83: gab. | D83: 2
A84: 76 | B84: Signālgalvas demontāža no balsta | C84: gab. | D84: 32
A85: 77 | B85: Luksofora balsta montāža | C85: gab. | D85: 16
A86: 78 | B86: Transporta signālgalvas montāža uz balsta | C86: gab. | D86: 24
A87: 79 | B87: Gājēju signālgalvas montāža uz balsta | C87: gab. | D87: 8
A88: 80 | B88: Luksofora objekta gaismas signālu izslēgšana vai pārslēgšana mirgojošā dzeltenajā režīmā. | C88: gab. | D88: 30
A89: Materiālu veidi un plānotie apjomi
A90: 1 | B90: Kabelis Cu 4x16 | C90: m | D90: 100
A91: 2 | B91: Kabelis Al 4x35 | C91: m | D91: 100
A92: 3 | B92: Signālkabelis Cu 7x1,5-2,5 | C92: m | D92: 200
A93: 4 | B93: Signālkabelis Cu 12x1,5-2,5 | C93: m | D93: 200
A94: 5 | B94: Signālkabelis Cu 19x1,5-2,5 | C94: m | D94: 200
A95: 6 | B95: Signālkabelis Cu 3x1,5-2,5 | C95: m | D95: 100
A96: 7 | B96: Signālkabelis Cu 4x1,5-2,5 | C96: m | D96: 100
A97: 8 | B97: Signālkabelis Cu 7x1,5-2,5 | C97: m | D97: 100
A98: 9 | B98: Aizsargcaurule – ārējais diametrs 75mm | C98: m | D98: 400
A99: 10 | B99: Aizsargcaurule – ārējais diametrs 110mm | C99: m | D99: 200
A100: 11 | B100: Signāllenta | C100: m | D100: 600
A101: 12 | B101: Spēka kabeļa gala apdare Raychem EPKT0015 (vai ekvivalents) | C101: kompl. | D101: 10
A102: 13 | B102: Spēka kabeļa savienojuma uzmava Raychem POLJ-01/4x10-35 (vai ekvivalents) | C102: kompl. | D102: 10
A103: 14 | B103: Signālkabeļa spaiļu komplekts (līdz 10 gab.) | C103: kompl. | D103: 240
A104: 15 | B104: Datu kabelis (5.cat) | C104: m | D104: 200
A105: 16 | B105: Luksofora balsts h=6m | C105: gab. | D105: 16
A106: 17 | B106: Luksofora balsts h=4m | C106: gab. | D106: 40
A107: 18 | B107: Luksofora konsole h=6,5m | C107: gab. | D107: 8
A108: 19 | B108: Luksofora vārti (līdz 15m) | C108: gab. | D108: 4
A109: 20 | B109: Luksofora balsta pamatne | C109: gab. | D109: 56
A110: 21 | B110: Luksofora konsoles, vārtu pamatne | C110: gab. | D110: 16
A111: 22 | B111: Balsta (konsoles) vāks | C111: gab. | D111: 60
A112: 23 | B112: Balsta (konsoles) jumtiņš | C112: gab. | D112: 60
A113: 24 | B113: Transporta signālgalva (3 lēcas, 300mm, LED 230V) | C113: gab. | D113: 70
A114: 25 | B114: Papildsekcijas transporta signālgalva (1 lēca, 300mm, LED 230V) | C114: gab. | D114: 24
A115: 26 | B115: Gājēju signālgalva (2 lēcas, 200mm, LED 230V) | C115: gab. | D115: 36
A116: 27 | B116: Brīdinājuma signālgalva (1 lēca, 300mm, LED 230V) | C116: gab. | D116: 8
A117: 28 | B117: Transporta signālgalva (3 lēcas, 300mm, LED 42V) | C117: gab. | D117: 34
A118: 29 | B118: Papīldsekcijas transporta signālgalva (1 lēca, 300mm, LED 42V) | C118: gab. | D118: 16
A119: 30 | B119: Gājēju signālgalva (2 lēcas, 200mm, LED 42V) | C119: gab. | D119: 24
A120: 31 | B120: Gājēju signālgalvas (2 lēcas + sekunžu skaitītājs, 200mm, LED 42V) | C120: gab. | D120: 28
A121: 32 | B121: Brīdinājuma signālgalva (1 lēca, 300mm, LED 42V) | C121: gab. | D121: 4
A122: 33 | B122: Signāllēca (300mm, LED 230V) | C122: gab. | D122: 44
A123: 34 | B123: Signāllēca (200mm, LED 230V) | C123: gab. | D123: 16
A124: 35 | B124: Signāllēca (300mm, LED 42V) | C124: gab. | D124: 24
A125: 36 | B125: Signāllēca (200mm, LED 42V) | C125: gab. | D125: 16
A126: 37 | B126: Signālgalvas stiprinājuma kronšteins | C126: gab. | D126: 100
A127: 38 | B127: Signālgalvas atstarojošais rāmītis | C127: gab. | D127: 40
A128: 39 | B128: Signālgalvas atstarojošais rāmītis ar papīldsekciju | C128: gab. | D128: 20
A129: 40 | B129: Signālgalvas aizsargjumtiņš | C129: gab. | D129: 340
A130: 41 | B130: Spuldze 75W, 230V | C130: gab. | D130: 360
A131: 42 | B131: Gājēju izsaukuma poga „PEEK” (vai ekvivalents) | C131: gab. | D131: 20
A132: 43 | B132: Datorizēta akustiska gājēju izsaukuma poga „PRISMA” (vai ekvivalents) | C132: gab. | D132: 20
A133: 44 | B133: Infrasarkano staru transporta kustības detektors | C133: gab. | D133: 8
A134: 45 | B134: Skaņas signāla iekārta | C134: gab. | D134: 20
A135: 46 | B135: WDS detektors SensysNetworks VSN 240F (vai ekvivalents) | C135: gab. | D135: 60
A136: 47 | B136: WDS atkārtotājantena SensysNetworks RP240-BH-LL (vai ekvivalents) | C136: gab. | D136: 20
A137: 48 | B137: WDS uztvērējantena SensysNetworks AP 240-E (vai ekvivalents) | C137: gab. | D137: 20
A138: 49 | B138: WDS atkārtotājantenas baterija | C138: gab. | D138: 100
A139: 50 | B139: VTC kontroliera barošanas bloks | C139: gab. | D139: 6
A140: 51 | B140: VTC kontroliera CPU bloks | C140: gab. | D140: 4
A141: 52 | B141: VTC kontroliera LK-6M bloks | C141: gab. | D141: 6
A142: 53 | B142: VTC kontroliera vadības plates ZKS tipa drošinātājs | C142: gab. | D142: 150
A143: 54 | B143: Luksoforu kontrolieris EC-2 (vai ekvivalents) | C143: kompl. | D143: 8
A144: 55 | B144: Luksoforu kontrolieris EC-2 mini (vai ekvivalents) | C144: kompl. | D144: 2
A145: 56 | B145: EC-2 barošanas bloka nomaiņa | C145: gab. | D145: 4
A146: 57 | B146: EC-2 MDU bloks | C146: gab. | D146: 4
A147: 58 | B147: EC-2 CPU bloks | C147: gab. | D147: 4
A148: 59 | B148: EC-2 LCM bloks | C148: gab. | D148: 4
A149: 60 | B149: EC-2 IO1616 bloks | C149: gab. | D149: 4
A150: 61 | B150: EC-2 ED316 bloks | C150: gab. | D150: 4
A151: 62 | B151: EC-2 MMI bloks | C151: gab. | D151: 4
A152: 63 | B152: EC-2 termoregulators | C152: gab. | D152: 16
A153: 64 | B153: EC-2 astronomiskais laika relejs | C153: gab. | D153: 8
A154: 65 | B154: EC-2 GSM antena | C154: gab. | D154: 16
A155: 66 | B155: EC-2 datu pārraides bloks | C155: gab. | D155: 8
A156: 67 | B156: Optiskais konvertors CTC UNION TECHNOLOGIES IFC-1400X (vai ekvivalents) | C156: gab. | D156: 4
A157: 68 | B157: EC-2 dimēšanas bloks | C157: gab. | D157: 4
A158: 69 | B158: EC-2 strāvas transformators | C158: gab. | D158: 4
A159: 70 | B159: Automātiskais slēdzis C16-32A 3 fāzu | C159: gab. | D159: 8
A160: 71 | B160: Automātiskais slēdzis C2-32A 1 fāzu | C160: gab. | D160: 28
A161: 72 | B161: Starprelejs 20A | C161: gab. | D161: 12
A162: 73 | B162: Diferenciālas aizsardzības automāts 20A, 300mA 1 fāzu | C162: gab. | D162: 12
A163: 74 | B163: Pārsprieguma novadītājs 1 fāzu, 65kA, līdz 1,5kV | C163: gab. | D163: 12
A164: 75 | B164: Pārsprieguma novadītāja ieliktnis | C164: gab. | D164: 24

Sheet 13
A1: Nekustamā īpašuma nodokļa maksājuma grafiks
A5: Maksātājs: xxxx xxxxxxxxxxx
A6: Konta Nr. | B6: Īpašums | C6: Kadastra Nr. | D6: Pamatparāds | E6: Nokavējuma nauda | F6: Kopsumma | G6: Valūta | H6: NĪN tips | I6: Kārtējie termiņi
I7: Datums | J7: Summa
A8: 595194 | B8: "Alkšņi"- 9 | C8: 4076 900 0077 | D8: 0.00 | E8: 0.00 | F8: 1.64 | G8: EUR | H8: NĪN par zemi | I8: 02.04.2024 | J8: 0.41
I9: 15.05.2024 | J9: 0.41
I10: 15.08.2024 | J10: 0.41
I11: 15.11.2024 | J11: 0.41
A13: 595197 | B13: "Alkšņi"- 9 | C13: 4076 900 0077 | D13: 0.00 | E13: 0.00 | F13: 21.98 | G13: EUR | H13: NĪN par ēkām | I13: 02.04.2024 | J13: 5.50
I14: 15.05.2024 | J14: 5.50
I15: 15.08.2024 | J15: 5.49
I16: 15.11.2024 | J16: 5.49
A18: 175196 | B18: Urani | C18: 4088 001 0014 | D18: 98.99 | E18: 12.58 | F18: 210.56 | G18: EUR | H18: NĪN par zemi | I18: 02.04.2024 | J18: 24.75
I19: 15.05.2024 | J19: 24.75
I20: 15.08.2024 | J20: 24.75
I21: 15.11.2024 | J21: 24.74
A23: 185855 | B23: Urani | C23: 4088 001 0014 | D23: 41.97 | E23: 5.33 | F23: 89.27 | G23: EUR | H23: NĪN par ēkām | I23: 02.04.2024 | J23: 10.50
I24: 15.05.2024 | J24: 10.49
I25: 15.08.2024 | J25: 10.49
I26: 15.11.2024 | J26: 10.49
A28: 227348 | B28: Protoni | C28: 4088 003 0171 | D28: 0.00 | E28: 0.00 | F28: 192.75 | G28: EUR | H28: NĪN par zemi | I28: 02.04.2024 | J28: 48.19
I29: 15.05.2024 | J29: 48.19
I30: 15.08.2024 | J30: 48.19
I31: 15.11.2024 | J31: 48.18
A33: 230112 | B33: Garāža 16 | C33: 4076 003 0376 | D33: 0.00 | E33: 0.00 | F33: 0.78 | G33: EUR | H33: NĪN par zemi | I33: 02.04.2024 | J33: 0.20
I34: 15.05.2024 | J34: 0.20
I35: 15.08.2024 | J35: 0.19
I36: 15.11.2024 | J36: 0.19
A38: 230114 | B38: Garāža 16 | C38: 4076 003 0376 | D38: 0.00 | E38: 0.00 | F38: 0.76 | G38: EUR | H38: NĪN par ēkām | I38: 02.04.2024 | J38: 0.19
I39: 15.05.2024 | J39: 0.19
I40: 15.08.2024 | J40: 0.19
I41: 15.11.2024 | J41: 0.19
A43: Kopā jāmaksā: | F43: 517.74 | G43: EUR

Sheet 14
A1: Nr. | B1: Luksoforu objekts | C1: Kontrolieru tips | D1: Garantijas laiks | G1: Jānodrošina objekta nosaukums no ielu nosaukumiem
A3: 1 | B3: Lielās ielas -J.Čakstes ielas krust. | C3: EC-2, Nīderlande | D3: 2013-10-20
A4: 2 | B4: Lielās ielas -Akadēmijas ielas krust. | C4: EC-2, Nīderlande | D4: 2013-10-20
A5: 3 | B5: Lielās ielas - Katoļu ielas krust. | C5: EC-2, Nīderlande | D5: 2013-10-20
A6: 4 | B6: Lielās ielas - Pasta ielas krust. | C6: EC-2, Nīderlande | D6: 2013-10-20
A7: 5 | B7: Lielās ielas -J.Mātera ielas krust. | C7: EC-2, Nīderlande | D7: 2013-10-20
A8: 6 | B8: Lielās ielas - Pētera ielas krust. | C8: EC-2, Nīderlande | D8: 2013-10-20
A10: 7 | B10: Lielās ielas -Dambja ielas krust. | C10: EC-2, Nīderlande | D10: 2013-10-20
A11: 8 | B11: Raiņa ielas - Akadēmijas ielas krust. | C11: EC-2, Nīderlande | D11: notiek rekonstrukcijas darbi
A13: 9 | B13: Raiņa ielas - Katoļu ielas krust. | C13: EC-2, Nīderlande | D13: notiek rekonstrukcijas darbi
A15: 10 | B15: Raiņa ielas - Pasta ielas krust. | C15: EC-2, Nīderlande | D15: notiek rekonstrukcijas darbi
A17: 11 | B17: Raiņa ielas - J.Mātera ielas krust. | C17: EC-2, Nīderlande | D17: notiek rekonstrukcijas darbi
A19: 12 | B19: Svētes ielas - J.Mātera ielas krust. | C19: EC-2, Nīderlande | D19: 2013-10-20
A20: 13 | B20: Pasta ielas - Driksas ielas krust. | C20: EC-2, Nīderlande | D20: 2013-10-20
A21: 14 | B21: Pasta ielas - S.Edžus ielas krust. | C21: EC-2, Nīderlande | D21: 2013-10-20
A22: 15 | B22: Uzvaras ielas - Kr.Barona ielas krust. | C22: EC-2, Nīderlande | D22: 2013-10-20
A23: 16 | B23: Dobeles ielas - Pulkv.Brieža ielas krust. | C23: EC-2, Nīderlande | D23: 20.10.201
A25: 17 | B25: Lielās ielas, gājēju pāreja „IKI” | C25: VTC2000 mini, Ungārija | D25: 2013-10-20
A26: 18 | B26: Dobeles šosejas - Māras ielas krust. | C26: VTC2000, Ungārija | D26: 2013-10-20
A27: 19 | B27: Dobeles šosejas - Satiksmes ielas krust. | C27: VTC2000, Ungārija | D27: 2013-10-20
A28: 20 | B28: Dobeles šosejas - Atmodas ielas krust. | C28: VTC2000, Ungārija | D28: 2013-10-20
A29: 21 | B29: Dobeles šosejas - 4.līnijas krust. | C29: EC-2, Nīderlande | D29: 2014-11-07
A31: 22 | B31: Rūpniecības ielas - J.Mātera ielas krust. | C31: VSF12, Ungārija | D31: nav
A32: 23 | B32: Rūpniecības ielas - Pulkv.O.Kalpaka ielas krust. | C32: VSF12, Ungārija | D32: nav
A33: 24 | B33: Rūpniecības ielas gājēju pāreja | C33: VTC1040, Ungārija | D33: nav
A34: 25 | B34: Rūpniecības ielas - Tērvetes ielas krust. | C34: VSF12, Ungārija | D34: nav
A35: 26 | B35: Rūpniecības ielas - Filozofu ielas krust. | C35: VTC2000, Ungārija | D35: 2014-05-30
A36: 27 | B36: Rūpniecības ielas - Dambja ielas krust. | C36: VTC2000, Ungārija | D36: 2014-05-30
A37: 28 | B37: Pasta ielas - Stacijas ielas krust. gājēju pāreja | C37: VTC1040, Ungārija | D37: nav
A38: 29 | B38: Stacijas ielas gājēju pāreja | C38: GE "Fanuc", Japāna | D38: nav
A39: 30 | B39: Zemgales prospekta gājēju pāreja | C39: VTC1040, Ungārija | D39: nav
A41: 31 | B41: Lietuvas šosejas - Miera ielas krust. | C41: VSF12, Ungārija | D41: nav
A42: 32 | B42: Meiju ceļa - Satiksmes ielas krust. | C42: VSF12, Ungārija | D42: nav
A44: 33 | B44: Tērvetes ielas - Raiņa ielas krust. | C44: EC-2, Nīderlande | D44: notiek rekonstrukcijas darbi
A46: 34 | B46: Raiņa ielas - Pulkv.O.Kalpaka krust. | C46: EC-2, Nīderlande | D46: notiek rekonstrukcijas darbi[3]
A48: 35 | B48: Rīgas ielas - Brīvības bulvāra krust. | C48: VTC2000, Ungārija | D48: 2014-05-30
A50: 36 | B50: Rīgas ielas - Kalnciema ceļa krust. | C50: VTC2000, Ungārija | D50: nav
A52: 37 | B52: Brīvības bulvāra - Garozas ielas krust. | C52: VTC2000, Ungārija | D52: 2014-05-30
A54: 38 | B54: Brīvības bulvāra - Lāčplēša ielas krust. | C54: VTC2000, Ungārija | D54: 2014-05-30
A56: 39 | B56: Rīgas ielas - Izstādes ielas krust. | C56: VTC1080, | D56: nav
C57: Ungārija
A58: 40 | B58: Rīgas ielas - Institūta ielas krust. | C58: VTC2012, | D58: nav
C59: Ungārija
A60: 41 | B60: Rīgas ielas - Strazdu ielas krust. | C60: VSF12, | D60: nav
C61: Ungārija
A62: 42 | B62: Rīgas ielas - Pērnavas ielas krust. | C62: VSF12, | D62: nav
C63: Ungārija
A64: 43 | B64: Rīgas ielas - Loka maģistrāles krust. | C64: VSF12, | D64: nav
C65: Ungārija
A66: 44 | B66: Rīgas ielas -„Keramika” krust. | C66: VSF6, | D66: nav
C67: Ungārija
A68: 45 | B68: Dobeles-Pasta-Blaumaņa ielu krust. | C68: EC-2, Nīderlande | D68: 2013-08-31
A70: 46 | B70: Dobeles šosejas - 5.līnijas krust. | C70: EC-2, Nīderlande | D70: 2014-11-07

Sheet 15
E1: Uzskatam, ka mērijumi tiek uzņemti ik pa stundai
A2: Enerģijas patēriņa pārskats
A3: Klients | B3: xxxx xxxxx
A4: Adrese | B4: Alkšņu iela 36, Jelgava
A5: Periods | B5: 13 Marts 2024
A6: Detalizācija | B6: H
A8: 13 Marts 2024
A9: Laiks | B9: Kopā (A+)
A10: 13.03.2024 00:00 - 01:00 | B10: 0.566
A11: 13.03.2024 01:00 - 02:00 | B11: 0.339
A12: 13.03.2024 02:00 - 03:00 | B12: 0.188
A13: 13.03.2024 03:00 - 04:00 | B13: 0.186
A14: 13.03.2024 04:00 - 05:00 | B14: 0.201
A15: 13.03.2024 05:00 - 06:00 | B15: 0.257
A16: 13.03.2024 06:00 - 07:00 | B16: 0.257
A17: 13.03.2024 07:00 - 08:00 | B17: 0.405
A18: 13.03.2024 08:00 - 09:00 | B18: 0.162
A19: 13.03.2024 09:00 - 10:00 | B19: 0.247
A20: 13.03.2024 10:00 - 11:00 | B20: 0.199
A21: 13.03.2024 11:00 - 12:00 | B21: 0.175
A22: 13.03.2024 12:00 - 13:00 | B22: 0.156
A23: 13.03.2024 13:00 - 14:00 | B23: 0.178
A24: 13.03.2024 14:00 - 15:00 | B24: 0.204
A25: 13.03.2024 15:00 - 16:00 | B25: 0.252
A26: 13.03.2024 16:00 - 17:00 | B26: 0.221
A27: 13.03.2024 17:00 - 18:00 | B27: 0.301
A28: 13.03.2024 18:00 - 19:00 | B28: 1.446
A29: 13.03.2024 19:00 - 20:00 | B29: 1.384
A30: 13.03.2024 20:00 - 21:00 | B30: 0.784
A31: 13.03.2024 21:00 - 22:00 | B31: 0.759
A32: 13.03.2024 22:00 - 23:00 | B32: 0.669
A33: 13.03.2024 23:00 - 00:00 | B33: 0.524
A35: Kopā par periodu | B35: 10.06
A37: Patēriņa datu pārskats par konkrēto periodu

Sheet 16

Sheet 17
G1: Jānodrošina datu drošība
A2: Atbrīvotie SIA "Mītavas Elektra" darbinieki 1996.gadā
A3: N.p.k. | B3: Vārds, uzvārds | C3: Personas kods | D3: Nostrādātais laiks
A4: 1. | B4: Aigars Pampe | C4: 070369 - 10017 | D4: 17.10.1996.-17.10.1996.
A5: 2. | B5: Inese Jegorova | C5: 131160 - 10052 | D5: 17.10.1996.-17.10.1996.
A6: 3. | B6: Jānis Leilands | C6: 190638 - 10044 | D6: 17.10.1996.-18.10.1996.
A7: 4. | B7: Laimonis Sturmovičs | C7: 250438 - 10056 | D7: 17.10.1996.-18.10.1996.
A8: 5. | B8: Hendrihs Šostaks | C8: 131049 - 10088 | D8: 17.10.1996.-22.10.1996.
A9: 6. | B9: Inta Sedola | C9: 100756 - 10014 | D9: 17.10.1996.-28.10.1996.
A10: 7. | B10: Gunārs Freimanis | C10: 120137 - 10035 | D10: 17.10.1996.-31.10.1996.
A11: 8. | B11: Aldis Neibergs | C11: 130859 - 11500 | D11: 17.10.1996.-20.11.1996.
A12: 9. | B12: Ināra Peka | C12: 251047 - 10009 | D12: 17.10.1996.-28.12.1996.
A13: Atbrīvotie SIA "Mītavas Elektra" darbinieki 1997.gadā
A14: N.p.k. | B14: Vārds, uzvārds | C14: Personas kods | D14: Nostrādātais laiks
A15: 1. | B15: Nikolajs Jerjomenko | C15: 090750 - 10010 | D15: 17.10.1996.-06.05.1997.
A16: 2. | B16: Vitālijs Bogdanovs | C16: 100560 - 10005 | D16: 17.10.1996.-17.07.1997.
A17: 3. | B17: Gunārs Sīlītis | C17: 240149 - 10010 | D17: 17.10.1996.-30.07.1997.
A18: 4. | B18: Juris Alksnis | C18: 231152 - 11812 | D18: 28.07.1997.-01.09.1997.
A19: 5. | B19: Aleksandrs Bunkus | C19: 090250 - 12207 | D19: 21.10.1996.-30.09.1997. | E19: (1955.g. ?)
A20: 6. | B20: Jeremejs Bogdanovs | C20: 070538 - 10034 | D20: 17.10.1996.-10.10.1997.
A21: 7. | B21: Arnis Ginters | C21: 160270 - 10054 | D21: 15.09.1997.-21.10.1997.
A22: 8. | B22: Juris Čakšs | C22: 130367 - 10008 | D22: 01.09.1997.-22.09.1997.
A23: Atbrīvotie SIA "Mītavas Elektra" darbinieki 1998.gadā
A24: N.p.k. | B24: Vārds, uzvārds | C24: Personas kods | D24: Nostrādātais laiks
A25: 1. | B25: Arnis Ģigulis | C25: 210942 - 10036 | D25: 15.07.1997.-18.03.1998.
A26: 2. | B26: Viktors Ničiporovičs | C26: 211063 - 10027 | D26: 07.10.1997.-26.03.1998.
A27: 3. | B27: Jānis Kustikovs | C27: 100683 - 10114 | D27: 04.05.1987.-18.05.1998.
A28: 4. | B28: Visvaldis Grandavs | C28: 130741 - 10011 | D28: 01.04.1998.-22.05.1998.
A29: 5. | B29: Jānis Špillers | C29: 221047 - 10048 | D29: 04.05.1998.-28.05.1998.
A30: 6. | B30: Eduards Leoho | C30: 080754 - 10001 | D30: 21.10.1996.-12.06.1998.
A31: 7. | B31: Edvīns Geidāns | C31: 190262 - 10007 | D31: 02.12.1997.-18.06.1998.
A32: 8. | B32: Ainārs Vecmuktāns | C32: 150160 - 10038 | D32: 02.01.1998.-29.07.1998.
A33: 9. | B33: Jānis Cinītis | C33: 280954 - 10015 | D33: 01.10.1997.-03.09.1998.
A34: Atbrīvotie SIA "Mītavas Elektra" darbinieki 1999.gadā
A35: N.p.k. | B35: Vārds, uzvārds | C35: Personas kods | D35: Nostrādātais laiks
A36: 1. | B36: Mareks Rozenbergs | C36: 010580 - 10020 | D36: 02.11.1998.-08.01.1999.
A37: 2. | B37: Artis Lazdāns | C37: 170863 - 10027 | D37: 23.03.1998.-18.03.1999.
A38: 3. | B38: Donāts Čerpinskis | C38: 280342 - 10079 | D38: 01.11.1996.-06.04.1999.
A39: 4. | B39: Arnods Kaļķis | C39: 211227 - 10052 | D39: 01.04.1998.-13.04.1999.
A40: 5. | B40: Alfrēds Ginters | C40: 020943 - 10017 | D40: 01.02.1999.-31.05.1999.
A41: 6. | B41: Uldis Krēķis | C41: 101263 - 10012 | D41: 19.10.1998.-14.07.1999.
A42: 7. | B42: Gints Vagalis | C42: 230364 - 10039 | D42: 29.10.1997.-29.04.1999.
A43: 8. | B43: Kazimirs Burneika | C43: 151161 - 12058 | D43: 23.03.1999.-04.08.1999.
A44: 9. | B44: Alberts Prātnieks | C44: 020843 - 10005 | D44: 17.10.1996.-31.08.1999.
A45: 10. | B45: Antons Naglis | C45: 070249 - 10044 | D45: 22.07.1999.-20.10.1999.
A46: 11. | B46: Genādijs Gavrilovs | C46: 120739 - 10078 | D46: 19.07.1999.-24.11.1999.
A47: 12. | B47: Ivans Jakovļevs | C47: 290644 - 10022 | D47: 20.10.1999.-25.10.1999.
A48: 13. | B48: Andris Pūpols | C48: 290156 - 10020 | D48: 04.05.1998.-24.12.1999.
A49: Atbrīvotie SIA "Mītavas Elektra" darbinieki 2000.gadā
A50: N.p.k. | B50: Vārds, uzvārds | C50: Personas kods | D50: Nostrādātais laiks
A51: 1. | B51: Jānis Silinēvičs | C51: 120157 - 10020 | D51: 18.05.1998.-31.03.2000.
A52: 2. | B52: Jānis Irbe | C52: 170166 - 10016 | D52: 15.05.2000.-16.06.2000.
A53: 3. | B53: Gints Trēvičs - Petrovičs | C53: 250472 - 10023 | D53: 11.01.1999.-04.07.2000.
A54: 4. | B54: Jevgēnijs Smirnovs | C54: 040475 - 10058 | D54: 04.04.2000.-04.07.2000.
A55: 5. | B55: Staņislavs Keišs | C55: 020336 - 10024 | D55: 01.08.2000.-09.08.2000.
A56: 6. | B56: Konstantīns Krivoručko | C56: 260663 - 10032 | D56: 01.08.2000.-22.08.2000.
A57: 7. | B57: Atūrs Ginters | C57: 030982 - 10018 | D57: 03.07.2000.-25.08.2000.
A58: 8. | B58: Daiga Ozoliņa | C58: 090860 - 10008 | D58: 01.08.2000.-31.08.2000.
A59: 9. | B59: Aleksandrs Burcevs | C59: 300859 - 10000 | D59: 01.08.2000.-31.08.2000.
A60: 10. | B60: Pēteris Burcevs | C60: 110753 - 10008 | D60: 01.08.2000.-11.09.2000.
A61: 11. | B61: Vasīlijs Krivoručko | C61: 100638 - 10035 | D61: 01.08.2000.-11.09.2000.
A62: 12. | B62: Marina Umbraško | C62: 080261 - 10010 | D62: 01.08.2000.-29.09.2000.
A63: 13. | B63: Nataļja Sorokina | C63: 130674 - 10016 | D63: 01.08.2000.-29.09.2000.
A64: 14. | B64: Larisa Golubova | C64: 080174 - 10003 | D64: 01.08.2000.-29.08.2000.
A65: 15. | B65: Svetlana Buša | C65: 051275 - 10036 | D65: 01.08.2000.-29.09.2000.
A66: 16. | B66: Uļjana Barkauskiene | C66: 010152 - 10057 | D66: 01.08.2000.-29.08.2000.
A67: 17. | B67: Janīna Ņikuļina | C67: 200240 - 10026 | D67: 01.08.2000.-16.10.2000.
A68: 18. | B68: Jānis Kalvāns | C68: 020345 - 10009 | D68: 17.10.19996.-23.10.2000.
A69: 19. | B69: Agris Rumbēns | C69: 030557 - 10004 | D69: 11.03.1998.-07.11.2000.
A70: 20. | B70: Ināra Bagdzeviča | C70: 301170 - 10008 | D70: 02.10.2000.-30.11.2000.
A71: 21. | B71: Tamāra Salmiņa | C71: 080660 - 10006 | D71: 04.09.2000.-30.11.2000.
A72: Atbrīvotie SIA "Mītavas Elektra" darbinieki 2001.gadā
A73: N.p.k. | B73: Vārds, uzvārds | C73: Personas kods | D73: Nostrādātais laiks
A74: 1. | B74: Inese Romanovska | C74: 030176 - 12569 | D74: 21.09.2000.-02.01.2001.
A75: 2. | B75: Evita Valdmane | C75: 160773 - 10020 | D75: 01.09.2000.-05.01.2001.
A76: 3. | B76: Kristīna Jazimenko | C76: 100578 - 10071 | D76: 07.11.2000.-05.01.2001.
A77: 4. | B77: Klems Leščinskis | C77: 031148 - 10014 | D77: 02.01.1998.-31.01.2001.
A78: 5. | B78: Nataļja Verzuna | C78: 080470 - 10094 | D78: 01.08.2000.-05.02.2001.
A79: 6. | B79: Irina Kozina | C79: 150251 - 10006 | D79: 03.01.2001.-28.02.2001.
A80: 7. | B80: Svetlana Rotastikova | C80: 031265 - 10035 | D80: 01.08.2000.-20.03.2001.
A81: 8. | B81: Arnis Ģigulis | C81: 210942 - 10036 | D81: 28.08.2000.-26.03.2001.
A82: 9. | B82: Ina Lemza | C82: 281276 - 12210 | D82: 15.02.2001.-06.04.2001.
A83: 10. | B83: Arnis Ginters | C83: 160270 - 10054 | D83: 07.11.2000.-08.06.2001.
A84: 11. | B84: Roberts Dzalbe | C84: 170345 - 10027 | D84: 04.06.2001.-02.07.2001.
A85: 12. | B85: Everita Koka | C85: 030278 - 11019 | D85: 05.10.2000.-27.07.2001.
A86: 13. | B86: Broņus Pamarnacks | C86: 160547 - 10005 | D86: 02.-1.1998.-31.07.2001.
A87: 14. | B87: Andrejs Semjonovs | C87: 280177 - 10012 | D87: 06.07.2000.-02.08.2001.
A88: 15. | B88: Dainis Mihailovs | C88: 081163 - 10032 | D88: 02.07.2001.-10.08.2001.
A89: 16. | B89: Ivans Gaļeckis | C89: 310584 - 10005 | D89: 19.06.2001.-18.09.2001.
A90: 17. | B90: Oļegs Gaļeckis | C90: 020682 - 10012 | D90: 08.03.2001.-01.10.2001.
A91: 18. | B91: Andris Pūpols | C91: 290156 - 10020 | D91: 01.09.2000.-02.10.2001.
A92: 19. | B92: Jurijs Redins | C92: 081263 - 10028 | D92: 07.08.2001.-02.11.2001.
A93: 20. | B93: Valērijs Vasiļjevs | C93: 060370 - 10024 | D93: 07.05.2001.-03.12.2001.
A94: 21. | B94: Ruslans Vasiļjevs | C94: 220583 - 10050 | D94: 02.07.2001.-14.12.2001.
A95: 22. | B95: Agnese Vāne | C95: 190475 - 10033 | D95: 02.07.2001.-28.12.2001.
A96: 23. | B96: Marina Kovaļevska | C96: 170862 - 10018 | D96: 01.08.2000.-28.12.2001.
A97: Atbrīvotie SIA "Mītavas Elektra" darbinieki 2002.gadā
A98: N.p.k. | B98: Vārds, uzvārds | C98: Personas kods | D98: Nostrādātais laiks
A99: 1. | B99: Mareks Bundzinskis | C99: 101179 - 10024 | D99: 25.06.1998.-08.01.2002.
A100: 2. | B100: Aigars Circenis | C100: 091069 - 10012 | D100: 27.10.1998.-18.01.2002.
A101: 3. | B101: Iraīda Smirnova | C101: 261262 - 10018 | D101: 01.08.200.-31.01.2002.
A102: 4. | B102: Tatjana Ņefedoviča | C102: 011069 - 10016 | D102: 01.08.2000.-31.01.2002.
A103: 5. | B103: Ina Lemza | C103: 281276 - 12210 | D103: 17.04.2001.-31.01.2002.
A104: 6. | B104: Jānis Čakšs | C104: 260544 - 10036 | D104: 21.10.1996.-05.03.2002.
A105: 7. | B105: Anita Hendzele | C105: 100875 - 10037 | D105: 01.08.2000.-19.03.2002.
A106: 8. | B106: Arnis Pētersons | C106: 260944 - 10006 | D106: 04.03.2002.-08.04.2002.
A107: 9. | B107: Jānis Kolbenkovs | C107: 010450 - 10005 | D107: 02.04.2002.-03.05.2002.
A108: 10. | B108: Ivars Ovsjanko | C108: 240954 - 10009 | D108: 01.11.2000.-13.05.2002.
A109: 11. | B109: Daiga Kalniņa | C109: 100477 - 10026 | D109: 22.02.2002.-31.05.2002.
A110: 12. | B110: Inta Snahovska | C110: 271145 - 10042 | D110: 01.12.1999.-31.05.2002.
A111: 13. | B111: Jāzeps Šmats | C111: 280552 - 10000 | D111: 20.03.2002.-29.07.2002.
A112: 14. | B112: Atis Neilands | C112: 221080 - 10057 | D112: 16.11.2000.-14.08.2002.
A113: 15. | B113: Uldis Apsītis | C113: 090881 - 10053 | D113: 18.06.2001.-23.08.2002.
A114: 16. | B114: Ilze Pētersone | C114: 190778 - 12518 | D114: 01.11.2001.-27.08.2002.
A115: 17. | B115: Dace Apsīte | C115: 031175 - 10023 | D115: 03.09.2001.-06.09.2002.
A116: 18. | B116: Oļegs Andiņš | C116: 150471 - 10007 | D116: 25.07.2002.-10.09.2002.
A117: 19. | B117: Aleksejs Babuls | C117: 300383 - 10002 | D117: 11.07.2002.-11.09.2002.
A118: 20. | B118: Zigmārs Vaivods | C118: 150581 - 10010 | D118: 02.07.2001.-23.09.2002.
A119: 21. | B119: Viktors Ogņevs | C119: 310872 - 10029 | D119: 26.03.2002.-24.09.2002.
A120: 22. | B120: Tīna Pavilēna | C120: 280482 - 10010 | D120: 02.09.2002.-23.10.2002.
A121: 23. | B121: Ivans Gaļeckis | C121: 310584 - 10005 | D121: 06.06.2002.-07.10.2002.
A122: 24. | B122: Inga Bumbiere | C122: 170580 - 10051 | D122: 12.09.2002.-07.10.2002.
A123: 25. | B123: Andris Popovs | C123: 310884 - 10049 | D123: 04.09.2002.-14.10.2002.
A124: 26. | B124: Imants Bojārs | C124: 111048 - 10010 | D124: 01.11.2001.-23.10.2002.
A125: 27. | B125: Sanita Kindzule | C125: 220571 - 10014 | D125: 04.02.2002.-01.11.2002.
A126: 28. | B126: Boriss Brištens | C126: 080283 - 10032 | D126: 23.08.2002.-05.11.2002.
A127: 29. | B127: Aleksandrs Timahovičs | C127: 190883 - 10003 | D127: 12.08.2002.-11.11.2002.
A128: 30. | B128: Kārlis Šuķevics | C128: 240753 - 10019 | D128: 03.09.2002.-29.11.2002.
A129: Atbrīvotie SIA "Mītavas Elektra" darbinieki 2003.gadā
A130: N.p.k. | B130: Vārds, uzvārds | C130: Personas kods | D130: Nostrādātais laiks
A131: 1. | B131: Irēna Reinberga | C131: 220933 - 12203 | D131: 11.11.2002.-02.01.2003.
A132: 2. | B132: Inta Snahovska | C132: 271145 -10042 | D132: 11.11.2002.-02.01.2003.
A133: 3. | B133: Agris Maskovskis | C133: 110272 - 10002 | D133: 01.11.2002.-10.01.2003.
A134: 4. | B134: Gunita Žebrovska | C134: 280273 - 10004 | D134: 07.10.2002.-10.04.2003.
A135: 5. | B135: Elmārs Bajārs | C135: 060359 - 10512 | D135: 01.07.2002.-09.05.2003.
A136: 6. | B136: Viktors Simkins | C136: 081185 - 10011 | D136: 21.07.2003.-04.08.2003.
A137: 7. | B137: Aleksandrs Daņiļčenko | C137: 150985 - 10035 | D137: 03.07.2003.-29.08.2003.
A138: 8. | B138: Lilija Vilne | C138: 240140 - 10039 | D138: 01.08.2000.-29.08.2003.
A139: 9. | B139: Mikus Feldmanis | C139: 140777 - 10025 | D139: 19.02.2003.-08.09.2003.
A140: 10. | B140: Pēteris Vēliņš | C140: 280263 - 10061 | D140: 01.06.2001.-17.10.2003.
A141: 11. | B141: Jānis Brūveris | C141: 170942 - 10042 | D141: 03.04.2000.-28.10.2003.
A142: 12. | B142: Agita Briede | C142: 260565 - 10030 | D142: 14.10.2002.-28.10.2003.
A143: 13. | B143: Andrejs Kļonovs | C143: 070782 0 10019 | D143: 03.06.2003.-05.11.2003.
A144: 14. | B144: Mihails Ločmelis | C144: 180559 - 10008 | D144: 18.06.2002.-12.12.2003.
A145: 15. | B145: Arnis Vērmels | C145: 121058 - 10009 | D145: 11.11.1997.-24.12.2003.
A146: 16. | B146: Andra Austere-Maspāne | C146: 260737 - 10325 | D146: 01.07.2003.-30.12.2003.
A147: Atbrīvotie SIA "Mītavas Elektra" darbinieki 2004.gadā
A148: N.p.k. | B148: Vārds, uzvārds | C148: Personas kods | D148: Nostrādātais laiks
A149: 1. | B149: Janošeks Tomass | C149: 160568 - 10026 | D149: 10.04.2003.-10.02.2004.
A150: 2. | B150: Jānis Bušmanis | C150: 100742 - 10000 | D150: 17.10.1996.-11.03.2004.
A151: 3. | B151: Rasma Švarca | C151: 180878 - 10036 | D151: 18.06.2003.-19.03.2004.
A152: 4. | B152: Igors Grīva | C152: 210668 - 10018 | D152: 01.10.2003.- 25.03.2004.
A153: 5. | B153: Nikolajs Trivoženkovs | C153: 121064 - 12053 | D153: 18.03.2003.-31.03.2004.
A154: 6. | B154: Irēna Reinberga | C154: 220933 - 12203 | D154: 01.07.2003.-05.05.2004.
A155: 7. | B155: Svetlana Čuhina | C155: 070969 - 10000 | D155: 01.08.2000.-12.05.2004.
A156: 8. | B156: Deniss Gromovs | C156: 140784 - 12222 | D156: 28.07.2003.-31.05.2004.
A157: 9. | B157: Gurams Pauļskis | C157: 210183 - 10008 | D157: 02.09.2002.-31.05.2004.
A158: 10. | B158: Reinis Reinholds | C158: 080281 - 12378 | D158: 12.08.2002.-18.06.2004.
A159: 11. | B159: Māris Embergs | C159: 190975 - 10007 | D159: 26.09.2003.-19.07.2004.
A160: 12. | B160: Daiga Varblāne | C160: 310366 - 10014 | D160: 04.09.2002.-11.08.2004.
A161: 13. | B161: Mihails Obidins | C161: 011281 - 10006 | D161: 02.08.2004.30.08.2004.
A162: 14. | B162: Jāzeps Šmats | C162: 280552 - 10000 | D162: 10.09.2002.-30.08.2004.
A163: 15. | B163: Lidija Paņuškina | C163: 040441 - 10032 | D163: 01.08.2000.-31.08.2004.
A164: 16. | B164: Aleksandrs Daņiļčenko | C164: 150985 - 10035 | D164: 01.07.2004.- 31.08.2004.
A165: 17. | B165: Elmārs Bajārs | C165: 060359 - 10512 | D165: 02.08.2004.-17.09.2004.
A166: 19. | B166: Aleksejs Kudrjavcevs | C166: 111153 - 10409 | D166: 19.07.2004.-17.09.2004.
A167: 21. | B167: Mihails Obidins | C167: 021281 - 10006 | D167: 01.09.2004.-30.092004.
A168: 22. | B168: Zoja Pjatņica | C168: 060171 - 10036 | D168: 01.08.2000.-30.09.2004.
A169: 23. | B169: Ieva Lase-Puidīte | C169: 220276 - 10018 | D169: 18.09.2000.-12.11.2004.
A170: 24. | B170: Vladimirs Štikovs | C170: 090557 - 10028 | D170: 10.08.2004.-12.11.2004.
A171: 25. | B171: Lauris Siliņš | C171: 100983 - 10014 | D171: 27.09.2004.-15.11.2004.
A172: 26. | B172: Didzis Zariņš | C172: 300970 - 10042 | D172: 11.11.2004.-23.11.2004.
A173: 27. | B173: Agris Rumbēns | C173: 030557 - 10004 | D173: 13.04.2004.-30.12.2004.
A174: Atbrīvotie SIA "Mītavas Elektra" darbinieki 2005.gadā
A175: N.p.k. | B175: Vārds, uzvārds | C175: Personas kods | D175: Nostrādātais laiks
A176: 1. | B176: Igors Popovs | C176: 030954 - 10129 | D176: 23.04.2003.-14.01.2005.
A177: 2. | B177: Gatis Iejavs | C177: 110679 - 10011 | D177: 16.08.2004.-13.01.2005.
A178: 3. | B178: Ēriks Vēveris | C178: 251053 - 10023 | D178: 22.09.2004.-18.01.2005.
A179: 4. | B179: Andris Līberts | C179: 120180 - 10011 | D179: 03.12.2001.-31.01.2005.
A180: 5. | B180: Juris Tabaks | C180: 160855 - 10030 | D180: 01.09.2004.-03.02.2005.
A181: 6. | B181: Marina Lazdovska | C181: 290976 - 10058 | D181: 10.11.2004.-09.02.2005.
A182: 7. | B182: Valija Biruta Mankova | C182: 070531 - 10011 | D182: 01.07.2003.-01.03.2005.
A183: 8. | B183: Anatolijs Aļeksejevs | C183: 220357 - 10086 | D183: 18.06.2001.-18.03.2005.
A184: 9. | B184: Aleksejs Babuls | C184: 300383 - 10002 | D184: 18.08.2003.-18.03.2005.
A185: 10. | B185: Guntis Agafonovs | C185: 010581 - 10005 | D185: 11.08.2004.-21.03.2005.
A186: 11. | B186: Aleksadrs Timahovičs | C186: 190883 - 10003 | D186: 08.04.2003.-15.04.2005.
A187: 12. | B187: Bite Jānis | C187: 070167 - 10069 | D187: 17.01.2005.-15.04.2005.
A188: 13. | B188: Voldemārs Dombrovskis | C188: 210948 - 10007 | D188: 16.08.2004.-15.04.2005.
A189: 14. | B189: Armīns Liepiņš | C189: 170943 - 10000 | D189: 17.10.1996.-29.04.2005.
A190: 15. | B190: Rihards Helvigs | C190: 290777 - 10000 | D190: 11.08.2004.-09.05.2005.
A191: 16. | B191: Imants Apsītis | C191: 270358 - 10047 | D191: 26.07.1999.-10.05.2005.
A192: 17. | B192: Vitālijs Fedotovs | C192: 040784 - 10025 | D192: 01.07.2004.-23.05.2005.
A193: 19. | B193: Oļegs Kuzmins | C193: 010584 - 10032 | D193: 12.11.2004.-02.06.2005.
A194: 21. | B194: Jāzeps Upenieks | C194: 201138 - 10068 | D194: 02.02.2005.-02.06.2005.
A195: 22. | B195: Uldis Beinārs | C195: 180368 - 10001 | D195: 16.08.2004.-17.06.2005.
A196: 23. | B196: Jānis Rozenvalds | C196: 020669 - 10007 | D196: 18.01.2005.-04.07.2005.
A197: 24. | B197: Valdis Upenieks | C197: 020260 - 10020 | D197: 01.08.1997.-28.07.2005.
A198: 25. | B198: Gunārs Imants Kraulis | C198: 180137 - 10024 | D198: 05.01.2004.-01.08.2005.
A199: 26. | B199: Aleksandrs Daņiļčenko | C199: 150985 - 10035 | D199: 28.06.2005.-31.08.2005.
A200: 27. | B200: Anatolijs Čekunovs | C200: 140460 - 10018 | D200: 04.07.2005.-15.09.2005.
... 99 more rows

Sheet 18
A1: SIA „Mītavas Elektra” darbinieku
A2: darba līgumu saraksts
A3: Nr. p.k. | B3: Uzvārds, vārds | C3: Amats | D3: Personas kods | E3: Līguma Nr. | F3: Pieņemts darbā | G3: Atbrīvots
A4: 1 | B4: 2 | C4: 3 | D4: 4 | E4: 5 | F4: 6 | G4: 7
A5: 2002. gads
A6: 1. | B6: Snahovska Inta | C6: Pārdevēja veikalā | D6: 271145-10042 | E6: Nr.9/2002 | F6: 11.11.2002.
E7: Nr.80/2006 | F7: 07.08.2006.
E8: Nr.3/2009 | F8: 2009-01-05
A9: 2. | B9: Juberts Agris | C9: 6.kat. elektromontieris | D9: 180944-10006 | E9: Nr.14/2002 | F9: 28.11.2002.
A11: 3. | B11: Šveņķis Jānis | C11: 5.kat. metinātājs, atslēdznieks | D11: 170666-10030 | E11: Nr.17/2002 | F11: 28.11.2002.
A12: 4. | B12: Antāns Arnolds | C12: 5.kat. elektomontieris | D12: 191150-10007 | E12: Nr.20/2002 | F12: 28.11.2002.
A14: 5. | B14: Bērziņš Arvīds | C14: 5.kat. elektomontieris | D14: 120556-10008 | E14: Nr.25/2002 | F14: 28.11.2002.
A16: 6. | B16: Vecmuktāns Ainārs | C16: Darbu vadītājs | D16: 150160-10038 | E16: Nr.31/2002 | F16: 29.11.2002.
A18: 7. | B18: Reinbergs Agris | C18: Sagādes daļas vadītājs | D18: 270775-10077 | E18: Nr.32/2002 | F18: 29.11.2002.
A19: 8. | B19: Gapličniks Jāzeps | C19: Meh.darbnīcu inženieris | D19: 220144-10025 | E19: Nr.33/2002 | F19: 29.11.2002.
A20: 2003.gads
A21: 9. | B21: Viducis Guntis | C21: 3.kat. elektroatslēdznieks | D21: 100483-10032 | E21: Nr.40/2003 | F21: 28.05.2003.
A23: 10. | B23: Zemskovs Viktors | C23: 4.kat. autoatslēdznieks | D23: 140644-10031 | E23: Nr.51/2003 | F23: 01.10.2003.
A25: 2005.gads
A26: 11. | B26: Spuris Raimonds | C26: Projektu vadītājs | D26: 170234-10047 | E26: Nr.34/2005 | F26: 10.01.2005.
A27: 12. | B27: Līberts Ilmārs | C27: 3.kat. elektroatslēdznieks | D27: 150849-10003 | E27: Nr.40/2005 | F27: 01.02.2005.
A28: 13. | B28: Baumeistars Aivars | C28: Darbu vadītājs | D28: 270653-10027 | E28: Nr.52/2005 | F28: 23.05.2005.
A29: 14. | B29: Ugarovs Nikolajs | C29: 2.kat. elektroiekārtu montētājs | D29: 091171-10037 | E29: Nr.53/2005 | F29: 15.06.2005.
A30: 2006.gads
A31: 15. | B31: Vēze Gunta | C31: Grāmatvede | D31: 240263-10012 | E31: Nr.75/2006 | F31: 01.03.2006.
A32: 2007.gads
A33: 16. | B33: Bite Ēriks | C33: 3.kat. elektroatslēdznieks | D33: 140961-10017 | E33: Nr.89/2007 | F33: 02.04.2007.
A35: 17. | B35: Troickis Jānis | C35: Darba aizsardzības inženieris | D35: 160642-10020 | E35: Nr.93/2007 | F35: 18.07.2007.
A37: 18. | B37: Jonaite Jeļena | C37: Sargs | D37: 131140-10024 | E37: Nr.98/2007 | F37: 17.09.2007.
A38: 2008.gads
A39: 19. | B39: Golubovska Aija | C39: Tāmju inženieris | D39: 220487-11109 | E39: Nr.8/2008 | F39: 25.06.2008.
E40: Nr.12/2008 | F40: 01.08.2008.
E41: Nr.2/2009 | F41: 05.01.2008.
A42: 20. | B42: Golubovskis Mārtiņš | C42: 3.kat. elektomontieris | D42: 020186-11088 | E42: Nr.15/2008 | F42: 02.12.2008.
A44: 21. | B44: Grunde-Zeiferts Uldis | C44: Luksoforu iekārtu inženieris | D44: 040270-12086 | E44: Nr.16/2008 | F44: 15.12.2008.
A46: 22. | B46: Šandro Andrejs | C46: Luksoforu iekārtu mehāniķis | D46: 040373-10028 | E46: Nr.17/2008 | F46: 16.12.2008.
A48: 2009.gads
A49: 23. | B49: Balodis Guntis | C49: Pārdevējs veikalā | D49: 120757-12511 | E49: Nr.1/2009 | F49: 05.01.2009.
A50: 24. | B50: Keiša Maruta | C50: Sargs | D50: 191144-10017 | E50: Nr.5/2009 | F50: 01.07.2009.
A51: 25. | B51: Trencis Dzintars | C51: 2.kat. elektomontieris | D51: 290372-11012 | E51: Nr.8/2009 | F51: 21.09.2009.
A53: 26. | B53: Gucaļenko Anatolijs | C53: 3.kat. elektomontieris | D53: 290457-10006 | E53: Nr.9/2009 | F53: 01.10.2009.
A55: 2010.gads
A56: 27. | B56: Juris Grīnofs | C56: Strādnieks | D56: 230541-10005 | E56: Nr.1/2010 | F56: 01.02.2010.
A57: 28. | B57: Reinbergs Uldis | C57: Tehniskais konsultants | D57: 290154-10029 | E57: Nr.2/2010 | F57: 18.02.2010.
A59: 29. | B59: Šņoriņš Dainis | C59: Traktortehnikas vadītājs | D59: 210558-10004 | E59: Nr.3/2010 | F59: 12.04.2010.

Sheet 19
A1: Automašīna: Nissan hv2000
A2: Numurzīme :HZ994 | L2: ADRESES nedalām!
A3: Autovadītājs:xxxxxxxz xxxx
A4: Laiks | C4: Brauk- šanas laiks | D4: Stāvē- šanas laiks | E4: Maršruts | G4: Nobrauktie km | H4: Odometra rād. | J4: Vidējais ātrums km/h | K4: Maksimālais ātrums km/h
A5: Sākot | B5: Beidzot | E5: no | F5: līdz | H5: sākumā | I5: beigās
A6: 2018-01-02T07:46:00 | B6: 2018-01-02T07:58:00 | C6: 12 min | D6: 1 h, 3 min | E6: Aveņu iela 37, Jelgava | F6: Pulkveža Oskara Kalpaka iela 37B, Jelgava | G6: 4.5 | H6: 102365.3 | I6: 102369.8 | J6: 23 | K6: 52
A7: 2018-01-02T09:02:00 | B7: 2018-01-02T09:04:00 | C7: 2 min, 13 sek | D7: 27 min | E7: Pulkveža Oskara Kalpaka iela 37B, Jelgava | F7: Vaļņu iela 8, Jelgava | G7: 1 | H7: 102369.8 | I7: 102370.8 | J7: 26 | K7: 50
A8: 2018-01-02T09:31:00 | B8: 2018-01-02T09:34:00 | C8: 2 min, 38 sek | D8: 4 min | E8: Vaļņu iela 8, Jelgava | F8: Svētes iela 23, Jelgava | G8: 0.7 | H8: 102370.8 | I8: 102371.5 | J8: 12 | K8: 27
A9: 2018-01-02T09:38:00 | B9: 2018-01-02T10:10:00 | C9: 32 min | D9: 55 min | E9: Svētes iela 23, Jelgava | F9: Pētera iela 23A, Jelgava | G9: 14.8 | H9: 102371.5 | I9: 102386.3 | J9: 24 | K9: 51
A10: 2018-01-02T11:06:00 | B10: 2018-01-02T11:21:00 | C10: 15 min | D10: 9 min | E10: Pētera iela 23A, Jelgava | F10: Vaļņu iela 8, Jelgava | G10: 5.8 | H10: 102386.3 | I10: 102392 | J10: 18 | K10: 46
A11: 2018-01-02T11:31:00 | B11: 2018-01-02T11:37:00 | C11: 5 min | D11: 1 h, 5 min | E11: Vaļņu iela 8, Jelgava | F11: Krišjāņa Barona iela 5, Jelgava | G11: 1.8 | H11: 102392.1 | I11: 102393.9 | J11: 23 | K11: 42
A12: 2018-01-02T12:42:00 | B12: 2018-01-02T12:46:00 | C12: 3 min | D12: 1 h, 42 min | E12: Krišjāņa Barona iela 5, Jelgava | F12: Pētera iela 23A, Jelgava | G12: 1.1 | H12: 102393.9 | I12: 102395 | J12: 12 | K12: 45
A13: 2018-01-02T14:28:00 | B13: 2018-01-02T14:31:00 | C13: 2 min, 28 sek | D13: 11 min | E13: Pētera iela 23A, Jelgava | F13: Raiņa iela 11A, Jelgava | G13: 0.6 | H13: 102395 | I13: 102395.6 | J13: 19 | K13: 39
A14: 2018-01-02T14:42:00 | B14: 2018-01-02T14:44:00 | C14: 2 min, 49 sek | D14: 1 h, 7 min | E14: Raiņa iela 11A, Jelgava | F14: Vaļņu iela 8, Jelgava | G14: 0.7 | H14: 102395.6 | I14: 102396.3 | J14: 11 | K14: 33
A15: 2018-01-02T15:52:00 | B15: 2018-01-02T16:13:00 | C15: 21 min | D15: 6 min | E15: Vaļņu iela 8, Jelgava | F15: Zemgales prospekts 12, Jelgava | G15: 12.9 | H15: 102396.3 | I15: 102409.2 | J15: 33 | K15: 60
A16: 2018-01-02T16:20:00 | B16: 2018-01-02T16:22:00 | C16: 2 min, 46 sek | D16: 27 min | E16: Zemgales prospekts 12, Jelgava | F16: Pētera iela 23A, Jelgava | G16: 1 | H16: 102409.2 | I16: 102410.2 | J16: 18 | K16: 45
A17: 2018-01-02T16:50:00 | B17: 2018-01-02T16:54:00 | C17: 4 min | D17: 9 min | E17: Pētera iela 23A, Jelgava | F17: Pasta iela 37, Jelgava | G17: 1.1 | H17: 102410.2 | I17: 102411.3 | J17: 14 | K17: 36
A18: 2018-01-02T17:04:00 | B18: 2018-01-02T17:08:00 | C18: 4 min | D18: 34 min | E18: Pasta iela 37, Jelgava | F18: Krišjāņa Barona iela 10, Jelgava | G18: 0.9 | H18: 102411.3 | I18: 102412.2 | J18: 9 | K18: 43
A19: 2018-01-02T17:43:00 | B19: 2018-01-02T17:50:00 | C19: 7 min | D19: 21 min | E19: Krišjāņa Barona iela 10, Jelgava | F19: Lielā iela 6, Jelgava | G19: 2.8 | H19: 102412.2 | I19: 102415 | J19: 20 | K19: 48
A20: 2018-01-02T18:11:00 | B20: 2018-01-02T18:14:00 | C20: 2 min, 45 sek | D20: 18 h, 35 min | E20: Lielā iela 6, Jelgava | F20: Krišjāņa Barona iela 10, Jelgava | G20: 0.9 | H20: 102415 | I20: 102415.9 | J20: 16 | K20: 45
A21: 2018-01-03T12:50:00 | B21: 2018-01-03T12:53:00 | C21: 3 min | D21: 49 min | E21: Krišjāņa Barona iela 10, Jelgava | F21: Pētera iela 23A, Jelgava | G21: 1 | H21: 102415.9 | I21: 102416.9 | J21: 16 | K21: 33
A22: 2018-01-03T13:43:00 | B22: 2018-01-03T13:52:00 | C22: 9 min | D22: 2 min, 6 sek | E22: Pētera iela 23A, Jelgava | F22: Rīgas iela 67, Jelgava | G22: 4.8 | H22: 102416.9 | I22: 102421.7 | J22: 26 | K22: 50
A23: 2018-01-03T13:55:00 | B23: 2018-01-03T14:01:00 | C23: 6 min | D23: 7 min | E23: Rīgas iela 67, Jelgava | F23: Rīgas iela 20A, Jelgava | G23: 3.3 | H23: 102421.7 | I23: 102425 | J23: 28 | K23: 45
A24: 2018-01-03T14:09:00 | B24: 2018-01-03T14:21:00 | C24: 12 min | D24: 6 min | E24: Rīgas iela 20A, Jelgava | F24: Dobeles šoseja 90, Jelgava | G24: 6.6 | H24: 102425 | I24: 102431.6 | J24: 30 | K24: 63
A25: 2018-01-03T14:27:00 | B25: 2018-01-03T14:49:00 | C25: 21 min | D25: 16 h, 51 min | E25: Dobeles šoseja 90, Jelgava | F25: Pētera iela 23A, Jelgava | G25: 11.3 | H25: 102431.6 | I25: 102442.9 | J25: 29 | K25: 60
A26: 2018-01-04T07:40:00 | B26: 2018-01-04T07:42:00 | C26: 1 min, 19 sek | D26: 1 min, 8 sek | E26: Pētera iela 23A, Jelgava | F26: Lielā iela 16, Jelgava | G26: 0.3 | H26: 102442.9 | I26: 102443.2 | J26: 10 | K26: 19
A27: 2018-01-04T07:43:00 | B27: 2018-01-04T07:46:00 | C27: 3 min | D27: 1 h, 7 min | E27: Lielā iela 16, Jelgava | F27: Vaļņu iela 7, Jelgava | G27: 0.8 | H27: 102443.2 | I27: 102443.9 | J27: 14 | K27: 36
A28: 2018-01-04T08:54:00 | B28: 2018-01-04T09:01:00 | C28: 7 min | D28: 9 min | E28: Vaļņu iela 7, Jelgava | F28: Mātera iela 74, Jelgava | G28: 3.4 | H28: 102444 | I28: 102447.4 | J28: 23 | K28: 43
A29: 2018-01-04T09:11:00 | B29: 2018-01-04T09:17:00 | C29: 6 min | D29: 6 min | E29: Mātera iela 74, Jelgava | F29: Uzvaras iela 4A, Jelgava | G29: 2 | H29: 102447.4 | I29: 102449.4 | J29: 18 | K29: 39
A30: 2018-01-04T09:23:00 | B30: 2018-01-04T09:53:00 | C30: 29 min | D30: 8 min | E30: Uzvaras iela 4A, Jelgava | F30: Kristapa Helmaņa iela 1, Jelgava | G30: 15.3 | H30: 102449.4 | I30: 102464.7 | J30: 29 | K30: 61
A31: 2018-01-04T10:01:00 | B31: 2018-01-04T10:10:00 | C31: 8 min | D31: 8 min | E31: Kristapa Helmaņa iela 1, Jelgava | F31: Meiju ceļš 10, Jelgava | G31: 4.5 | H31: 102464.7 | I31: 102469.2 | J31: 29 | K31: 49
A32: 2018-01-04T10:18:00 | B32: 2018-01-04T10:22:00 | C32: 3 min | D32: 8 min | E32: Meiju ceļš 10, Jelgava | F32: Krišjāņa Barona iela 10, Jelgava | G32: 1.6 | H32: 102469.2 | I32: 102470.8 | J32: 23 | K32: 42
A33: 2018-01-04T10:31:00 | B33: 2018-01-04T10:36:00 | C33: 5 min | D33: 56 min | E33: Krišjāņa Barona iela 10, Jelgava | F33: Pētera iela 23A, Jelgava | G33: 1.8 | H33: 102470.8 | I33: 102472.6 | J33: 17 | K33: 39
A34: 2018-01-04T11:33:00 | B34: 2018-01-04T11:39:00 | C34: 5 min | D34: 2 h, 15 min | E34: Pētera iela 23A, Jelgava | F34: Krišjāņa Barona iela 3, Jelgava | G34: 1.9 | H34: 102472.6 | I34: 102474.5 | J34: 17 | K34: 39
A35: 2018-01-04T13:54:00 | B35: 2018-01-04T13:59:00 | C35: 4 min | D35: 21 min | E35: Krišjāņa Barona iela 3, Jelgava | F35: Pētera iela 23A, Jelgava | G35: 1.2 | H35: 102474.5 | I35: 102475.7 | J35: 13 | K35: 41
A36: 2018-01-04T14:20:00 | B36: 2018-01-04T14:23:00 | C36: 3 min | D36: 1 h, 11 min | E36: Pētera iela 23A, Jelgava | F36: Raiņa iela 11, Jelgava | G36: 0.8 | H36: 102475.7 | I36: 102476.5 | J36: 12 | K36: 32
A37: 2018-01-04T15:35:00 | B37: 2018-01-04T15:38:00 | C37: 3 min | D37: 41 min | E37: Raiņa iela 11, Jelgava | F37: Vaļņu iela 8, Jelgava | G37: 0.9 | H37: 102476.5 | I37: 102477.3 | J37: 12 | K37: 40
A38: 2018-01-04T16:19:00 | B38: 2018-01-04T16:26:00 | C38: 6 min | D38: 15 h, 10 min | E38: Vaļņu iela 8, Jelgava | F38: Krišjāņa Barona iela 10, Jelgava | G38: 1.7 | H38: 102477.4 | I38: 102479.1 | J38: 21 | K38: 37
A39: 2018-01-05T07:36:00 | B39: 2018-01-05T07:37:00 | C39: 56 sek | D39: 6 min | E39: Krišjāņa Barona iela 10, Jelgava | F39: Pasta iela 35A, Jelgava | G39: 0.1 | H39: 102479.1 | I39: 102479.2 | J39: 6 | K39: 9
A40: 2018-01-05T07:44:00 | B40: 2018-01-05T07:52:00 | C40: 8 min | D40: 1 h, 35 min | E40: Pasta iela 35A, Jelgava | F40: Vaļņu iela 7, Jelgava | G40: 3.1 | H40: 102479.2 | I40: 102482.3 | J40: 18 | K40: 46
A41: 2018-01-05T09:28:00 | B41: 2018-01-05T10:07:00 | C41: 38 min | D41: 5 min | E41: Vaļņu iela 7, Jelgava | F41: Lietuvas šoseja 52, Jelgava | G41: 21.2 | H41: 102482.3 | I41: 102503.5 | J41: 31 | K41: 61
A42: 2018-01-05T10:12:00 | B42: 2018-01-05T10:14:00 | C42: 2 min | D42: 6 min | E42: Lietuvas šoseja 52, Jelgava | F42: Platones iela 2, Jelgava | G42: 0.8 | H42: 102503.5 | I42: 102504.2 | J42: 18 | K42: 37
A43: 2018-01-05T10:20:00 | B43: 2018-01-05T10:32:00 | C43: 11 min | D43: 1 h, 37 min | E43: Platones iela 2, Jelgava | F43: Pētera iela 23A, Jelgava | G43: 4.5 | H43: 102504.3 | I43: 102508.8 | J43: 23 | K43: 47
A44: 2018-01-05T12:10:00 | B44: 2018-01-05T12:16:00 | C44: 6 min | D44: 1 h, 5 min | E44: Pētera iela 23A, Jelgava | F44: Krišjāņa Barona iela 10, Jelgava | G44: 1.8 | H44: 102508.8 | I44: 102510.6 | J44: 14 | K44: 36
A45: 2018-01-05T13:22:00 | B45: 2018-01-05T13:28:00 | C45: 5 min | D45: 8 min | E45: Krišjāņa Barona iela 10, Jelgava | F45: Mātera iela 74, Jelgava | G45: 2.8 | H45: 102510.6 | I45: 102513.3 | J45: 26 | K45: 52
A46: 2018-01-05T13:37:00 | B46: 2018-01-05T13:39:00 | C46: 2 min, 9 sek | D46: 4 min | E46: Mātera iela 74, Jelgava | F46: Vaļņu iela 8, Jelgava | G46: 0.9 | H46: 102513.4 | I46: 102514.2 | J46: 22 | K46: 31
A47: 2018-01-05T13:43:00 | B47: 2018-01-05T13:48:00 | C47: 5 min | D47: 6 min | E47: Vaļņu iela 8, Jelgava | F47: Aveņu iela 37, Jelgava | G47: 2.2 | H47: 102514.3 | I47: 102516.5 | J47: 27 | K47: 54
A48: 2018-01-05T13:54:00 | B48: 2018-01-05T14:03:00 | C48: 8 min | D48: 2 min, 3 sek | E48: Aveņu iela 37, Jelgava | F48: Pasta iela 33, Jelgava | G48: 3.5 | H48: 102516.5 | I48: 102519.9 | J48: 24 | K48: 54
A49: 2018-01-05T14:05:00 | B49: 2018-01-05T14:08:00 | C49: 2 min, 56 sek | D49: 14 min | E49: Pasta iela 33, Jelgava | F49: Vaļņu iela 8, Jelgava | G49: 1.1 | H49: 102520 | I49: 102521 | J49: 21 | K49: 43
A50: 2018-01-05T14:22:00 | B50: 2018-01-05T14:26:00 | C50: 3 min | D50: 15 min | E50: Vaļņu iela 8, Jelgava | F50: Lielā iela 9, Jelgava | G50: 1.4 | H50: 102521.1 | I50: 102522.5 | J50: 25 | K50: 47
A51: 2018-01-05T14:41:00 | B51: 2018-01-05T14:46:00 | C51: 4 min | D51: 6 min | E51: Lielā iela 9, Jelgava | F51: Oļu iela 1, Jelgava | G51: 2.5 | H51: 102522.5 | I51: 102525 | J51: 32 | K51: 50
A52: 2018-01-05T14:52:00 | B52: 2018-01-05T14:56:00 | C52: 4 min | D52: 3 min | E52: Oļu iela 1, Jelgava | F52: Rīgas iela 57A, Jelgava | G52: 2 | H52: 102525 | I52: 102527 | J52: 23 | K52: 45
A53: 2018-01-05T15:00:00 | B53: 2018-01-05T15:03:00 | C53: 2 min, 57 sek | D53: 1 h, 9 min | E53: Rīgas iela 57A, Jelgava | F53: Rīgas iela 20C, Jelgava | G53: 1.3 | H53: 102527 | I53: 102528.3 | J53: 25 | K53: 49
A54: 2018-01-05T16:13:00 | B54: 2018-01-05T16:26:00 | C54: 13 min | D54: 27 min | E54: Rīgas iela 20C, Jelgava | F54: Rūpniecības iela 20D, Jelgava | G54: 5.5 | H54: 102528.3 | I54: 102533.8 | J54: 22 | K54: 56
A55: 2018-01-05T16:54:00 | B55: 2018-01-05T16:59:00 | C55: 5 min | D55: 20 h, 13 min | E55: Rūpniecības iela 20D, Jelgava | F55: Aveņu iela 37, Jelgava | G55: 2.3 | H55: 102533.8 | I55: 102536.1 | J55: 26 | K55: 46
A56: 2018-01-06T13:13:00 | B56: 2018-01-06T13:16:00 | C56: 3 min | D56: 5 min | E56: Aveņu iela 37, Jelgava | F56: Zemgales prospekts 10, Jelgava | G56: 2 | H56: 102536.1 | I56: 102538 | J56: 28 | K56: 51
A57: 2018-01-06T13:22:00 | B57: 2018-01-06T13:29:00 | C57: 6 min | D57: 6 min | E57: Zemgales prospekts 10, Jelgava | F57: Rīgas iela 20C, Jelgava | G57: 2.7 | H57: 102538.1 | I57: 102540.8 | J57: 25 | K57: 50
A58: 2018-01-06T13:35:00 | B58: 2018-01-06T13:46:00 | C58: 10 min | D58: 4 min | E58: Rīgas iela 20C, Jelgava | F58: Rūpniecības iela 22A, Jelgava | G58: 4.9 | H58: 102540.8 | I58: 102545.7 | J58: 27 | K58: 51
A59: 2018-01-06T13:50:00 | B59: 2018-01-06T13:53:00 | C59: 2 min, 28 sek | D59: 5 min | E59: Rūpniecības iela 22A, Jelgava | F59: Rūpniecības iela 11B, Jelgava | G59: 1.1 | H59: 102545.7 | I59: 102546.8 | J59: 25 | K59: 46
A60: 2018-01-06T13:58:00 | B60: 2018-01-06T14:01:00 | C60: 2 min, 59 sek | D60: 14 min | E60: Rūpniecības iela 11B, Jelgava | F60: Vaļņu iela 4, Jelgava | G60: 0.9 | H60: 102546.8 | I60: 102547.6 | J60: 17 | K60: 43
A61: 2018-01-06T14:15:00 | B61: 2018-01-06T14:17:00 | C61: 2 min, 8 sek | D61: 26 min | E61: Vaļņu iela 4, Jelgava | F61: Zemgales prospekts 10, Jelgava | G61: 0.9 | H61: 102547.7 | I61: 102548.6 | J61: 22 | K61: 41
A62: 2018-01-06T14:44:00 | B62: 2018-01-06T14:49:00 | C62: 4 min | D62: 7 min | E62: Zemgales prospekts 10, Jelgava | F62: Lapu iela 8, Jelgava | G62: 2.1 | H62: 102548.6 | I62: 102550.7 | J62: 26 | K62: 54
A63: 2018-01-06T14:56:00 | B63: 2018-01-06T14:58:00 | C63: 2 min, 51 sek | D63: 6 h, 36 min | E63: Lapu iela 8, Jelgava | F63: Aveņu iela 8, Jelgava | G63: 1.5 | H63: 102550.7 | I63: 102551.9 | J63: 24 | K63: 36
A64: 2018-01-06T21:35:00 | B64: 2018-01-06T21:43:00 | C64: 7 min | D64: 3 min | E64: Aveņu iela 8, Jelgava | F64: Dobeles iela 42, Jelgava | G64: 3.6 | H64: 102552.2 | I64: 102555.8 | J64: 26 | K64: 56
A65: 2018-01-06T21:46:00 | B65: 2018-01-06T21:52:00 | C65: 5 min | D65: 4 min | E65: Dobeles iela 42, Jelgava | F65: Dobeles šoseja 90, Jelgava | G65: 3.4 | H65: 102555.8 | I65: 102559.2 | J65: 35 | K65: 54
A66: 2018-01-06T21:57:00 | B66: 2018-01-06T22:08:00 | C66: 11 min | D66: 17 h, 19 min | E66: Dobeles šoseja 90, Jelgava | F66: Aveņu iela 37, Jelgava | G66: 6.5 | H66: 102559.2 | I66: 102565.7 | J66: 34 | K66: 56
A67: 2018-01-07T15:27:00 | B67: 2018-01-07T15:36:00 | C67: 9 min | D67: 16 min | E67: Aveņu iela 37, Jelgava | F67: Kronvalda iela 1, Jelgava | G67: 4.3 | H67: 102565.7 | I67: 102570 | J67: 26 | K67: 54
A68: 2018-01-07T15:53:00 | B68: 2018-01-07T16:00:00 | C68: 6 min | D68: 14 min | E68: Kronvalda iela 1, Jelgava | F68: Pasta iela 51 k-5, Jelgava | G68: 2.7 | H68: 102570 | I68: 102572.7 | J68: 23 | K68: 52
A69: 2018-01-07T16:14:00 | B69: 2018-01-07T16:18:00 | C69: 3 min | D69: 16 h, 21 min | E69: Pasta iela 51 k-5, Jelgava | F69: Aveņu iela 37, Jelgava | G69: 1.8 | H69: 102572.7 | I69: 102574.5 | J69: 32 | K69: 49
A70: 2018-01-08T08:39:00 | B70: 2018-01-08T08:47:00 | C70: 7 min | D70: 2 h, 57 min | E70: Aveņu iela 37, Jelgava | F70: Vaļņu iela 7, Jelgava | G70: 3.2 | H70: 102574.5 | I70: 102577.7 | J70: 23 | K70: 49
A71: 2018-01-08T11:44:00 | B71: 2018-01-08T11:49:00 | C71: 4 min | D71: 1 h, 14 min | E71: Vaļņu iela 7, Jelgava | F71: Krišjāņa Barona iela 3, Jelgava | G71: 1.9 | H71: 102577.7 | I71: 102579.6 | J71: 23 | K71: 45
A72: 2018-01-08T13:03:00 | B72: 2018-01-08T13:08:00 | C72: 4 min | D72: 2 h, 12 min | E72: Krišjāņa Barona iela 3, Jelgava | F72: Vaļņu iela 8, Jelgava | G72: 1.1 | H72: 102579.6 | I72: 102580.7 | J72: 16 | K72: 47
A73: 2018-01-08T15:20:00 | B73: 2018-01-08T16:05:00 | C73: 44 min | D73: 34 min | E73: Vaļņu iela 8, Jelgava | F73: Pētera iela 23A, Jelgava | G73: 23.6 | H73: 102580.7 | I73: 102604.3 | J73: 30 | K73: 63
A74: 2018-01-08T16:40:00 | B74: 2018-01-08T16:46:00 | C74: 6 min | D74: 14 h, 48 min | E74: Pētera iela 23A, Jelgava | F74: Krišjāņa Barona iela 3, Jelgava | G74: 1.7 | H74: 102604.3 | I74: 102606 | J74: 13 | K74: 36
A75: 2018-01-09T07:35:00 | B75: 2018-01-09T07:40:00 | C75: 4 min | D75: 57 min | E75: Krišjāņa Barona iela 3, Jelgava | F75: Vaļņu iela 7, Jelgava | G75: 1.2 | H75: 102606 | I75: 102607.2 | J75: 14 | K75: 31
A76: 2018-01-09T08:37:00 | B76: 2018-01-09T08:57:00 | C76: 19 min | D76: 1 min, 33 sek | E76: Vaļņu iela 7, Jelgava | F76: Lielā iela 1, Jelgava | G76: 8.3 | H76: 102607.2 | I76: 102615.4 | J76: 22 | K76: 50
A77: 2018-01-09T08:59:00 | B77: 2018-01-09T09:05:00 | C77: 6 min | D77: 9 min | E77: Lielā iela 1, Jelgava | F77: Kristapa Helmaņa iela 1, Jelgava | G77: 4.4 | H77: 102615.5 | I77: 102619.9 | J77: 38 | K77: 48
A78: 2018-01-09T09:15:00 | B78: 2018-01-09T09:30:00 | C78: 14 min | D78: 1 h, 27 min | E78: Kristapa Helmaņa iela 1, Jelgava | F78: Pētera iela 23A, Jelgava | G78: 6.9 | H78: 102619.9 | I78: 102626.8 | J78: 27 | K78: 42
A79: 2018-01-09T10:57:00 | B79: 2018-01-09T11:06:00 | C79: 8 min | D79: 11 min | E79: Pētera iela 23A, Jelgava | F79: Rūpniecības iela 77A, Jelgava | G79: 3.2 | H79: 102626.8 | I79: 102630 | J79: 19 | K79: 45
A80: 2018-01-09T11:17:00 | B80: 2018-01-09T11:26:00 | C80: 8 min | D80: 1 h, 20 min | E80: Rūpniecības iela 77A, Jelgava | F80: Krišjāņa Barona iela 10, Jelgava | G80: 3.6 | H80: 102630 | I80: 102633.6 | J80: 26 | K80: 47
A81: 2018-01-09T12:46:00 | B81: 2018-01-09T12:49:00 | C81: 2 min, 6 sek | D81: 2 h, 34 min | E81: Krišjāņa Barona iela 10, Jelgava | F81: Pētera iela 23A, Jelgava | G81: 1 | H81: 102633.6 | I81: 102634.6 | J81: 25 | K81: 40
A82: 2018-01-09T15:23:00 | B82: 2018-01-09T15:34:00 | C82: 10 min | D82: 7 min | E82: Pētera iela 23A, Jelgava | F82: Dobeles šoseja 90, Jelgava | G82: 4 | H82: 102634.6 | I82: 102638.6 | J82: 21 | K82: 59
A83: 2018-01-09T15:42:00 | B83: 2018-01-09T15:53:00 | C83: 11 min | D83: 1 h, 3 min | E83: Dobeles šoseja 90, Jelgava | F83: Vaļņu iela 7, Jelgava | G83: 6.1 | H83: 102638.6 | I83: 102644.7 | J83: 32 | K83: 55
A84: 2018-01-09T16:56:00 | B84: 2018-01-09T17:05:00 | C84: 8 min | D84: 14 h, 32 min | E84: Vaļņu iela 7, Jelgava | F84: Krišjāņa Barona iela 5, Jelgava | G84: 2 | H84: 102644.7 | I84: 102646.7 | J84: 12 | K84: 43
A85: 2018-01-10T07:37:00 | B85: 2018-01-10T07:38:00 | C85: 55 sek | D85: 12 min | E85: Krišjāņa Barona iela 5, Jelgava | F85: Pasta iela 35, Jelgava | G85: 0.2 | H85: 102646.7 | I85: 102646.9 | J85: 8 | K85: 9
A86: 2018-01-10T07:51:00 | B86: 2018-01-10T07:59:00 | C86: 8 min | D86: 8 min | E86: Pasta iela 35, Jelgava | F86: Vaļņu iela 7, Jelgava | G86: 3.1 | H86: 102646.9 | I86: 102650 | J86: 20 | K86: 49
A87: 2018-01-10T08:08:00 | B87: 2018-01-10T08:26:00 | C87: 18 min | D87: 1 h, 15 min | E87: Vaļņu iela 7, Jelgava | F87: Vaļņu iela 7, Jelgava | G87: 7.3 | H87: 102650 | I87: 102657.2 | J87: 22 | K87: 45
A88: 2018-01-10T09:41:00 | B88: 2018-01-10T09:44:00 | C88: 3 min | D88: 9 min | E88: Vaļņu iela 7, Jelgava | F88: Pasta iela 37, Jelgava | G88: 1 | H88: 102657.3 | I88: 102658.3 | J88: 16 | K88: 36
A89: 2018-01-10T09:53:00 | B89: 2018-01-10T10:20:00 | C89: 26 min | D89: 1 h, 42 min | E89: Pasta iela 37, Jelgava | F89: Pētera iela 23A, Jelgava | G89: 11.9 | H89: 102658.3 | I89: 102670.2 | J89: 26 | K89: 49
A90: 2018-01-10T12:02:00 | B90: 2018-01-10T12:10:00 | C90: 7 min | D90: 7 min | E90: Pētera iela 23A, Jelgava | F90: Krišjāņa Barona iela 5, Jelgava | G90: 1.8 | H90: 102670.2 | I90: 102672 | J90: 13 | K90: 37
A91: 2018-01-10T12:17:00 | B91: 2018-01-10T12:21:00 | C91: 4 min | D91: 12 min | E91: Krišjāņa Barona iela 5, Jelgava | F91: Satiksmes iela 35, Jelgava | G91: 2 | H91: 102672 | I91: 102674 | J91: 25 | K91: 38
A92: 2018-01-10T12:33:00 | B92: 2018-01-10T12:41:00 | C92: 7 min | D92: 31 min | E92: Satiksmes iela 35, Jelgava | F92: Pētera iela 23A, Jelgava | G92: 3.3 | H92: 102674 | I92: 102677.3 | J92: 22 | K92: 43
A93: 2018-01-10T13:13:00 | B93: 2018-01-10T13:21:00 | C93: 8 min | D93: 1 min, 5 sek | E93: Pētera iela 23A, Jelgava | F93: Lāčplēša iela 6, Jelgava | G93: 3.5 | H93: 102677.3 | I93: 102680.8 | J93: 23 | K93: 45
A94: 2018-01-10T13:22:00 | B94: 2018-01-10T13:40:00 | C94: 17 min | D94: 1 h, 43 min | E94: Lāčplēša iela 6, Jelgava | F94: Pētera iela 23A, Jelgava | G94: 7.5 | H94: 102680.8 | I94: 102688.3 | J94: 23 | K94: 51
A95: 2018-01-10T15:23:00 | B95: 2018-01-10T15:33:00 | C95: 9 min | D95: 1 min, 4 sek | E95: Pētera iela 23A, Jelgava | F95: Akmeņu iela 14A, Jelgava | G95: 3.7 | H95: 102688.3 | I95: 102692 | J95: 20 | K95: 45
A96: 2018-01-10T15:34:00 | B96: 2018-01-10T15:46:00 | C96: 12 min | D96: 3 min | E96: Akmeņu iela 14A, Jelgava | F96: Platones iela 10, Jelgava | G96: 5.3 | H96: 102692 | I96: 102697.3 | J96: 21 | K96: 52
A97: 2018-01-10T15:49:00 | B97: 2018-01-10T15:56:00 | C97: 6 min | D97: 58 min | E97: Platones iela 10, Jelgava | F97: Pētera iela 23A, Jelgava | G97: 2.6 | H97: 102697.3 | I97: 102699.9 | J97: 21 | K97: 46
A98: 2018-01-10T16:55:00 | B98: 2018-01-10T17:03:00 | C98: 8 min | D98: 14 h, 36 min | E98: Pētera iela 23A, Jelgava | F98: Krišjāņa Barona iela 3, Jelgava | G98: 2 | H98: 102699.9 | I98: 102701.9 | J98: 12 | K98: 39
A99: 2018-01-11T07:40:00 | B99: 2018-01-11T07:41:00 | C99: 1 min, 31 sek | D99: 5 min | E99: Krišjāņa Barona iela 3, Jelgava | F99: Pasta iela 35A, Jelgava | G99: 0.2 | H99: 102701.9 | I99: 102702 | J99: 5 | K99: 9
A100: 2018-01-11T07:47:00 | B100: 2018-01-11T07:56:00 | C100: 9 min | D100: 1 h, 24 min | E100: Pasta iela 35A, Jelgava | F100: Vaļņu iela 7, Jelgava | G100: 3.1 | H100: 102702.1 | I100: 102705.2 | J100: 17 | K100: 49
A101: 2018-01-11T09:20:00 | B101: 2018-01-11T09:24:00 | C101: 3 min | D101: 10 min | E101: Vaļņu iela 7, Jelgava | F101: Pasta iela 37, Jelgava | G101: 1 | H101: 102705.2 | I101: 102706.2 | J101: 14 | K101: 38
A102: 2018-01-11T09:34:00 | B102: 2018-01-11T09:56:00 | C102: 21 min | D102: 1 h, 57 min | E102: Pasta iela 37, Jelgava | F102: Pētera iela 23A, Jelgava | G102: 9.5 | H102: 102706.2 | I102: 102715.7 | J102: 24 | K102: 49
A103: 2018-01-11T11:53:00 | B103: 2018-01-11T12:03:00 | C103: 9 min | D103: 4 min | E103: Pētera iela 23A, Jelgava | F103: Dobeles šoseja 90, Jelgava | G103: 4 | H103: 102715.7 | I103: 102719.7 | J103: 24 | K103: 64
A104: 2018-01-11T12:07:00 | B104: 2018-01-11T12:22:00 | C104: 15 min | D104: 1 h, 55 min | E104: Dobeles šoseja 90, Jelgava | F104: Pētera iela 23A, Jelgava | G104: 7.1 | H104: 102719.7 | I104: 102726.8 | J104: 28 | K104: 57
A105: 2018-01-11T14:17:00 | B105: 2018-01-11T14:33:00 | C105: 15 min | D105: 23 min | E105: Pētera iela 23A, Jelgava | F105: Rīgas iela 67, Jelgava | G105: 6.7 | H105: 102726.8 | I105: 102733.5 | J105: 23 | K105: 46
A106: 2018-01-11T14:56:00 | B106: 2018-01-11T15:02:00 | C106: 5 min | D106: 24 min | E106: Rīgas iela 67, Jelgava | F106: Akmeņu iela 14A, Jelgava | G106: 2.7 | H106: 102733.5 | I106: 102736.2 | J106: 28 | K106: 45
A107: 2018-01-11T15:26:00 | B107: 2018-01-11T15:36:00 | C107: 9 min | D107: 17 h, 27 min | E107: Akmeņu iela 14A, Jelgava | F107: Pētera iela 23A, Jelgava | G107: 3.6 | H107: 102736.2 | I107: 102739.8 | J107: 22 | K107: 49
A108: 2018-01-12T09:03:00 | B108: 2018-01-12T09:08:00 | C108: 5 min | D108: 7 min | E108: Pētera iela 23A, Jelgava | F108: Dobeles šoseja 26, Jelgava | G108: 2.1 | H108: 102739.8 | I108: 102741.9 | J108: 23 | K108: 50
A109: 2018-01-12T09:16:00 | B109: 2018-01-12T09:28:00 | C109: 11 min | D109: 16 min | E109: Dobeles šoseja 26, Jelgava | F109: Lietuvas šoseja 50, Jelgava | G109: 7 | H109: 102741.9 | I109: 102748.9 | J109: 32 | K109: 51
A110: 2018-01-12T09:44:00 | B110: 2018-01-12T09:51:00 | C110: 6 min | D110: 1 h, 29 min | E110: Lietuvas šoseja 50, Jelgava | F110: Pētera iela 23A, Jelgava | G110: 3 | H110: 102748.9 | I110: 102751.9 | J110: 25 | K110: 48
A111: 2018-01-12T11:20:00 | B111: 2018-01-12T11:34:00 | C111: 14 min | D111: 51 min | E111: Pētera iela 23A, Jelgava | F111: Krišjāņa Barona iela 3, Jelgava | G111: 7.3 | H111: 102751.9 | I111: 102759.2 | J111: 30 | K111: 48
A112: 2018-01-12T12:25:00 | B112: 2018-01-12T12:27:00 | C112: 1 min, 59 sek | D112: 6 min | E112: Krišjāņa Barona iela 3, Jelgava | F112: Pasta iela 37, Jelgava | G112: 0.4 | H112: 102759.2 | I112: 102759.6 | J112: 12 | K112: 27
A113: 2018-01-12T12:34:00 | B113: 2018-01-12T12:38:00 | C113: 3 min | D113: 1 h, 3 min | E113: Pasta iela 37, Jelgava | F113: Vaļņu iela 8, Jelgava | G113: 1.1 | H113: 102759.6 | I113: 102760.7 | J113: 15 | K113: 32
A114: 2018-01-12T13:41:00 | B114: 2018-01-12T13:46:00 | C114: 5 min | D114: 1 h, 10 min | E114: Vaļņu iela 8, Jelgava | F114: Aveņu iela 37, Jelgava | G114: 2.2 | H114: 102760.7 | I114: 102762.9 | J114: 20 | K114: 46
A115: 2018-01-12T14:57:00 | B115: 2018-01-12T15:02:00 | C115: 5 min | D115: 58 min | E115: Aveņu iela 37, Jelgava | F115: Raiņa iela 17C, Jelgava | G115: 2.9 | H115: 102762.9 | I115: 102765.8 | J115: 28 | K115: 59
A116: 2018-01-12T16:00:00 | B116: 2018-01-12T16:04:00 | C116: 3 min | D116: 16 min | E116: Raiņa iela 17C, Jelgava | F116: Rūpniecības iela 22A, Jelgava | G116: 2 | H116: 102765.8 | I116: 102767.8 | J116: 34 | K116: 57
A117: 2018-01-12T16:20:00 | B117: 2018-01-12T16:24:00 | C117: 4 min | D117: 1 min, 9 sek | E117: Rūpniecības iela 22A, Jelgava | F117: Puķu iela 30, Jelgava | G117: 2.1 | H117: 102767.8 | I117: 102769.9 | J117: 23 | K117: 59
A118: 2018-01-12T16:26:00 | B118: 2018-01-12T16:37:00 | C118: 11 min | D118: 12 min | E118: Puķu iela 30, Jelgava | F118: Aveņu iela 37, Jelgava | G118: 5.2 | H118: 102769.9 | I118: 102775.1 | J118: 24 | K118: 54
A119: 2018-01-12T16:49:00 | B119: 2018-01-12T17:02:00 | C119: 13 min | D119: 2 min, 57 sek | E119: Aveņu iela 37, Jelgava | F119: Oļu iela 1, Jelgava | G119: 5.3 | H119: 102775.1 | I119: 102780.3 | J119: 21 | K119: 51
A120: 2018-01-12T17:05:00 | B120: 2018-01-12T17:10:00 | C120: 5 min | D120: 49 min | E120: Oļu iela 1, Jelgava | F120: Pērnavas iela 4, Jelgava | G120: 1.3 | H120: 102780.4 | I120: 102781.7 | J120: 14 | K120: 32
A121: 2018-01-12T17:59:00 | B121: 2018-01-12T18:02:00 | C121: 3 min | D121: 54 min | E121: Pērnavas iela 4, Jelgava | F121: Rīgas iela 11A, Jelgava | G121: 1.1 | H121: 102781.7 | I121: 102782.8 | J121: 19 | K121: 38
A122: 2018-01-12T18:57:00 | B122: 2018-01-12T19:04:00 | C122: 6 min | D122: 53 min | E122: Rīgas iela 11A, Jelgava | F122: Pasta iela 47, Jelgava | G122: 2.5 | H122: 102782.8 | I122: 102785.3 | J122: 21 | K122: 47
A123: 2018-01-12T19:58:00 | B123: 2018-01-12T19:59:00 | C123: 58 sek | D123: 17 min | E123: Pasta iela 47, Jelgava | F123: Pasta iela 51 k-6, Jelgava | G123: 0.3 | H123: 102785.3 | I123: 102785.6 | J123: 16 | K123: 23
A124: 2018-01-12T20:16:00 | B124: 2018-01-12T20:21:00 | C124: 4 min | D124: 20 h, 32 min | E124: Pasta iela 51 k-6, Jelgava | F124: Aveņu iela 36, Jelgava | G124: 1.8 | H124: 102785.6 | I124: 102787.4 | J124: 20 | K124: 49
A125: 2018-01-13T16:53:00 | B125: 2018-01-13T17:04:00 | C125: 10 min | D125: 33 min | E125: Aveņu iela 36, Jelgava | F125: Miezītes ceļš 17, Jelgava | G125: 5.9 | H125: 102787.4 | I125: 102793.3 | J125: 32 | K125: 52
A126: 2018-01-13T17:37:00 | B126: 2018-01-13T17:47:00 | C126: 9 min | D126: 7 min | E126: Miezītes ceļš 17, Jelgava | F126: Rīgas iela 11A, Jelgava | G126: 5.4 | H126: 102793.3 | I126: 102798.7 | J126: 33 | K126: 61
A127: 2018-01-13T17:54:00 | B127: 2018-01-13T18:04:00 | C127: 10 min | D127: 20 h, 25 min | E127: Rīgas iela 11A, Jelgava | F127: Aveņu iela 37, Jelgava | G127: 4.9 | H127: 102798.7 | I127: 102803.6 | J127: 33 | K127: 54
A128: 2018-01-14T14:30:00 | B128: 2018-01-14T14:41:00 | C128: 10 min | D128: 1 h, 35 min | E128: Aveņu iela 37, Jelgava | F128: Rīgas iela 11A, Jelgava | G128: 4.3 | H128: 102803.6 | I128: 102807.9 | J128: 21 | K128: 56
A129: 2018-01-14T16:17:00 | B129: 2018-01-14T16:23:00 | C129: 6 min | D129: 1 min, 22 sek | E129: Rīgas iela 11A, Jelgava | F129: Lielā iela 11, Jelgava | G129: 2.4 | H129: 102807.9 | I129: 102810.3 | J129: 22 | K129: 47
A130: 2018-01-14T16:24:00 | B130: 2018-01-14T16:29:00 | C130: 4 min | D130: 16 h, 2 min | E130: Lielā iela 11, Jelgava | F130: Aveņu iela 37, Jelgava | G130: 2.5 | H130: 102810.3 | I130: 102812.8 | J130: 35 | K130: 47
A131: 2018-01-15T08:31:00 | B131: 2018-01-15T08:34:00 | C131: 2 min, 52 sek | D131: 3 min | E131: Aveņu iela 37, Jelgava | F131: Platones iela 2, Jelgava | G131: 1.2 | H131: 102812.8 | I131: 102813.9 | J131: 23 | K131: 43
A132: 2018-01-15T08:38:00 | B132: 2018-01-15T08:45:00 | C132: 6 min | D132: 5 min | E132: Platones iela 2, Jelgava | F132: Pētera iela 23A, Jelgava | G132: 2.7 | H132: 102814 | I132: 102816.7 | J132: 19 | K132: 46
A133: 2018-01-15T08:50:00 | B133: 2018-01-15T09:09:00 | C133: 19 min | D133: 11 min | E133: Pētera iela 23A, Jelgava | F133: Rūpniecības iela 11B, Jelgava | G133: 10.2 | H133: 102816.7 | I133: 102826.9 | J133: 30 | K133: 60
A134: 2018-01-15T09:21:00 | B134: 2018-01-15T09:26:00 | C134: 5 min | D134: 5 min | E134: Rūpniecības iela 11B, Jelgava | F134: Raiņa iela 37, Jelgava | G134: 2.1 | H134: 102826.9 | I134: 102829 | J134: 19 | K134: 36
A135: 2018-01-15T09:32:00 | B135: 2018-01-15T09:36:00 | C135: 3 min | D135: 1 min, 21 sek | E135: Raiņa iela 37, Jelgava | F135: Mātera iela 23/25, Jelgava | G135: 1 | H135: 102829 | I135: 102830 | J135: 14 | K135: 36
A136: 2018-01-15T09:37:00 | B136: 2018-01-15T09:38:00 | C136: 43 sek | D136: 2 min, 52 sek | E136: Mātera iela 23/25, Jelgava | F136: Lielā iela 22, Jelgava | G136: 0.2 | H136: 102830 | I136: 102830.2 | J136: 18 | K136: 27
A137: 2018-01-15T09:41:00 | B137: 2018-01-15T09:53:00 | C137: 12 min | D137: 6 min | E137: Lielā iela 22, Jelgava | F137: Filozofu iela 61, Jelgava | G137: 6.2 | H137: 102830.2 | I137: 102836.3 | J137: 28 | K137: 54
A138: 2018-01-15T09:59:00 | B138: 2018-01-15T10:13:00 | C138: 13 min | D138: 5 min | E138: Filozofu iela 61, Jelgava | F138: Rīgas iela 67, Jelgava | G138: 6.2 | H138: 102836.4 | I138: 102842.6 | J138: 28 | K138: 49
A139: 2018-01-15T10:19:00 | B139: 2018-01-15T10:28:00 | C139: 9 min | D139: 37 min | E139: Rīgas iela 67, Jelgava | F139: Pētera iela 23A, Jelgava | G139: 4.7 | H139: 102842.6 | I139: 102847.3 | J139: 28 | K139: 52
A140: 2018-01-15T11:05:00 | B140: 2018-01-15T11:09:00 | C140: 4 min | D140: 16 min | E140: Pētera iela 23A, Jelgava | F140: Pētera iela 23A, Jelgava | G140: 1.3 | H140: 102847.3 | I140: 102848.5 | J140: 15 | K140: 37
A141: 2018-01-15T11:25:00 | B141: 2018-01-15T11:30:00 | C141: 4 min | D141: 1 h, 41 min | E141: Pētera iela 23A, Jelgava | F141: Krišjāņa Barona iela 10, Jelgava | G141: 1.8 | H141: 102848.6 | I141: 102850.4 | J141: 23 | K141: 43
A142: 2018-01-15T13:11:00 | B142: 2018-01-15T13:13:00 | C142: 2 min, 32 sek | D142: 26 min | E142: Krišjāņa Barona iela 10, Jelgava | F142: Pētera iela 23A, Jelgava | G142: 1.1 | H142: 102850.4 | I142: 102851.5 | J142: 25 | K142: 51
A143: 2018-01-15T13:40:00 | B143: 2018-01-15T13:44:00 | C143: 4 min | D143: 4 min | E143: Pētera iela 23A, Jelgava | F143: Lielā iela 40, Jelgava | G143: 1.2 | H143: 102851.5 | I143: 102852.7 | J143: 15 | K143: 38
A144: 2018-01-15T13:49:00 | B144: 2018-01-15T13:54:00 | C144: 4 min | D144: 4 min | E144: Lielā iela 40, Jelgava | F144: Dobeles šoseja 90, Jelgava | G144: 2.9 | H144: 102852.7 | I144: 102855.6 | J144: 36 | K144: 64
A145: 2018-01-15T13:58:00 | B145: 2018-01-15T14:18:00 | C145: 20 min | D145: 53 min | E145: Dobeles šoseja 90, Jelgava | F145: Pētera iela 23A, Jelgava | G145: 10 | H145: 102855.6 | I145: 102865.6 | J145: 28 | K145: 61
A146: 2018-01-15T15:12:00 | B146: 2018-01-15T15:21:00 | C146: 8 min | D146: 1 min, 34 sek | E146: Pētera iela 23A, Jelgava | F146: Akmeņu iela 14A, Jelgava | G146: 3.7 | H146: 102865.6 | I146: 102869.3 | J146: 21 | K146: 45
A147: 2018-01-15T15:22:00 | B147: 2018-01-15T15:40:00 | C147: 17 min | D147: 1 h, 9 min | E147: Akmeņu iela 14A, Jelgava | F147: Vaļņu iela 8, Jelgava | G147: 8.1 | H147: 102869.3 | I147: 102877.4 | J147: 27 | K147: 48
A148: 2018-01-15T16:49:00 | B148: 2018-01-15T16:55:00 | C148: 5 min | D148: 6 h, 10 min | E148: Vaļņu iela 8, Jelgava | F148: Krišjāņa Barona iela 3, Jelgava | G148: 1.9 | H148: 102877.4 | I148: 102879.3 | J148: 18 | K148: 39
A149: 2018-01-15T23:06:00 | B149: 2018-01-15T23:11:00 | C149: 4 min | D149: 9 min | E149: Krišjāņa Barona iela 3, Jelgava | F149: Brīvības bulvāris 1, Jelgava | G149: 1.7 | H149: 102879.3 | I149: 102881 | J149: 19 | K149: 45
A150: 2018-01-15T23:20:00 | B150: 2018-01-15T23:31:00 | C150: 11 min | D150: 3 min | E150: Brīvības bulvāris 1, Jelgava | F150: Ceriņu iela 4, Ozolnieki | G150: 7.3 | H150: 102881 | I150: 102888.3 | J150: 38 | K150: 57
A151: 2018-01-15T23:35:00 | B151: 2018-01-15T23:54:00 | C151: 18 min | D151: 7 h, 36 min | E151: Ceriņu iela 4, Ozolnieki | F151: Krišjāņa Barona iela 10, Jelgava | G151: 11 | H151: 102888.3 | I151: 102899.3 | J151: 33 | K151: 81
A152: 2018-01-16T07:30:00 | B152: 2018-01-16T07:31:00 | C152: 55 sek | D152: 11 min | E152: Krišjāņa Barona iela 10, Jelgava | F152: Pasta iela 35A, Jelgava | G152: 0.1 | H152: 102899.3 | I152: 102899.4 | J152: 5 | K152: 7
A153: 2018-01-16T07:43:00 | B153: 2018-01-16T07:53:00 | C153: 10 min | D153: 17 min | E153: Pasta iela 35A, Jelgava | F153: Pētera iela 23A, Jelgava | G153: 3.4 | H153: 102899.4 | I153: 102902.8 | J153: 18 | K153: 51
A154: 2018-01-16T08:11:00 | B154: 2018-01-16T08:19:00 | C154: 8 min | D154: 19 min | E154: Pētera iela 23A, Jelgava | F154: Dobeles šoseja 90, Jelgava | G154: 4 | H154: 102902.8 | I154: 102906.8 | J154: 29 | K154: 60
A155: 2018-01-16T08:39:00 | B155: 2018-01-16T08:49:00 | C155: 10 min | D155: 3 h, 18 min | E155: Dobeles šoseja 90, Jelgava | F155: Pētera iela 23A, Jelgava | G155: 5.1 | H155: 102906.8 | I155: 102911.8 | J155: 28 | K155: 61
A156: 2018-01-16T12:07:00 | B156: 2018-01-16T12:12:00 | C156: 4 min | D156: 29 min | E156: Pētera iela 23A, Jelgava | F156: Krišjāņa Barona iela 10, Jelgava | G156: 1.8 | H156: 102911.9 | I156: 102913.7 | J156: 18 | K156: 36
A157: 2018-01-16T12:42:00 | B157: 2018-01-16T12:45:00 | C157: 2 min, 44 sek | D157: 1 h, 36 min | E157: Krišjāņa Barona iela 10, Jelgava | F157: Pētera iela 23A, Jelgava | G157: 1 | H157: 102913.7 | I157: 102914.7 | J157: 13 | K157: 36
A158: 2018-01-16T14:21:00 | B158: 2018-01-16T14:29:00 | C158: 8 min | D158: 3 min | E158: Pētera iela 23A, Jelgava | F158: Garozas iela 24A, Jelgava | G158: 3.1 | H158: 102914.7 | I158: 102917.8 | J158: 20 | K158: 46
A159: 2018-01-16T14:33:00 | B159: 2018-01-16T14:34:00 | C159: 48 sek | D159: 4 min | E159: Garozas iela 24A, Jelgava | F159: Austrumu iela 2A, Jelgava | G159: 0.2 | H159: 102917.8 | I159: 102918 | J159: 13 | K159: 20
A160: 2018-01-16T14:38:00 | B160: 2018-01-16T14:45:00 | C160: 6 min | D160: 7 min | E160: Austrumu iela 2A, Jelgava | F160: Rīgas iela 67, Jelgava | G160: 2.4 | H160: 102918 | I160: 102920.4 | J160: 18 | K160: 45
A161: 2018-01-16T14:52:00 | B161: 2018-01-16T15:13:00 | C161: 20 min | D161: 1 h, 39 min | E161: Rīgas iela 67, Jelgava | F161: Pētera iela 23A, Jelgava | G161: 9.9 | H161: 102920.4 | I161: 102930.3 | J161: 28 | K161: 49
A162: 2018-01-16T16:52:00 | B162: 2018-01-16T17:14:00 | C162: 21 min | D162: 4 h, 49 min | E162: Pētera iela 23A, Jelgava | F162: Krišjāņa Barona iela 10, Jelgava | G162: 8.6 | H162: 102930.3 | I162: 102938.8 | J162: 21 | K162: 46
A163: 2018-01-16T22:03:00 | B163: 2018-01-16T22:09:00 | C163: 5 min | D163: 15 min | E163: Krišjāņa Barona iela 10, Jelgava | F163: Zemgales prospekts 19A, Jelgava | G163: 1.9 | H163: 102938.9 | I163: 102940.8 | J163: 20 | K163: 43
A164: 2018-01-16T22:25:00 | B164: 2018-01-16T22:30:00 | C164: 4 min | D164: 9 h, 8 min | E164: Zemgales prospekts 19A, Jelgava | F164: Krišjāņa Barona iela 10, Jelgava | G164: 1.8 | H164: 102940.8 | I164: 102942.6 | J164: 21 | K164: 42
A165: 2018-01-17T07:38:00 | B165: 2018-01-17T07:39:00 | C165: 50 sek | D165: 5 min | E165: Krišjāņa Barona iela 10, Jelgava | F165: Pasta iela 35A, Jelgava | G165: 0.2 | H165: 102942.6 | I165: 102942.7 | J165: 6 | K165: 9
A166: 2018-01-17T07:45:00 | B166: 2018-01-17T08:02:00 | C166: 16 min | D166: 10 min | E166: Pasta iela 35A, Jelgava | F166: Rūpniecības iela 114, Jelgava | G166: 4.9 | H166: 102942.8 | I166: 102947.7 | J166: 17 | K166: 45
A167: 2018-01-17T08:13:00 | B167: 2018-01-17T08:18:00 | C167: 5 min | D167: 6 min | E167: Rūpniecības iela 114, Jelgava | F167: Vaļņu iela 7, Jelgava | G167: 2.1 | H167: 102947.7 | I167: 102949.8 | J167: 18 | K167: 39
A168: 2018-01-17T08:25:00 | B168: 2018-01-17T08:35:00 | C168: 10 min | D168: 6 min | E168: Vaļņu iela 7, Jelgava | F168: Pētera iela 23A, Jelgava | G168: 3.7 | H168: 102949.8 | I168: 102953.5 | J168: 19 | K168: 42
A169: 2018-01-17T08:42:00 | B169: 2018-01-17T08:50:00 | C169: 8 min | D169: 11 min | E169: Pētera iela 23A, Jelgava | F169: Dobeles šoseja 90, Jelgava | G169: 4 | H169: 102953.5 | I169: 102957.5 | J169: 27 | K169: 64
A170: 2018-01-17T09:01:00 | B170: 2018-01-17T09:14:00 | C170: 12 min | D170: 26 min | E170: Dobeles šoseja 90, Jelgava | F170: Pētera iela 23A, Jelgava | G170: 5.5 | H170: 102957.5 | I170: 102962.9 | J170: 25 | K170: 57
A171: 2018-01-17T09:40:00 | B171: 2018-01-17T09:50:00 | C171: 10 min | D171: 1 min, 10 sek | E171: Pētera iela 23A, Jelgava | F171: Zemgales prospekts 12, Jelgava | G171: 3.5 | H171: 102963 | I171: 102966.5 | J171: 20 | K171: 43
A172: 2018-01-17T09:51:00 | B172: 2018-01-17T09:58:00 | C172: 6 min | D172: 8 min | E172: Zemgales prospekts 12, Jelgava | F172: Rūpniecības iela 77B, Jelgava | G172: 3.1 | H172: 102966.5 | I172: 102969.6 | J172: 26 | K172: 48
A173: 2018-01-17T10:07:00 | B173: 2018-01-17T10:21:00 | C173: 13 min | D173: 11 min | E173: Rūpniecības iela 77B, Jelgava | F173: Rīgas iela 67, Jelgava | G173: 6.6 | H173: 102969.6 | I173: 102976.2 | J173: 27 | K173: 54
A174: 2018-01-17T10:32:00 | B174: 2018-01-17T10:42:00 | C174: 10 min | D174: 1 h, 15 min | E174: Rīgas iela 67, Jelgava | F174: Pētera iela 23A, Jelgava | G174: 4.6 | H174: 102976.2 | I174: 102980.8 | J174: 26 | K174: 49
A175: 2018-01-17T11:58:00 | B175: 2018-01-17T12:05:00 | C175: 6 min | D175: 41 min | E175: Pētera iela 23A, Jelgava | F175: Lielā iela 8, Jelgava | G175: 2 | H175: 102980.8 | I175: 102982.8 | J175: 15 | K175: 39
A176: 2018-01-17T12:46:00 | B176: 2018-01-17T12:53:00 | C176: 6 min | D176: 18 min | E176: Lielā iela 8, Jelgava | F176: Tērvetes iela 70, Jelgava | G176: 3.2 | H176: 102982.8 | I176: 102986 | J176: 27 | K176: 49
A177: 2018-01-17T13:11:00 | B177: 2018-01-17T13:23:00 | C177: 12 min | D177: 7 min | E177: Tērvetes iela 70, Jelgava | F177: Rīgas iela 20A, Jelgava | G177: 5.2 | H177: 102986 | I177: 102991.2 | J177: 24 | K177: 48
A178: 2018-01-17T13:31:00 | B178: 2018-01-17T13:34:00 | C178: 2 min, 48 sek | D178: 4 min | E178: Rīgas iela 20A, Jelgava | F178: Akmeņu iela 12, Jelgava | G178: 1 | H178: 102991.2 | I178: 102992.2 | J178: 13 | K178: 36
A179: 2018-01-17T13:38:00 | B179: 2018-01-17T13:50:00 | C179: 12 min | D179: 9 min | E179: Akmeņu iela 12, Jelgava | F179: Platones iela 2, Jelgava | G179: 5.4 | H179: 102992.2 | I179: 102997.6 | J179: 22 | K179: 49
A180: 2018-01-17T14:00:00 | B180: 2018-01-17T14:09:00 | C180: 8 min | D180: 7 min | E180: Platones iela 2, Jelgava | F180: Pasta iela 37, Jelgava | G180: 3.2 | H180: 102997.6 | I180: 103000.8 | J180: 22 | K180: 51
A181: 2018-01-17T14:16:00 | B181: 2018-01-17T14:20:00 | C181: 3 min | D181: 1 h, 23 min | E181: Pasta iela 37, Jelgava | F181: Pētera iela 23A, Jelgava | G181: 1.1 | H181: 103000.8 | I181: 103001.9 | J181: 14 | K181: 38
A182: 2018-01-17T15:43:00 | B182: 2018-01-17T16:05:00 | C182: 21 min | D182: 49 min | E182: Pētera iela 23A, Jelgava | F182: Vaļņu iela 8, Jelgava | G182: 11.1 | H182: 103001.9 | I182: 103013 | J182: 29 | K182: 58
A183: 2018-01-17T16:55:00 | B183: 2018-01-17T17:00:00 | C183: 5 min | D183: 5 min | E183: Vaļņu iela 8, Jelgava | F183: Pasta iela 37, Jelgava | G183: 1.1 | H183: 103013 | I183: 103014.1 | J183: 9 | K183: 34
A184: 2018-01-17T17:06:00 | B184: 2018-01-17T17:11:00 | C184: 5 min | D184: 14 h, 28 min | E184: Pasta iela 37, Jelgava | F184: Krišjāņa Barona iela 3, Jelgava | G184: 0.9 | H184: 103014.1 | I184: 103014.9 | J184: 8 | K184: 36
A185: 2018-01-18T07:39:00 | B185: 2018-01-18T07:41:00 | C185: 2 min | D185: 11 min | E185: Krišjāņa Barona iela 3, Jelgava | F185: Pasta iela 35A, Jelgava | G185: 0.1 | H185: 103015 | I185: 103015.1 | J185: 4 | K185: 7
A186: 2018-01-18T07:52:00 | B186: 2018-01-18T08:03:00 | C186: 10 min | D186: 1 h, 6 min | E186: Pasta iela 35A, Jelgava | F186: Vaļņu iela 7, Jelgava | G186: 3.5 | H186: 103015.1 | I186: 103018.6 | J186: 14 | K186: 40
A187: 2018-01-18T09:10:00 | B187: 2018-01-18T09:20:00 | C187: 10 min | D187: 11 min | E187: Vaļņu iela 7, Jelgava | F187: Rīgas iela 67, Jelgava | G187: 4.8 | H187: 103018.6 | I187: 103023.4 | J187: 29 | K187: 50
A188: 2018-01-18T09:31:00 | B188: 2018-01-18T09:37:00 | C188: 5 min | D188: 1 min, 1 sek | E188: Rīgas iela 67, Jelgava | F188: Lielā iela 6A, Jelgava | G188: 3.3 | H188: 103023.4 | I188: 103026.7 | J188: 37 | K188: 46
A189: 2018-01-18T09:38:00 | B189: 2018-01-18T10:02:00 | C189: 24 min | D189: 1 h, 36 min | E189: Lielā iela 6A, Jelgava | F189: Pētera iela 23A, Jelgava | G189: 12.4 | H189: 103026.7 | I189: 103039.1 | J189: 30 | K189: 56
A190: 2018-01-18T11:39:00 | B190: 2018-01-18T11:44:00 | C190: 5 min | D190: 1 h, 54 min | E190: Pētera iela 23A, Jelgava | F190: Krišjāņa Barona iela 10, Jelgava | G190: 1.7 | H190: 103039.1 | I190: 103040.8 | J190: 17 | K190: 38
A191: 2018-01-18T13:39:00 | B191: 2018-01-18T13:43:00 | C191: 4 min | D191: 16 min | E191: Krišjāņa Barona iela 10, Jelgava | F191: Pētera iela 23A, Jelgava | G191: 1.1 | H191: 103040.8 | I191: 103041.9 | J191: 18 | K191: 48
A192: 2018-01-18T13:59:00 | B192: 2018-01-18T14:15:00 | C192: 15 min | D192: 11 min | E192: Pētera iela 23A, Jelgava | F192: Zemgales prospekts 12, Jelgava | G192: 6.3 | H192: 103041.9 | I192: 103048.2 | J192: 23 | K192: 47
A193: 2018-01-18T14:26:00 | B193: 2018-01-18T14:30:00 | C193: 4 min | D193: 6 min | E193: Zemgales prospekts 12, Jelgava | F193: Svētes iela 21, Jelgava | G193: 1.5 | H193: 103048.2 | I193: 103049.7 | J193: 18 | K193: 39
A194: 2018-01-18T14:37:00 | B194: 2018-01-18T14:38:00 | C194: 1 min, 44 sek | D194: 14 min | E194: Svētes iela 21, Jelgava | F194: Pētera iela 23A, Jelgava | G194: 0.6 | H194: 103049.7 | I194: 103050.3 | J194: 18 | K194: 31
A195: 2018-01-18T14:53:00 | B195: 2018-01-18T14:55:00 | C195: 2 min, 45 sek | D195: 1 min, 36 sek | E195: Pētera iela 23A, Jelgava | F195: Mātera iela 23/25, Jelgava | G195: 0.8 | H195: 103050.3 | I195: 103051.1 | J195: 13 | K195: 27
A196: 2018-01-18T14:57:00 | B196: 2018-01-18T15:01:00 | C196: 4 min | D196: 19 min | E196: Mātera iela 23/25, Jelgava | F196: Garozas iela 2, Jelgava | G196: 1.8 | H196: 103051.1 | I196: 103052.9 | J196: 25 | K196: 47
A197: 2018-01-18T15:20:00 | B197: 2018-01-18T15:29:00 | C197: 9 min | D197: 17 h, 2 min | E197: Garozas iela 2, Jelgava | F197: Pētera iela 23A, Jelgava | G197: 3.5 | H197: 103052.9 | I197: 103056.3 | J197: 19 | K197: 47
A198: 2018-01-19T08:32:00 | B198: 2018-01-19T08:38:00 | C198: 6 min | D198: 5 min | E198: Pētera iela 23A, Jelgava | F198: Brīvības bulvāris 1, Jelgava | G198: 2.4 | H198: 103056.4 | I198: 103058.8 | J198: 23 | K198: 45
A199: 2018-01-19T08:44:00 | B199: 2018-01-19T08:51:00 | C199: 6 min | D199: 26 min | E199: Brīvības bulvāris 1, Jelgava | F199: Pētera iela 23A, Jelgava | G199: 2.5 | H199: 103058.8 | I199: 103061.2 | J199: 21 | K199: 46
A200: 2018-01-19T09:17:00 | B200: 2018-01-19T09:36:00 | C200: 18 min | D200: 3 min | E200: Pētera iela 23A, Jelgava | F200: Vaļņu iela 13, Jelgava | G200: 11.3 | H200: 103061.3 | I200: 103072.6 | J200: 33 | K200: 59
... 143 more rows

Sheet 20
A1: Pasūtītājs: JVPI Pilsētsaimniecība
A2: Vien. reģ. Nr. 90001282486
A3: Pulkv.O.Kalpaka 16a, Jelgava
A5: Izpildītājs: Mītavas Elektra SIA
A6: Vien. reģ. Nr. 43603009810
A7: Jelgava, Vaļņu iela 8, LV-3001
A8: Līguma Nr. PIL/2-4/22/73
A9: Jelgavas valstspilsētas luksoforu objektu uzturēšana
A13: Par 2024. gada februāra mēnesī izpildītajiem darbiem
A14: Kods | B14: Pakalpojuma veids | C14: Mēr- vienība | D14: Daudzums | E14: Vienības cena EUR | F14: Kopā EUR (bez PVN)
A15: 5.10 | B15: Signālgalvas aizsargjumtiņa nomaiņa uz balsta | C15: gab. | D15: 2 | E15: 30.00 | F15: =ROUND(D15*E15,2) -> 60.00
A16: 5.13 | B16: Signāllēcas nomaiņa uz balsta | C16: gab. | D16: 2 | E16: 50.00 | F16: 100.00
A17: 6.9 | B17: Izstrādātā signālplāna palaišana un atslēgšana uz noteiktu laiku | C17: gab. | D17: 3 | E17: 200.00 | F17: 600.00
A18: 7.1 | B18: Tehniskā apkope visiem (52) luksoforu objektiem | C18: mēnesis | D18: 1 | E18: 14000.00 | F18: 14000.00
A19: 11.11 | B19: Signāllēca (300mm, LED 230V) Swarco Futurled | C19: gab. | D19: 1 | E19: 123.50 | F19: 123.50
A20: 11.12 | B20: Signāllēca (200mm, LED 230V) Swarco Futurled | C20: gab. | D20: 1 | E20: 93.60 | F20: 93.60
A21: 11.18 | B21: Signālgalvas aizsargjumtiņš | C21: gab. | D21: 2 | E21: 15.60 | F21: 31.20
D22: Kopā (bez PVN) EUR | F22: =SUM(F15:F21) -> 15008.30
D23: PVN 21% EUR | F23: =F22*0.21 -> 3151.74
D24: Kopā ar PVN EUR | F24: =F22+F23 -> 18160.04

Sheet 21
A1: Jelgavas pilsētas attālās sistēmas uzturēšanai AKTUĀLĀ noliktavas statuss | D1: NOLIKTAVA
A2: Dynniq iekārtu vienības cenu saraksts (uzturēšanas vajadzībām)
A4: Nosaukums | B4: Vienības līgumacena, EUR | C4: Skaits
A5: Gājēju izsaukuma poga Gunter Bush / Langmatz - sensor EK 533 Plus 24V/40V/230V NO/NC GAIDĪT/PIESKARTIES (LV) | B5: € 662 | C5: 4
A6: EK-533 skaļrunis | B6: € 46 | C6: 4
A7: Signālgalva 230V 3* Ø 300 | B7: € 229 | C7: 2
A8: Signālgalva 230V 4* Ø 300 vispārīgi (x/R/A/G) | B8: € 264 | C8: 1
A9: Signālgalva 230V 2* Ø 200 sarkana, zaļa ar simbolu | B9: € 139 | C9: 2
A10: Signālgalva 230V 3* Ø 200 (x/R/G) ar simbolu | B10: € 164 | C10: 2
A11: Signālgalva 230V 1* Ø 300 dzeltena ar simbolu | B11: € 90 | C11: 1
A12: Signālgalva 42V 3* Ø 300 | B12: € 237 | C12: 2
A13: Signālgalva 42V 4* Ø 300 (x/R/A/G) | B13: € 272 | C13: 1
A14: Signālgalva 42V 2* Ø 200 sarkana, zaļa ar simbolu | B14: € 140 | C14: 2
A15: Signālgalva 42V 3* Ø 200 (x/R/G) ar simbolu | B15: € 165 | C15: 2
A16: Signālgalva 42V 1* Ø 300 dzeltena ar simbolu | B16: € 90 | C16: 1
A17: LED lēca Ø 200 230V aptumšošana | B17: € 54 | C17: 2
A18: LED lēca Ø 300 230V aptumšošana | B18: € 64 | C18: 2
A19: LED lēca Ø 200 42V aptumšošana | B19: € 66 | C19: 2
A20: LED lēca Ø 300 42V aptumšošana | B20: € 70 | C20: 2
A21: EC-2 kontrolieris ar 8 grupām | B21: € 7,000 | C21: 1
A22: EC-2 kontrolieris ar 16 grupām | B22: € 7,700 | C22: 1
A23: EC-2 kontrolieris ar 24 grupām | B23: € 8,900 | C23: 1
A24: EC-2 kontrolieris mini ar 4 grupām | B24: € 3,050 | C24: 2
A25: EC-2 kontroliera korpuss | B25: € 1,000 | C25: 1
A26: EC-2 MDU | B26: € 452 | C26: 1
A27: EC-2 CPU | B27: € 881 | C27: 1
A28: EC-2 LCM | B28: € 650 | C28: 0
A29: EC-2 I/O card | B29: € 480 | C29: 2
A30: EC-2 ED card | B30: € 660 | C30: 0
A31: EC-2 MMI | B31: € 460 | C31: 1
A32: EC-2 termostats | B32: € 108 | C32: 2
A33: EC-2 modems GSM/LTE | B33: € 511 | C33: 1
A34: Sensors WDS VSN 240F | B34: € 477 | C34: 4
A35: Atkārtotājantena RP240-BH-LL-2 | B35: € 1,554 | C35: 1
A36: Access Point AP 240-E | B36: € 2,365 | C36: 1
A37: Baterija RP240-BH | B37: € 76 | C37: 10

Sheet 22
A1: Pasūtītāja nosaukums | B1: Pasūtītāja kontaktpersona (vārds, uzvārds, amats, telefons) | C1: Objekta nosaukums | D1: Līguma Nr., noslēgšanas dat. | E1: Projekta uzsākšanas, pabeigšanas datums
A3: Pilsētsaimniecība | B3: Māris Mielavs | C3: LED dekoru uzstādīšana un noņemšana | D3: PIL/2-4/19/8 | E3: 22.01.2019 - 21.03.2021
A4: Pilsētsaimniecība | B4: Māris Mielavs | C4: VIENOŠANĀS pie Gaismas dekoru uzstādīšanas līguma izbeigšanu
A5: Pilsētsaimniecība | B5: Māris Mielavs | C5: VIENOŠANĀS nr.3 pie LĪGUMA Nr.2-5/17/99 "Ceļa satiksmes organizācijas tehnisko līdzekļu uzturēšanas un uzstādīšanas darbi Jelgavā"
A6: Latvijas Tilti | B6: Andrejs Bočkarjevs | C6: Elektroapgādes, ārējo tīklu - apgaismojuma darbu veikšana | D6: ADM/3 24/18/201 (AU)2_02 | E6: 05.03.2019 - 01.10.2019
A7: Latvijas Tilti | B7: Andrejs Bočkarjevs | C7: Luksoforu iekārtu uzstādīšanas darbi | D7: vienošanās pie līguma ADM/3 24/18/201 (AU)2_02
A8: RERE VIDE | B8: Edgars Krastiņš | C8: NODOŠANAS-PIEŅEMŠANAS AKTS Nr.RE-23 līgumam par "Loka maģistrāles pārbūvi no Kalnciema ceļa līdz Jelgavas pilsētas administratīvajai robežai"
A9: RERE VIDE | B9: Edgars Krastiņš | C9: BŪVDARBU VIETAS DAĻAS NODOŠANAS-PIEŅEMŠANAS AKTS Nr.RE-8 līgumam par "Loka maģistrāles pārbūvi no Kalnciema ceļa līdz Jelgavas pilsētas administratīvajai robežai"
A10: Pilsētsaimniecība | B10: Māris Mielavs | C10: VIENOŠANĀS Nr.1 pie 10.10.2018. līguma Nr.2-4/18/176 "Aprīkojuma nodrošinājums pilsētas pasākumiem"
A11: Jelgavas novada pašvaldība | B11: Ivita Jansone | C11: Par telpu apgaismojuma nomaiņu Jelgavas novada sociālās aprūpes un rehabilitācijas centrā "Kalnciems" | D11: SARCK/1-14/19/9 | E11: No parakstīšanas brīža līdz saistību izpildei
A12: Pilsētsaimniecība | B12: Māris Mielavs | C12: Jelgavas pilsētas luksoforu objektu tehniska apkope | D12: PIL/2-4/19/52 | E12: 29.04.2019.-31.05.2019.
A13: Pilsētsaimniecība | B13: Māris Mielavs | C13: VIENOŠANĀS Nr.2 pie Līguma Nr.2-5/18/24 "Ielu apgaismojuma rekonstrukcija 5.līnija posmā no Dobeles šosejas līdz Meldru ceļam, Jelgava 1.posms" + Darba pieņemšanas-nodošanas akts
A14: Jelgavas novada pašvaldība | B14: Vladislavs Beitāns | C14: Vircavas pagasta sporta zāles apgaismojuma nomaiņa Jelgavas ielā 2, Vircavā | D14: SC/4-2/19/68 | E14: 22.05.2019.-25.07.2019.
A15: Pilsētsaimniecība | B15: Māris Mielavs | C15: Vienošanās par līguma Nr. 2-5/17/107 “Elektropieslēgumu nodrošināšana pasākumu laikā” izbeigšanu (KOPIJA!!! Oriģināls pie pamatlīguma 2017.gada mapē "Līgumi")
A16: Pilsētsaimniecība | B16: Māris Mielavs | C16: Elektropieslēgumu nodrošināšana pasākumu laikā | D16: PIL/2-5/19/11 | E16: 24.05.2019. - 23.05.2021.
A17: Pilsētsaimniecība | B17: Māris Mielavs | C17: Jelgavas pilsētas luksoforu objektu uzturēšana | D17: PIL/2-4/19/70 | E17: 05.06.2019.-04.06.2022.
A18: Pilsētsaimniecība | B18: Māris Mielavs | C18: VIENOŠANĀS nr.4 pie LĪGUMA Nr.2-5/17/99 "Ceļa satiksmes organizācijas tehnisko līdzekļu uzturēšanas un uzstādīšanas darbi Jelgavā"
A19: Pilsētsaimniecība | B19: Māris Mielavs | C19: Labiekārtojuma elementu uzturēšana Jelgavas pilsētā | D19: PIL/2-4/19/88 | E19: 19.06.2019.-18.06.2021
A20: Dynniq Poland SP. z o.o. | B20: Jaroslaw Studzinski, Marta Wieczorek | C20: Jelgavas pilsētas luksoforu objektu uzturēšana | D20: ME-05/2019 | E20: 19.06.2019.-01.06.2022
A21: Pilsētsaimniecība | B21: Māris Mielavs | C21: VIENOŠANĀS nr.1 pie LĪGUMA Nr.PIL/2-4/19/88 "Labiekārtojuma elementu uzturēšana Jelgavas pilsētā" | E21: 2019-07-26
A22: Jelgavas novada pašvaldība | B22: Līga Rozenbaha | C22: Par apgaismojuma atjaunošanu Lielplātones muižas otrajā stāvā | D22: LIE/5-34.3/19/3 | E22: 11.06.2019.
A23: RERE VIDE | B23: Vjačeslavs Voropajevs | C23: Pielikums Nr.2 2018.gada 15.oktobrī noslēgtajam Apakšuzņēmuma līgumam Nr.1-09/146 | E23: 2019-07-31
A24: Pilsētsaimniecība | B24: Māris Mielavs | C24: Ielu meteoroloģisko staciju uzturēšana Jelgavā | D24: PIL/2-4/19/112 | E24: 01.09.2019.-31.08.20120
A25: Neonita.LV SIA | B25: Marina Puškinova | C25: Tilta kontura LED apgaismojuma komplekta Platones upei Miera ielā | D25: NL-19/08-01 | E25: līdz 10.10.2019.
A26: Jelgavas novada pašvaldība | B26: Liene Upeniece | C26: Par zemējuma kontūra un zibens aizsardzības sistēmas izbūvi aktivitāšu centra "Līvbērze" ēkai | D26: LP/5-1/19/39
A27: Pilsētsaimniecība | B27: Māris Mielavs | C27: Ceļa satiksmes organizācijas tehnisko līdzekļu uzturēšanas un uzstādīšanas darbi Jelgavā | D27: PIL/2-5/19/31 | E27: 17.10.2019. - 16.10.2022.
A28: Pilsētsaimniecība | B28: Māris Mielavs | C28: Pilsētas pasākumiem nepieciešamā aprīkojuma uzstādīšana un noņemšana | D28: PIL/2-4/19/130 | E28: 25.10.2019. - 24.10.2022
A29: Georgijs Uļjanovs Nadežda Loktionova | C29: Par elektromontāžas darbiem Dobeles šoseja 4a, Jelgava | D29: ME-07/2019 | E29: 2019-10-11
A30: Pilsētsaimniecība | B30: Māris Mielavs | C30: VIENOŠANĀS nr.5 pie LĪGUMA Nr.2-5/17/99 "Ceļa satiksmes organizācijas tehnisko līdzekļu uzturēšanas un uzstādīšanas darbi Jelgavā"
A31: Valkas meliorācija | B31: Jānis Biezais | C31: Par kabeļtrases izbūvi | D31: ME-06/2019 | E31: 2019-11-07
A32: Jelgavas novada pašvaldība | B32: Līga Lonerte | C32: Par paskaidrojuma raksta izstrādi objektam "Ielu apgaismojuma ierīkošana Bērzu ielā, Valgundē" | D32: JNP/5-34.3/19/264 | E32: 03.12.2019.-16.12.2019.
A33: Jelgavas novada pašvaldība | B33: Līga Lonerte | C33: Par būvdarbu veikšanu projekta "Ielu apgaismojuma ierīkošana Bērzu ielā, Valgundē" | D33: JNP/5-34.6/19/27 | E33: 13.12.2019. - 27.12.2019.
A34: Uzars bruģešana | B34: Dairis Leikums | C34: DARBU PIEŅEMŠANAS-NODOŠANAS AKTS apgaismojuma un elektrības sadaļas darbiem objektā “Piebraucamā ceļa un autostāvvietas projekts Aviācijas ielā 40a, Jelgavā” | E34: 2019-10-03
A35: Jelgavas novada pašvaldība | B35: Liene Upeniece | C35: Par pasīvās zibens aizsardzības sistēmas atjaunošanu aktivitāšu centrā "Birztaliņas" | D35: LP/5-1/19/47 | E35: 2019-12-10
A36: Jelgavas novada pašvaldība | B36: Līga Lonerte | C36: Par būvdarbu veikšanu projekta "Apgaismojuma izbūve Oglaines ciemā Parka ielā, Vircavas pagastā, Jelgavas novadā" | D36: JNPIP/5-1/19/53 | E36: 17.12.2019.

Sheet 23
C1: Mērvienība | D1: Apjoms KOPĀ | E1: Vienības izmaksas | L1: Kopējā izmaksa
E2: Laika | F2: Darba | G2: Darba | H2: Būv- | I2: Mehā- | J2: Vienības cena* (euro) | K2: Vienības cena* (euro) | L2: Darb- | M2: Darba | N2: Būv- | O2: Mehā- | P2: Kopējā cena (euro)
E3: norma, | F3: samaksas lik- | G3: alga, | H3: izstrādājums | I3: nismi, | L3: ietilpība, | M3: alga, | N3: izstrājājumi | O3: nismi,
A4: Nr.p.k. | B4: Darba nosaukums | E4: c/h | F4: me,EUR/h | G4: EUR | H4: EUR | I4: EUR | L4: c/h | M4: EUR | N4: EUR | O4: EUR | P4: EUR
A5: 1 | B5: 2 | C5: 3 | D5: 8 | J5: 9 | K5: 9 | P5: 14
B6: 8. Elektroapgāde (ārējā) - luksofori
B7: Luksofors 3.līnija
A8: 8.1 | B8: Luksofora kontroliera uzstādīšana, ITC-3 vai analogs, nodrošinot 42 V darbību, t.sk. skapis luksoforu kontroliem | C8: kompl. | D8: 1.00 | E8: =SUM(E9:E11) -> 10.00 | F8: 20.00 | G8: =SUM(G9:G11) -> 200.00 | H8: =SUM(H9:H11) -> 11230.00 | I8: =SUM(I9:I11) -> 40.00 | J8: =ROUND(SUM(G8:I8),2) -> 11,470.00 | K8: =P8/D8 -> 11591.00 | L8: =SUM(L9:L11) -> 12.30 | M8: =SUM(M9:M11) -> 246.00 | N8: 11260.00 | O8: 85.00 | P8: =SUM(P9:P11) -> 11591.00
B9: Kontroliera uzstādīšana | C9: kompl. | D9: 1.00 | E9: 8.00 | F9: 20.00 | G9: =ROUND(E9*F9,2) -> 160.00 | H9: 11200.00 | I9: 10.00 | J9: =ROUND(SUM(G9:I9),2) -> 11,370.00 | L9: =ROUND(E9*D9,2) -> 8.00 | M9: =ROUND(G9*D9,2) -> 160.00 | N9: =ROUND(D9*H9,2) -> 11200.00 | O9: =ROUND(D9*I9,2) -> 10.00 | P9: =ROUND(SUM(M9:O9),2) -> 11370.00
B10: Zemējuma stienis | C10: kompl. | D10: 2.00 | E10: 1.00 | F10: 20.00 | G10: =ROUND(E10*F10,2) -> 20.00 | H10: 30.00 | I10: 20.00 | J10: 70.00 | L10: 2.00 | M10: 40.00 | N10: 60.00 | O10: 40.00 | P10: 140.00
B11: elekrības nodrošināšana citiem servisiem | C11: kompl. | D11: 1.00 | E11: =SUM(E12:E16) -> 1.00 | F11: 20.00 | G11: 20.00 | H11: 0.00 | I11: 10.00 | J11: 30.00 | L11: 2.30 | M11: =SUM(M12:M16) -> 46.00 | N11: 0.00 | O11: 35.00 | P11: 81.00
B12: DIN sliede | C12: m | D12: 1.00 | E12: 0.20 | F12: 20.00 | G12: =ROUND(E12*F12,2) -> 4.00 | H12: 0.00 | I12: 5.00 | J12: 9.00 | L12: =ROUND(E12*D12,2) -> 0.20 | M12: =ROUND(G12*D12,2) -> 4.00 | N12: =ROUND(D12*H12,2) -> 0.00 | O12: =ROUND(D12*I12,2) -> 5.00 | P12: =ROUND(SUM(M12:O12),2) -> 9.00
B13: Zemejuma spaile | C13: gab. | D13: 2.00 | E13: 0.20 | F13: 20.00 | G13: 4.00 | H13: 0.00 | I13: 0.00 | J13: 4.00 | L13: 0.40 | M13: 8.00 | N13: 0.00 | O13: 0.00 | P13: 8.00
B14: Automati B20 | C14: gab. | D14: 6.00 | E14: 0.20 | F14: 20.00 | G14: 4.00 | H14: 0.00 | I14: 5.00 | J14: 9.00 | L14: 1.20 | M14: 24.00 | N14: 0.00 | O14: 30.00 | P14: 54.00
B15: Din kontaktligzdas | C15: gab. | D15: 2.00 | E15: 0.20 | F15: 20.00 | G15: 4.00 | H15: 0.00 | I15: 0.00 | J15: 4.00 | L15: 0.40 | M15: 8.00 | N15: 0.00 | O15: 0.00 | P15: 8.00
B16: savienošanas "ķemme" | C16: m | D16: 0.50 | E16: 0.20 | F16: 20.00 | G16: 4.00 | H16: 0.00 | I16: 0.00 | J16: 4.00 | L16: 0.10 | M16: 2.00 | N16: 0.00 | O16: 0.00 | P16: 2.00
A17: 8.2 | B17: Luksofora kontroliera pieslēgums optiskajam tīklam, nodrošinot datu pārraidi uz Sarmas ielas Nr. 4 „Vadības pults” un Domes IT sektoru | C17: kompl. | D17: 1.00 | E17: =SUM(E18:E20) -> 6.02 | F17: 20.00 | G17: =SUM(G18:G20) -> 120.40 | H17: =SUM(H18:H20) -> 767.00 | I17: 15.00 | J17: 902.40 | K17: =P17/D17 -> 902.40 | L17: =SUM(L18:L20) -> 6.02 | M17: =SUM(M18:M20) -> 120.40 | N17: 767.00 | O17: 15.00 | P17: =SUM(P18:P20) -> 902.40
B18: Optiskais konvertors CTC Union Technologies IFC-1400X-SC002 | C18: gab. | D18: 1.00 | E18: 0.01 | F18: 20.00 | G18: =ROUND(E18*F18,2) -> 0.20 | H18: 643.50 | I18: 5.00 | J18: 648.70 | L18: =ROUND(E18*D18,2) -> 0.01 | M18: =ROUND(G18*D18,2) -> 0.20 | N18: =ROUND(D18*H18,2) -> 643.50 | O18: =ROUND(D18*I18,2) -> 5.00 | P18: =ROUND(SUM(M18:O18),2) -> 648.70
B19: Barošanas bloks 24V ICP DAS MDR-20-24 | C19: gab. | D19: 1.00 | E19: 0.01 | F19: 20.00 | G19: 0.20 | H19: 123.50 | I19: 0.00 | J19: 123.70 | L19: 0.01 | M19: 0.20 | N19: 123.50 | O19: 0.00 | P19: 123.70
B20: Sistēmas noskaņošana | C20: kompl. | D20: 1.00 | E20: 6.00 | F20: 20.00 | G20: 120.00 | H20: 0.00 | I20: 10.00 | J20: 130.00 | L20: 6.00 | M20: 120.00 | N20: 0.00 | O20: 10.00 | P20: 130.00
A21: 8.3 | B21: Luksoforu signālgalvas autotransportam 42 V spriegumam, ar gaismas intensitātes regulēšanu signāliekārtās saskaņā ar dienas gaismas līmeni (300x3) | C21: gab. | D21: 8.00 | E21: =SUM(E22:E24) -> 1.50 | F21: 20.00 | G21: =SUM(G22:G24) -> 30.00 | H21: =SUM(H22:H24) -> 672.05 | I21: =SUM(I22:I24) -> 15.00 | J21: 717.05 | K21: =P21/D21 -> 788.00 | L21: =SUM(L22:L24) -> 46.00 | M21: =SUM(M22:M24) -> 920.00 | N21: 4924.00 | O21: 460.00 | P21: =SUM(P22:P24) -> 6304.00
B22: Signalgalva 300X3 | C22: gab. | D22: 8.00 | E22: 0.50 | F22: 20.00 | G22: =ROUND(E22*F22,2) -> 10.00 | H22: 520.00 | I22: 5.00 | J22: 535.00 | L22: =ROUND(E22*D22,2) -> 4.00 | M22: =ROUND(G22*D22,2) -> 80.00 | N22: =ROUND(D22*H22,2) -> 4160.00 | O22: =ROUND(D22*I22,2) -> 40.00 | P22: =ROUND(SUM(M22:O22),2) -> 4280.00
B23: Signalgalva konsoles stiprinajums | C23: gab. | D23: 4.00 | E23: 0.50 | F23: 20.00 | G23: 10.00 | H23: 150.00 | I23: 5.00 | J23: 165.00 | L23: 2.00 | M23: 40.00 | N23: 600.00 | O23: 20.00 | P23: 660.00
B24: Signālkabelis Cu 7x1.5 ieversana /savienosana | C24: m | D24: =8*2.5+(4*15) -> 80.00 | E24: 0.50 | F24: 20.00 | G24: 10.00 | H24: 2.05 | I24: 5.00 | J24: 17.05 | L24: 40.00 | M24: 800.00 | N24: 164.00 | O24: 400.00 | P24: 1364.00
A25: 8.4 | B25: Luksoforu signālgalvas papildsekcija autotransportam 42 V spriegumam, ar gaismas intensitātes regulēšanu signāliekārtās saskaņā ar dienas gaismas līmeni (300x1) | C25: gab. | D25: 6.00 | E25: =SUM(E26:E27) -> 1.00 | F25: 20.00 | G25: =SUM(G26:G27) -> 20.00 | H25: =SUM(H26:H27) -> 240.00 | I25: 10.00 | J25: 270.00 | K25: =P25/D25 -> 657.63 | L25: =SUM(L26:L28) -> 16.50 | M25: 330.00 | N25: 3450.75 | O25: 165.00 | P25: =SUM(P26:P28) -> 3945.75
B26: Signalgalva 300X1 montāža | C26: gab. | D26: 6.00 | E26: 0.50 | F26: 20.00 | G26: =ROUND(E26*F26,2) -> 10.00 | H26: 210.00 | I26: 5.00 | J26: 225.00 | L26: =ROUND(E26*D26,2) -> 3.00 | M26: =ROUND(G26*D26,2) -> 60.00 | N26: =ROUND(D26*H26,2) -> 1260.00 | O26: =ROUND(D26*I26,2) -> 30.00 | P26: =ROUND(SUM(M26:O26),2) -> 1350.00
B27: Signalgalvas stiprinājuma izveide | C27: gab. | D27: 6.00 | E27: 0.50 | F27: 20.00 | G27: 10.00 | H27: 30.00 | I27: 5.00 | J27: 45.00 | L27: 3.00 | M27: 60.00 | N27: 180.00 | O27: 30.00 | P27: 270.00
A28: 8.5 | B28: Luksoforu signālgalvas gājējiem 42 V spriegumam, ar gaismas intensitātes regulēšanu signāliekārtās saskaņā ar dienas gaismas līmeni (200x2) | C28: gab. | D28: 6.00 | E28: =SUM(E29:E30) -> 1.00 | F28: 20.00 | G28: =SUM(G29:G30) -> 20.00 | H28: =SUM(H29:H30) -> 332.05 | I28: 10.00 | J28: =ROUND(SUM(G28:I28),2) -> 362.05 | K28: =P28/D28 -> 387.63 | L28: =SUM(L29:L30) -> 10.50 | M28: 210.00 | N28: 2010.75 | O28: 105.00 | P28: =SUM(P29:P30) -> 2325.75
B29: Signalgalva 200X2 | C29: gab. | D29: 6.00 | E29: 0.50 | F29: 20.00 | G29: 10.00 | H29: 330.00 | I29: 5.00 | J29: 345.00 | L29: =ROUND(E29*D29,2) -> 3.00 | M29: =ROUND(G29*D29,2) -> 60.00 | N29: =ROUND(D29*H29,2) -> 1980.00 | O29: =ROUND(D29*I29,2) -> 30.00 | P29: =ROUND(SUM(M29:O29),2) -> 2070.00
B30: Signālkabelis Cu 7x1.5 ieversana /savienosana | C30: m | D30: =6*2.5 -> 15.00 | E30: 0.50 | F30: 20.00 | G30: 10.00 | H30: 2.05 | I30: 5.00 | J30: 17.05 | L30: 7.50 | M30: 150.00 | N30: 30.75 | O30: 75.00 | P30: 255.75
A31: 8.6 | B31: Laika uzskaites displeju uzstādīšana gājēju pārejām, zaļajam un sarkanajam signālam | C31: kompl. | D31: 6.00 | E31: =SUM(E32:E33) -> 1.50 | F31: 20.00 | G31: =SUM(G32:G33) -> 30.00 | H31: =SUM(H32:H33) -> 470.00 | I31: 11.00 | J31: 511.00 | K31: =P31/D31 -> 511.00 | L31: =SUM(L32:L33) -> 9.00 | M31: 180.00 | N31: 2820.00 | O31: 66.00 | P31: =SUM(P32:P33) -> 3066.00
B32: laika atskaite | C32: gab. | D32: 6.00 | E32: 0.50 | F32: 20.00 | G32: =ROUND(E32*F32,2) -> 10.00 | H32: 470.00 | I32: 1.00 | J32: 481.00 | L32: =ROUND(E32*D32,2) -> 3.00 | M32: =ROUND(G32*D32,2) -> 60.00 | N32: =ROUND(D32*H32,2) -> 2820.00 | O32: =ROUND(D32*I32,2) -> 6.00 | P32: =ROUND(SUM(M32:O32),2) -> 2886.00
B33: laika atskaites savienosana / konfiguresana | C33: kompl. | D33: 6.00 | E33: 1.00 | F33: 20.00 | G33: 20.00 | H33: 0.00 | I33: 10.00 | J33: 30.00 | L33: 6.00 | M33: 120.00 | N33: 0.00 | O33: 60.00 | P33: 180.00
A34: 8.7 | B34: Datorizētā gājēju izsaukuma poga ar piktogrammām un skaņas signālu | C34: gab. | D34: 6.00 | E34: =SUM(E35:E36) -> 1.00 | F34: 20.00 | G34: =SUM(G35:G36) -> 20.00 | H34: =SUM(H35:H36) -> 630.00 | I34: 15.00 | J34: 665.00 | K34: =P34/D34 -> 665.00 | L34: =SUM(L35:L36) -> 6.00 | M34: 120.00 | N34: 3780.00 | O34: 90.00 | P34: =SUM(P35:P36) -> 3990.00
B35: Datorizētā gājēju izsaukuma poga | C35: gab. | D35: 6.00 | E35: 0.50 | F35: 20.00 | G35: 10.00 | H35: 630.00 | I35: 5.00 | J35: =ROUND(SUM(G35:I35),2) -> 645.00 | L35: =ROUND(E35*D35,2) -> 3.00 | M35: =ROUND(G35*D35,2) -> 60.00 | N35: =ROUND(D35*H35,2) -> 3780.00 | O35: =ROUND(D35*I35,2) -> 30.00 | P35: =ROUND(SUM(M35:O35),2) -> 3870.00
B36: Datorizētā gājēju izsaukuma poga konfiguresana | C36: kompl. | D36: 6.00 | E36: 0.50 | F36: 20.00 | G36: 10.00 | H36: 0.00 | I36: 10.00 | J36: 20.00 | L36: 3.00 | M36: 60.00 | N36: 0.00 | O36: 60.00 | P36: 120.00
A37: 8.8 | B37: Kombinētā satiksmes video/ radara detekcijas kamera t.sk. montāža, regulēšana un programmēšana | C37: kompl. | D37: 4.00 | E37: =SUM(E38:E39) -> 1.50 | F37: 20.00 | G37: =SUM(G38:G39) -> 30.00 | H37: =SUM(H38:H39) -> 630.00 | I37: 60.00 | J37: 720.00 | K37: =P37/D37 -> 720.00 | L37: =SUM(L38:L39) -> 6.00 | M37: 120.00 | N37: 2520.00 | O37: 240.00 | P37: =SUM(P38:P39) -> 2880.00
B38: detekcijas kameras uzstadisana | C38: gab. | D38: 4.00 | E38: 0.50 | F38: 20.00 | G38: =ROUND(E38*F38,2) -> 10.00 | H38: 630.00 | I38: 10.00 | J38: 650.00 | L38: =ROUND(E38*D38,2) -> 2.00 | M38: =ROUND(G38*D38,2) -> 40.00 | N38: =ROUND(D38*H38,2) -> 2520.00 | O38: =ROUND(D38*I38,2) -> 40.00 | P38: =ROUND(SUM(M38:O38),2) -> 2600.00
B39: detekcijas kamera konfiguresana | C39: kompl. | D39: 4.00 | E39: 1.00 | F39: 20.00 | G39: 20.00 | H39: 0.00 | I39: 50.00 | J39: 70.00 | L39: 4.00 | M39: 80.00 | N39: 0.00 | O39: 200.00 | P39: 280.00
A40: 8.9 | B40: Elektro padeves kabelis videokameru/ radaru barošanai 3x1.5mm2 | C40: m | D40: 190.00 | E40: =SUM(E41:E42) -> 0.02 | F40: 20.00 | G40: =SUM(G41:G42) -> 0.40 | H40: =SUM(H41:H43) -> 60.65 | I40: 12.00 | J40: =ROUND(SUM(G40:I40),2) -> 73.05 | K40: =P40/D40 -> 3.01 | L40: =SUM(L41:L43) -> 3.40 | M40: 68.00 | N40: 243.50 | O40: 260.00 | P40: =SUM(P41:P43) -> 571.50
B41: kabelis videokameru/ radaru barošanai 3x1.5mm2 | C41: m | D41: 190.00 | E41: 0.01 | F41: 20.00 | G41: 0.20 | H41: 0.65 | I41: 1.00 | J41: 1.85 | L41: =ROUND(E41*D41,2) -> 1.90 | M41: =ROUND(G41*D41,2) -> 38.00 | N41: =ROUND(D41*H41,2) -> 123.50 | O41: =ROUND(D41*I41,2) -> 190.00 | P41: =ROUND(SUM(M41:O41),2) -> 351.50
B42: ieversana kabelis videokameru/ radaru barošanai | C42: m | D42: 50.00 | E42: 0.01 | F42: 20.00 | G42: 0.20 | H42: 0.00 | I42: 1.00 | J42: 1.20 | L42: 0.50 | M42: 10.00 | N42: 0.00 | O42: 50.00 | P42: 60.00
B43: sadalnes konsole | C43: gab. | D43: 2.00 | E43: 0.50 | F43: 20.00 | G43: 10.00 | H43: 60.00 | I43: 10.00 | J43: =ROUND(SUM(G43:I43),2) -> 80.00 | L43: 1.00 | M43: 20.00 | N43: 120.00 | O43: 20.00 | P43: 160.00
A44: 8.10 | B44: Luksoforu stats ar pamatni | C44: kompl. | D44: 7.00 | E44: =SUM(E45:E49) -> 1.61 | F44: 20.00 | G44: =SUM(G45:G49) -> 32.20 | H44: =SUM(H45:H49) -> 480.00 | I44: 27.00 | J44: 539.20 | K44: =P44/D44 -> 334.91 | L44: =SUM(L45:L49) -> 7.77 | M44: =SUM(M45:M49) -> 155.40 | N44: 2070.00 | O44: 119.00 | P44: 2344.40
B45: stats 4m | C45: gab. | D45: 3.00 | E45: 0.50 | F45: 20.00 | G45: =ROUND(E45*F45,2) -> 10.00 | H45: 150.00 | I45: 10.00 | J45: 170.00 | L45: =ROUND(E45*D45,2) -> 1.50 | M45: =ROUND(G45*D45,2) -> 30.00 | N45: =ROUND(D45*H45,2) -> 450.00 | O45: =ROUND(D45*I45,2) -> 30.00 | P45: =ROUND(SUM(M45:O45),2) -> 510.00
B46: stats 6m | C46: gab. | D46: 4.00 | E46: 0.50 | F46: 20.00 | G46: 10.00 | H46: 230.00 | I46: 10.00 | J46: =ROUND(SUM(G46:I46),2) -> 250.00 | L46: 2.00 | M46: 40.00 | N46: 920.00 | O46: 40.00 | P46: 1000.00
B47: pamats p1.3 | C47: gab. | D47: 7.00 | E47: 0.10 | F47: 20.00 | G47: 2.00 | H47: 90.00 | I47: 1.00 | J47: 93.00 | L47: 0.70 | M47: 14.00 | N47: 630.00 | O47: 7.00 | P47: 651.00
B48: uzstadisana/ raksana | C48: gab. | D48: 7.00 | E48: 0.50 | F48: 20.00 | G48: 10.00 | H48: 0.00 | I48: 6.00 | J48: 16.00 | L48: 3.50 | M48: 70.00 | N48: 0.00 | O48: 42.00 | P48: 112.00
B49: aizsargumija | C49: gab. | D49: 7.00 | E49: 0.01 | F49: 20.00 | G49: 0.20 | H49: 10.00 | I49: 0.00 | J49: 10.20 | L49: 0.07 | M49: 1.40 | N49: 70.00 | O49: 0.00 | P49: 71.40
A50: 8.11 | B50: Luksoforu konsole | C50: kompl. | D50: 2.00 | E50: =SUM(E51:E55) -> 3.01 | F50: 20.00 | G50: =SUM(G51:G55) -> 60.20 | H50: =SUM(H51:H55) -> 3012.80 | I50: =SUM(I51:I55) -> 522.00 | J50: 3,595.00 | K50: =P50/D50 -> 3595.00 | L50: =SUM(L51:L55) -> 6.02 | M50: =SUM(M51:M55) -> 120.40 | N50: =SUM(N51:N55) -> 6025.60 | O50: =SUM(O51:O55) -> 1044.00 | P50: =SUM(P51:P55) -> 7190.00
B51: konsole 6m | C51: gab. | D51: 2.00 | E51: 0.50 | F51: 20.00 | G51: 10.00 | H51: 2,602.80 | I51: 10.00 | J51: 2,622.80 | L51: =ROUND(E51*D51,2) -> 1.00 | M51: =ROUND(G51*D51,2) -> 20.00 | N51: =ROUND(D51*H51,2) -> 5205.60 | O51: =ROUND(D51*I51,2) -> 20.00 | P51: =ROUND(SUM(M51:O51),2) -> 5245.60
B52: pamats p5 | C52: gab. | D52: 2.00 | E52: 0.50 | F52: 20.00 | G52: 10.00 | H52: 390.00 | I52: 2.00 | J52: 402.00 | L52: 1.00 | M52: 20.00 | N52: 780.00 | O52: 4.00 | P52: 804.00
B53: uzstadisana/ raksana | C53: gab. | D53: 2.00 | E53: 1.00 | F53: 20.00 | G53: 20.00 | H53: 0.00 | I53: 10.00 | J53: 30.00 | L53: 2.00 | M53: 40.00 | N53: 0.00 | O53: 20.00 | P53: 60.00
B54: aizsargumija | C54: gab. | D54: 2.00 | E54: 0.01 | F54: 20.00 | G54: 0.20 | H54: 20.00 | I54: 0.00 | J54: 20.20 | L54: 0.02 | M54: 0.40 | N54: 40.00 | O54: 0.00 | P54: 40.40
B55: krana pakalpojumi | C55: gab. | D55: 2.00 | E55: 1.00 | F55: 20.00 | G55: 20.00 | H55: 0.00 | I55: 500.00 | J55: =ROUND(SUM(G55:I55),2) -> 520.00 | L55: 2.00 | M55: 40.00 | N55: 0.00 | O55: 1000.00 | P55: 1040.00
A56: 8.12 | B56: Luksoforu pamatnes ekrāns ap papildsekciju | C56: gab. | D56: 6.00 | E56: =SUM(E57:E58) -> 1.10 | F56: 20.00 | G56: =SUM(G57:G58) -> 22.00 | H56: =SUM(H57:H58) -> 218.00 | I56: 1.00 | J56: 241.00 | K56: =P56/D56 -> 241.00 | L56: =SUM(L57:L58) -> 6.60 | M56: 132.00 | N56: 1308.00 | O56: 6.00 | P56: =SUM(P57:P58) -> 1446.00
B57: ekrani | C57: gab. | D57: 6.00 | E57: 0.10 | F57: 20.00 | G57: =ROUND(E57*F57,2) -> 2.00 | H57: 218.00 | I57: 0.00 | J57: =ROUND(SUM(G57:I57),2) -> 220.00 | L57: =ROUND(E57*D57,2) -> 0.60 | M57: =ROUND(G57*D57,2) -> 12.00 | N57: =ROUND(D57*H57,2) -> 1308.00 | O57: =ROUND(D57*I57,2) -> 0.00 | P57: 1320.00
B58: montaza | C58: gab. | D58: 6.00 | E58: 1.00 | F58: 20.00 | G58: 20.00 | H58: 0.00 | I58: 1.00 | J58: 21.00 | L58: 6.00 | M58: 120.00 | N58: 0.00 | O58: 6.00 | P58: 126.00
A59: 8.13 | B59: Ar kontrolieri savienojošie signālkabeļi 12x2.5mm² | C59: m | D59: 120.00 | E59: =SUM(E60:E62) -> 0.52 | F59: 20.00 | G59: =SUM(G60:G62) -> 10.40 | H59: 9.35 | I59: 0.00 | J59: 19.75 | K59: =P59/D59 -> 5.13 | L59: =SUM(L60:L62) -> 3.90 | M59: 78.00 | N59: 537.00 | O59: 0.00 | P59: 615.00
B60: signālkabeļi 12x2.5mm² | C60: m | D60: 120.00 | E60: 0.01 | F60: 20.00 | G60: =ROUND(E60*F60,2) -> 0.20 | H60: 4.35 | I60: 0.00 | J60: 4.55 | L60: =ROUND(E60*D60,2) -> 1.20 | M60: =ROUND(G60*D60,2) -> 24.00 | N60: =ROUND(D60*H60,2) -> 522.00 | O60: =ROUND(D60*I60,2) -> 0.00 | P60: =ROUND(SUM(M60:O60),2) -> 546.00
B61: spailes | C61: gab. | D61: 3.00 | E61: 0.50 | F61: 20.00 | G61: 10.00 | H61: 5.00 | I61: 0.00 | J61: 15.00 | L61: 1.50 | M61: 30.00 | N61: 15.00 | O61: 0.00 | P61: 45.00
B62: ievēršana caurule | C62: m | D62: 120.00 | E62: 0.01 | F62: 20.00 | G62: 0.20 | H62: 0.00 | I62: 0.00 | J62: 0.20 | L62: 1.20 | M62: 24.00 | N62: 0.00 | O62: 0.00 | P62: 24.00
A63: 8.14 | B63: Ar kontrolieri savienojošie signālkabeļi 19x2.5mm² | C63: m | D63: 450.00 | E63: =SUM(E64:E66) -> 0.52 | F63: 20.00 | G63: =SUM(G64:G66) -> 10.40 | H63: 5.85 | I63: 0.00 | J63: 16.25 | K63: =P63/D63 -> 4.85 | L63: =SUM(L64:L66) -> 11.00 | M63: 220.00 | N63: 1963.50 | O63: 0.00 | P63: 2183.50
B64: signālkabeļi 19x2.5mm² | C64: m | D64: 450.00 | E64: 0.01 | F64: 20.00 | G64: 0.20 | H64: 4.35 | I64: 0.00 | J64: =ROUND(SUM(G64:I64),2) -> 4.55 | L64: =ROUND(E64*D64,2) -> 4.50 | M64: =ROUND(G64*D64,2) -> 90.00 | N64: =ROUND(D64*H64,2) -> 1957.50 | O64: =ROUND(D64*I64,2) -> 0.00 | P64: =ROUND(SUM(M64:O64),2) -> 2047.50
B65: spailes | C65: gab. | D65: 4.00 | E65: 0.50 | F65: 20.00 | G65: 10.00 | H65: 1.50 | I65: 0.00 | J65: 11.50 | L65: 2.00 | M65: 40.00 | N65: 6.00 | O65: 0.00 | P65: 46.00
B66: ievēršana caurule | C66: m | D66: 450.00 | E66: 0.01 | F66: 20.00 | G66: 0.20 | H66: 0.00 | I66: 0.00 | J66: 0.20 | L66: 4.50 | M66: 90.00 | N66: 0.00 | O66: 0.00 | P66: 90.00
A67: 8.15 | B67: Balstā savienojošie signālkabeļi ar signālgalvām 7x1.5 mm2 | C67: m | D67: 70.00 | E67: =SUM(E68:E69) -> 0.02 | F67: 20.00 | G67: =SUM(G68:G69) -> 0.40 | H67: =SUM(H68:H69) -> 1.90 | I67: 0.00 | J67: 2.30 | K67: =P67/D67 -> 2.30 | L67: =SUM(L68:L69) -> 1.40 | M67: 28.00 | N67: 133.00 | O67: 0.00 | P67: 161.00
B68: Balstā savienojošie signālkabeļi ar signālgalvām 7x1.5 mm2 | C68: m | D68: 70.00 | E68: 0.01 | F68: 20.00 | G68: 0.20 | H68: 1.90 | I68: 0.00 | J68: =ROUND(SUM(G68:I68),2) -> 2.10 | L68: =ROUND(E68*D68,2) -> 0.70 | M68: =ROUND(G68*D68,2) -> 14.00 | N68: =ROUND(D68*H68,2) -> 133.00 | O68: =ROUND(D68*I68,2) -> 0.00 | P68: =ROUND(SUM(M68:O68),2) -> 147.00
B69: ievēršana balsta | C69: m | D69: 70.00 | E69: 0.01 | F69: 20.00 | G69: 0.20 | H69: 0.00 | I69: 0.00 | J69: 0.20 | L69: 0.70 | M69: 14.00 | N69: 0.00 | O69: 0.00 | P69: 14.00
A70: 8.16 | B70: Laika atskaites datu pārraidīšanas kabelis 4x2x0,8 mm2 | C70: m | D70: 260.00 | E70: =SUM(E71:E73) -> 0.03 | F70: 20.00 | G70: =SUM(G71:G73) -> 0.60 | H70: 1.13 | I70: 1.00 | J70: 2.73 | K70: =P70/D70 -> 1.43 | L70: =SUM(L71:L73) -> 2.98 | M70: 59.60 | N70: 293.80 | O70: 18.00 | P70: 371.40
B71: Laika atskaites datu pārraidīšanas kabelis 4x2x0,8 mm2 | C71: m | D71: 260.00 | E71: 0.01 | F71: 20.00 | G71: =ROUND(E71*F71,2) -> 0.20 | H71: 1.13 | I71: 0.00 | J71: 1.33 | L71: 2.60 | M71: 52.00 | N71: 293.80 | O71: 0.00 | P71: 345.80
B72: ievēršana aisargcaurule | C72: m | D72: 20.00 | E72: 0.01 | F72: 20.00 | G72: 0.20 | H72: 0.00 | I72: 0.00 | J72: 0.20 | L72: 0.20 | M72: 4.00 | N72: 0.00 | O72: 0.00 | P72: 4.00
B73: ievēršana balstā | C73: m | D73: 18.00 | E73: 0.01 | F73: 20.00 | G73: 0.20 | H73: 0.00 | I73: 1.00 | J73: 1.20 | L73: 0.18 | M73: 3.60 | N73: 0.00 | O73: 18.00 | P73: 21.60
A74: 8.17 | B74: Aizsargcaurule AROT – 70 mm, 450N | C74: m | D74: 20.00 | E74: =SUM(E75:E76) -> 0.02 | F74: 20.00 | G74: =SUM(G75:G76) -> 0.40 | H74: 1.13 | I74: 6.00 | J74: 7.53 | K74: =P74/D74 -> 7.53 | L74: =SUM(L75:L76) -> 0.40 | M74: 8.00 | N74: 22.60 | O74: 120.00 | P74: 150.60
B75: Aizsargcaurule AROT – 70 mm, 450N | C75: m | D75: 20.00 | E75: 0.01 | F75: 20.00 | G75: 0.20 | H75: 1.13 | I75: 0.00 | J75: =ROUND(SUM(G75:I75),2) -> 1.33 | L75: =ROUND(E75*D75,2) -> 0.20 | M75: =ROUND(G75*D75,2) -> 4.00 | N75: =ROUND(D75*H75,2) -> 22.60 | O75: =ROUND(D75*I75,2) -> 0.00 | P75: =ROUND(SUM(M75:O75),2) -> 26.60
B76: uzstadisana/ raksana | C76: m | D76: 20.00 | E76: 0.01 | F76: 20.00 | G76: 0.20 | H76: 0.00 | I76: 6.00 | J76: 6.20 | L76: 0.20 | M76: 4.00 | N76: 0.00 | O76: 120.00 | P76: 124.00
A77: 8.18 | B77: Aizsargcaurule AROT – 110 mm, 450N | C77: m | D77: 120.00 | E77: =SUM(E78:E81) -> 0.53 | F77: 20.00 | G77: =SUM(G78:G81) -> 11.10 | H77: =SUM(H78:H81) -> 5.10 | I77: 1008.00 | J77: 1,024.20 | K77: =P77/D77 -> 23.69 | L77: =SUM(L78:L81) -> 2.80 | M77: =SUM(M78:M81) -> 57.00 | N77: 306.00 | O77: 2480.00 | P77: 2843.00
B78: Aizsargcaurule AROT – 110 mm, 750N | C78: m | D78: 60.00 | E78: 0.01 | F78: 20.00 | G78: =ROUND(E78*F78,2) -> 0.20 | H78: 3.50 | I78: 1.00 | J78: 4.70 | L78: 0.60 | M78: 12.00 | N78: 210.00 | O78: 60.00 | P78: 282.00
B79: caurdurums | C79: gab. | D79: 2.00 | E79: 0.50 | F79: 21.00 | G79: 10.50 | H79: 0.00 | I79: 1000.00 | J79: 1,010.50 | L79: 1.00 | M79: 21.00 | N79: 0.00 | O79: 2000.00 | P79: 2021.00
B80: Aizsargcaurule AROT – 110 mm, 450N | C80: m | D80: 60.00 | E80: 0.01 | F80: 20.00 | G80: 0.20 | H80: 1.60 | I80: 1.00 | J80: 2.80 | L80: 0.60 | M80: 12.00 | N80: 96.00 | O80: 60.00 | P80: 168.00
B81: uzstadisana/ raksana | C81: m | D81: 60.00 | E81: 0.01 | F81: 20.00 | G81: 0.20 | H81: 0.00 | I81: 6.00 | J81: =ROUND(SUM(G81:I81),2) -> 6.20 | L81: 0.60 | M81: 12.00 | N81: 0.00 | O81: 360.00 | P81: 372.00
A82: 8.19 | B82: Papildus UTP CAT 6 kabelis uz konsolēm (rezervei) | C82: m | D82: 260.00 | E82: =SUM(E83:E85) -> 0.03 | F82: 20.00 | G82: =SUM(G83:G85) -> 0.60 | H82: 0.58 | I82: 0.00 | J82: 1.18 | K82: =P82/D82 -> 0.98 | L82: =SUM(L83:L85) -> 5.20 | M82: 104.00 | N82: 150.80 | O82: 0.00 | P82: 254.80
B83: Papildus UTP CAT 6 kabelis | C83: m | D83: 260.00 | E83: 0.01 | F83: 20.00 | G83: 0.20 | H83: 0.58 | I83: 0.00 | J83: 0.78 | L83: 2.60 | M83: 52.00 | N83: 150.80 | O83: 0.00 | P83: 202.80
B84: ievēršana balsta | C84: m | D84: 60.00 | E84: 0.01 | F84: 20.00 | G84: 0.20 | H84: 0.00 | I84: 0.00 | J84: 0.20 | L84: 0.60 | M84: 12.00 | N84: 0.00 | O84: 0.00 | P84: 12.00
B85: ievēršana caurule | C85: m | D85: 200.00 | E85: 0.01 | F85: 20.00 | G85: 0.20 | H85: 0.00 | I85: 0.00 | J85: 0.20 | L85: 2.00 | M85: 40.00 | N85: 0.00 | O85: 0.00 | P85: 40.00
A86: 8.20 | B86: Papildus eletropadeves kabelis uz konsolēm 3x2.5 mm2 (rezevei) | C86: m | D86: 130.00 | E86: =SUM(E87:E89) -> 0.03 | F86: 20.00 | G86: =SUM(G87:G89) -> 0.60 | H86: 0.95 | I86: 0.00 | J86: 1.55 | K86: =P86/D86 -> 1.35 | L86: =SUM(L87:L89) -> 2.60 | M86: 52.00 | N86: 123.50 | O86: 0.00 | P86: 175.50
B87: Papildus eletropadeves kabelis uz konsolēm 3x2.5 mm2 (rezevei) | C87: m | D87: 130.00 | E87: 0.01 | F87: 20.00 | G87: =ROUND(E87*F87,2) -> 0.20 | H87: 0.95 | I87: 0.00 | J87: 1.15 | L87: =ROUND(E87*D87,2) -> 1.30 | M87: =ROUND(G87*D87,2) -> 26.00 | N87: =ROUND(D87*H87,2) -> 123.50 | O87: =ROUND(D87*I87,2) -> 0.00 | P87: =ROUND(SUM(M87:O87),2) -> 149.50
B88: ievēršana balsta | C88: m | D88: 30.00 | E88: 0.01 | F88: 20.00 | G88: 0.20 | H88: 0.00 | I88: 0.00 | J88: 0.20 | L88: 0.30 | M88: 6.00 | N88: 0.00 | O88: 0.00 | P88: 6.00
B89: ievēršana caurule | C89: m | D89: 100.00 | E89: 0.01 | F89: 20.00 | G89: 0.20 | H89: 0.00 | I89: 0.00 | J89: 0.20 | L89: 1.00 | M89: 20.00 | N89: 0.00 | O89: 0.00 | P89: 20.00
A90: 8.21 | B90: Luksofora saslēgšana un iedarbināšana | C90: kompl. | D90: 1.00 | E90: 12.00 | F90: 20.00 | G90: 240.00 | H90: 0.00 | I90: 10.00 | J90: 250.00 | K90: =P90/D90 -> 250.00 | L90: 12.00 | M90: 240.00 | N90: 0.00 | O90: 10.00 | P90: 250.00
A91: 8.22 | B91: Izpildes dokumentācija un mērījumi | C91: kompl. | D91: 1.00 | E91: 40.00 | F91: 20.00 | G91: 800.00 | H91: 10.00 | I91: 10.00 | J91: 820.00 | K91: =P91/D91 -> 820.00 | L91: 40.00 | M91: 800.00 | N91: 10.00 | O91: 10.00 | P91: 820.00
A93: Kopā: | J93: =J8+J17+J21+J25+J28+J31+J34+J37+J40+J44+J50+J56+J59+J63+J67+J70+J74+J77+J82+J86+J90+J91 -> 22,211.24 | K93: =K8+K17+K21+K25+K28+K31+K34+K37+K40+K44+K50+K56+K59+K63+K67+K70+K74+K77+K82+K86+K90+K91 -> 21,513.83 | L93: =L8+L17+L21+L25+L28+L31+L34+L37+L40+L44+L50+L56+L59+L63+L67+L70+L74+L77+L82+L86+L90+L91 -> 218.39 | M93: 4,368.80 | N93: 44,719.80 | O93: 5,293.00 | P93: =P8+P17+P21+P25+P28+P31+P34+P37+P40+P44+P50+P56+P59+P63+P67+P70+P74+P77+P82+P86+P90+P91 -> 54,381.60
A94: PVN 21%: | J94: =ROUND(J93*0.21,2) -> 4664.36 | K94: =ROUND(K93*0.21,2) -> 4517.90 | M94: =ROUND(M93*0.21,2) -> 917.45 | N94: 9391.16 | O94: 1111.53 | P94: 11420.14
A95: Kopā ar PVN: | J95: =SUM(J93:J94) -> 26,875.60 | K95: 26,031.73 | M95: =SUM(M93:M94) -> 5,286.25 | N95: 54,110.96 | O95: 6,404.53 | P95: 65,801.74

Sheet 24
A1: 2024-02-05
A2: 08:30 - 09:10 | B2: Sistēmu programmēšana - 2 - 2 | C2: — | D2: 110 - 2
A3: 09:10 - 09:50 | B3: Sistēmu programmēšana - 2 - 2 | C3: — | D3: 110 - 2
A4: 10:00 - 10:40 | B4: Sistēmu programmēšana - 2 - 2 | C4: — | D4: 110 - 2
A5: 10:40 - 11:20 | B5: Sistēmu programmēšana - 2 - 2 | C5: — | D5: 110 - 2
A6: 11:30 - 12:10 | B6: — | C6: — | D6: —
A7: 12:10 - 12:50 | B7: Sistēmu programmēšana - 2 - 2 | C7: — | D7: 110 - 2
A8: 13:00 - 13:40 | B8: Sistēmu programmēšana - 2 - 2 | C8: — | D8: 110 - 2
A9: 13:50 - 14:30 | B9: Sistēmu programmēšana - 2 - 2 | C9: — | D9: 110 - 2
A10: 14:30 - 15:10 | B10: Sistēmu programmēšana - 2 - 2 | C10: — | D10: 110 - 2
A11: 15:20 - 16:00 | B11: — | C11: — | D11: —
A12: 16:00 - 16:40 | B12: — | C12: — | D12: —
A13: 16:50 - 17:30 | B13: — | C13: — | D13: —
A14: 17:40 - 18:20 | B14: — | C14: — | D14: —
A15: 18:30 - 19:10 | B15: — | C15: — | D15: —
A16: 2024-02-06
A17: 08:30 - 09:10 | B17: EIKT produkta izstrāde - 1 - 1 | C17: 401 | D17: 410 - 1
B18: EIKT produkta izstrāde - 2 - 2 | C18: 401 | D18: 410 - 2
A19: 09:10 - 09:50 | B19: EIKT produkta izstrāde - 1 - 1 | C19: 401 | D19: 410 - 1
B20: EIKT produkta izstrāde - 2 - 2 | C20: 401 | D20: 410 - 2
A21: 10:00 - 10:40 | B21: EIKT produkta izstrāde - 1 - 1 | C21: 401 | D21: 410 - 1
B22: EIKT produkta izstrāde - 2 - 2 | C22: 401 | D22: 410 - 2
A23: 10:40 - 11:20 | B23: EIKT produkta izstrāde - 1 - 1 | C23: 401 | D23: 410 - 1
B24: EIKT produkta izstrāde - 2 - 2 | C24: 401 | D24: 410 - 2
A25: 11:30 - 12:10 | B25: Datu bāzu programmēšana - 1 - 1 | C25: 401 | D25: 210 - 1
B26: Datu bāzu programmēšana - 2 - 2 | C26: 401 | D26: 210 - 2
A27: 12:10 - 12:50 | B27: — | C27: — | D27: —
A28: 13:00 - 13:40 | B28: Datu bāzu programmēšana - 1 - 1 | C28: 401 | D28: 210 - 1
B29: Datu bāzu programmēšana - 2 - 2 | C29: 401 | D29: 210 - 2
A30: 13:50 - 14:30 | B30: — | C30: — | D30: —
A31: 14:30 - 15:10 | B31: — | C31: — | D31: —
A32: 15:20 - 16:00 | B32: — | C32: — | D32: —
A33: 16:00 - 16:40 | B33: — | C33: — | D33: —
A34: 16:50 - 17:30 | B34: — | C34: — | D34: —
A35: 17:40 - 18:20 | B35: — | C35: — | D35: —
A36: 18:30 - 19:10 | B36: — | C36: — | D36: —
A37: 2024-02-07
A38: 08:30 - 09:10 | B38: EIKT produkta izstrāde - 1 - 1 | C38: 401 | D38: 410 - 1
B39: EIKT produkta izstrāde - 2 - 2 | C39: 401 | D39: 410 - 2
A40: 09:10 - 09:50 | B40: EIKT produkta izstrāde - 1 - 1 | C40: 401 | D40: 410 - 1
B41: EIKT produkta izstrāde - 2 - 2 | C41: 401 | D41: 410 - 2
A42: 10:00 - 10:40 | B42: EIKT produkta izstrāde - 1 - 1 | C42: 401 | D42: 410 - 1
B43: EIKT produkta izstrāde - 2 - 2 | C43: 401 | D43: 410 - 2
A44: 10:40 - 11:20 | B44: EIKT produkta izstrāde - 1 - 1 | C44: 401 | D44: 410 - 1
B45: EIKT produkta izstrāde - 2 - 2 | C45: 401 | D45: 410 - 2
A46: 11:30 - 12:10 | B46: Datu bāzu programmēšana - 1 - 1 | C46: 401 | D46: 210 - 1
B47: Datu bāzu programmēšana - 2 - 2 | C47: 401 | D47: 210 - 2
A48: 12:10 - 12:50 | B48: — | C48: — | D48: —
A49: 13:00 - 13:40 | B49: Datu bāzu programmēšana - 1 - 1 | C49: 401 | D49: 210 - 1
B50: Datu bāzu programmēšana - 2 - 2 | C50: 401 | D50: 210 - 2
A51: 13:50 - 14:30 | B51: Datu bāzu programmēšana - 1 - 1 | C51: 401 | D51: 210 - 1
B52: Datu bāzu programmēšana - 2 - 2 | C52: 401 | D52: 210 - 2
A53: 14:30 - 15:10 | B53: Datu bāzu programmēšana - 1 - 1 | C53: 401 | D53: 210 - 1
B54: Datu bāzu programmēšana - 2 - 2 | C54: 401 | D54: 210 - 2
A55: 15:20 - 16:00 | B55: — | C55: — | D55: —
A56: 16:00 - 16:40 | B56: — | C56: — | D56: —
A57: 16:50 - 17:30 | B57: — | C57: — | D57: —
A58: 17:40 - 18:20 | B58: — | C58: — | D58: —
A59: 18:30 - 19:10 | B59: — | C59: — | D59: —
A60: 2024-02-08
A61: 08:30 - 09:10 | B61: Sistēmu programmēšana - 2 - 2 | C61: 401 | D61: 210 - 2
A62: 09:10 - 09:50 | B62: Sistēmu programmēšana - 2 - 2 | C62: 401 | D62: 210 - 2
A63: 10:00 - 10:40 | B63: Sistēmu programmēšana - 2 - 2 | C63: 401 | D63: 210 - 2
A64: 10:40 - 11:20 | B64: Sistēmu programmēšana - 2 - 2 | C64: 401 | D64: 210 - 2
A65: 11:30 - 12:10 | B65: Sistēmu programmēšana - 2 - 2 | C65: 401 | D65: 210 - 2
A66: 12:10 - 12:50 | B66: — | C66: — | D66: —
A67: 13:00 - 13:40 | B67: Sistēmu programmēšana - 2 - 2 | C67: 401 | D67: 210 - 2
A68: 13:50 - 14:30 | B68: Sistēmu programmēšana - 2 - 2 | C68: 401 | D68: 210 - 2
A69: 14:30 - 15:10 | B69: Sistēmu programmēšana - 2 - 2 | C69: 401 | D69: 210 - 2
A70: 15:20 - 16:00 | B70: — | C70: — | D70: —
A71: 16:00 - 16:40 | B71: — | C71: — | D71: —
A72: 16:50 - 17:30 | B72: — | C72: — | D72: —
A73: 17:40 - 18:20 | B73: — | C73: — | D73: —
A74: 18:30 - 19:10 | B74: — | C74: — | D74: —
A75: 2024-02-09
A76: 08:30 - 09:10 | B76: EIKT produkta izstrāde - 2 - 2 | C76: — | D76: 410 - 2
A77: 09:10 - 09:50 | B77: EIKT produkta izstrāde - 2 - 2 | C77: — | D77: 410 - 2
A78: 10:00 - 10:40 | B78: EIKT produkta izstrāde - 2 - 2 | C78: — | D78: 410 - 2
A79: 10:40 - 11:20 | B79: EIKT produkta izstrāde - 2 - 2 | C79: — | D79: 410 - 2
A80: 11:30 - 12:10 | B80: EIKT produkta izstrāde - 2 - 2 | C80: — | D80: 410 - 2
A81: 12:10 - 12:50 | B81: — | C81: — | D81: —
A82: 13:00 - 13:40 | B82: EIKT produkta izstrāde - 2 - 2 | C82: — | D82: 410 - 2
A83: 13:50 - 14:30 | B83: EIKT produkta izstrāde - 2 - 2 | C83: — | D83: 410 - 2
A84: 14:30 - 15:10 | B84: EIKT produkta izstrāde - 2 - 2 | C84: — | D84: 410 - 2
A85: 15:20 - 16:00 | B85: — | C85: — | D85: —
A86: 16:00 - 16:40 | B86: — | C86: — | D86: —
A87: 16:50 - 17:30 | B87: — | C87: — | D87: —
A88: 17:40 - 18:20 | B88: — | C88: — | D88: —
A89: 18:30 - 19:10 | B89: — | C89: — | D89: —
A90: 2024-02-10
A91: 08:30 - 09:10 | B91: — | C91: — | D91: —
A92: 09:10 - 09:50 | B92: — | C92: — | D92: —
A93: 10:00 - 10:40 | B93: — | C93: — | D93: —
A94: 10:40 - 11:20 | B94: — | C94: — | D94: —
A95: 11:30 - 12:10 | B95: — | C95: — | D95: —
A96: 12:10 - 12:50 | B96: — | C96: — | D96: —
A97: 13:00 - 13:40 | B97: — | C97: — | D97: —
A98: 13:50 - 14:30 | B98: — | C98: — | D98: —
A99: 14:30 - 15:10 | B99: — | C99: — | D99: —
A100: 15:20 - 16:00 | B100: — | C100: — | D100: —
A101: 16:00 - 16:40 | B101: — | C101: — | D101: —
A102: 16:50 - 17:30 | B102: — | C102: — | D102: —
A103: 2024-02-11
A104: Brīvdiena

Sheet 25
A1: Nr. | B1: Luksoforu objekts | C1: Kontrolieru tips | D1: Izsaukuma iekārtas | G1: Skaņas signāli
D2: Pogas | E2: Kameras | F2: Sensori | I2: Objekta nosaukums jāiegūst no Ielu nosaukumiem
A3: 1 | B3: Lielās ielas -J.Čakstes ielas krust. | C3: EC-2, Nīderlande | D3: - | E3: - | F3: - | G3: -
A4: 2 | B4: Lielās ielas -Akadēmijas ielas krust. | C4: EC-2, Nīderlande | D4: - | E4: - | F4: - | G4: -
A5: 3 | B5: Lielās ielas - Katoļu ielas krust. | C5: EC-2, Nīderlande | D5: 2 | E5: - | F5: - | G5: -
A6: 4 | B6: Lielās ielas - Pasta ielas krust. | C6: EC-2, Nīderlande | D6: - | E6: - | F6: 2 | G6: -
A7: 5 | B7: Lielās ielas -J.Mātera ielas krust. | C7: EC-2, Nīderlande | D7: - | E7: - | F7: - | G7: -
A8: 6 | B8: Lielās ielas - Pētera ielas krust. | C8: EC-2, Nīderlande | D8: - | E8: - | F8: - | G8: -
A10: 7 | B10: Lielās ielas -Dambja ielas krust. | C10: EC-2, Nīderlande | D10: - | E10: - | F10: - | G10: 8
A11: 8 | B11: Raiņa ielas - Akadēmijas ielas krust. | C11: EC-2, Nīderlande | D11: 8 | E11: - | F11: 7 | G11: -
A13: 9 | B13: Raiņa ielas - Katoļu ielas krust. | C13: EC-2, Nīderlande | D13: 8 | E13: - | F13: 10 | G13: -
A15: 10 | B15: Raiņa ielas - Pasta ielas krust. | C15: EC-2, Nīderlande | D15: 8 | E15: - | F15: 7 | G15: -
A17: 11 | B17: Raiņa ielas - J.Mātera ielas krust. | C17: EC-2, Nīderlande | D17: 8 | E17: - | F17: 12 | G17: -
A19: 12 | B19: Svētes ielas - J.Mātera ielas krust. | C19: EC-2, Nīderlande | D19: - | E19: - | F19: - | G19: -
A20: 13 | B20: Pasta ielas - Driksas ielas krust. | C20: EC-2, Nīderlande | D20: 2 | E20: - | F20: - | G20: -
A21: 14 | B21: Pasta ielas - S.Edžus ielas krust. | C21: EC-2, Nīderlande | D21: - | E21: - | F21: - | G21: -
A22: 15 | B22: Uzvaras ielas - Kr.Barona ielas krust. | C22: EC-2, Nīderlande | D22: 2 | E22: - | F22: - | G22: -
A23: 16 | B23: Dobeles ielas - Pulkv.Brieža ielas krust. | C23: EC-2, Nīderlande | D23: - | E23: - | F23: - | G23: -
A25: 17 | B25: Lielās ielas, gājēju pāreja „IKI” | C25: VTC2000 mini, Ungārija | D25: 4 | E25: - | F25: - | G25: 4
A26: 18 | B26: Dobeles šosejas - Māras ielas krust. | C26: VTC2000, Ungārija | D26: - | E26: - | F26: - | G26: 10
A27: 19 | B27: Dobeles šosejas - Satiksmes ielas krust. | C27: VTC2000, Ungārija | D27: - | E27: - | F27: - | G27: 8
A28: 20 | B28: Dobeles šosejas - Atmodas ielas krust. | C28: VTC2000, Ungārija | D28: - | E28: - | F28: - | G28: 6
A29: 21 | B29: Dobeles šosejas - 4.līnijas krust. | C29: EC-2, Nīderlande | D29: 6 | E29: - | F29: 8 | G29: 6
A31: 22 | B31: Rūpniecības ielas - J.Mātera ielas krust. | C31: VSF12, Ungārija | D31: - | E31: - | F31: - | G31: -
A32: 23 | B32: Rūpniecības ielas - Pulkv.O.Kalpaka ielas krust. | C32: VSF12, Ungārija | D32: - | E32: - | F32: - | G32: -
A33: 24 | B33: Rūpniecības ielas gājēju pāreja | C33: VTC1040, Ungārija | D33: - | E33: - | F33: - | G33: -
A34: 25 | B34: Rūpniecības ielas - Tērvetes ielas krust. | C34: VSF12, Ungārija | D34: - | E34: - | F34: - | G34: -
A35: 26 | B35: Rūpniecības ielas - Filozofu ielas krust. | C35: VTC2000, Ungārija | D35: 2 | E35: 2 | F35: - | G35: 6
A36: 27 | B36: Rūpniecības ielas - Dambja ielas krust. | C36: VTC2000, Ungārija | D36: 2 | E36: 3 | F36: - | G36: 6
A37: 28 | B37: Pasta ielas - Stacijas ielas krust. gājēju pāreja | C37: VTC1040, Ungārija | D37: 2 | E37: - | F37: - | G37: -
A38: 29 | B38: Stacijas ielas gājēju pāreja | C38: GE "Fanuc", Japāna | D38: 2 | E38: - | F38: - | G38: -
A39: 30 | B39: Zemgales prospekta gājēju pāreja | C39: VTC1040, Ungārija | D39: 2 | E39: - | F39: - | G39: -
A41: 31 | B41: Lietuvas šosejas - Miera ielas krust. | C41: VSF12, Ungārija | D41: - | E41: - | F41: - | G41: -
A42: 32 | B42: Meiju ceļa - Satiksmes ielas krust. | C42: VSF12, Ungārija | D42: - | E42: - | F42: - | G42: -
A44: 33 | B44: Tērvetes ielas - Raiņa ielas krust. | C44: EC-2, Nīderlande | D44: 8 | E44: - | F44: 6 | G44: -
A46: 34 | B46: Raiņa ielas - Pulkv.O.Kalpaka krust. | C46: EC-2, Nīderlande | D46: 8 | E46: - | F46: 8 | G46: -
A48: 35 | B48: Rīgas ielas - Brīvības bulvāra krust. | C48: VTC2000, Ungārija | D48: 2 | E48: - | F48: - | G48: -
A50: 36 | B50: Rīgas ielas - Kalnciema ceļa krust. | C50: VTC2000, Ungārija | D50: - | E50: - | F50: - | G50: -
A52: 37 | B52: Brīvības bulvāra - Garozas ielas krust. | C52: VTC2000, Ungārija | D52: - | E52: - | F52: - | G52: -
A54: 38 | B54: Brīvības bulvāra - Lāčplēša ielas krust. | C54: VTC2000, Ungārija | D54: - | E54: - | F54: - | G54: -
A56: 39 | B56: Rīgas ielas - Izstādes ielas krust. | C56: VTC1080, | D56: - | E56: - | F56: - | G56: -
C57: Ungārija
A58: 40 | B58: Rīgas ielas - Institūta ielas krust. | C58: VTC2012, | D58: 2 | E58: 2 | F58: - | G58: -
C59: Ungārija
A60: 41 | B60: Rīgas ielas - Strazdu ielas krust. | C60: VSF12, | D60: 4 | E60: 2 | F60: - | G60: -
C61: Ungārija
A62: 42 | B62: Rīgas ielas - Pērnavas ielas krust. | C62: VSF12, | D62: - | E62: - | F62: - | G62: -
C63: Ungārija
A64: 43 | B64: Rīgas ielas - Loka maģistrāles krust. | C64: VSF12, | D64: - | E64: - | F64: - | G64: -
C65: Ungārija
A66: 44 | B66: Rīgas ielas -„Keramika” krust. | C66: VSF6, | D66: 2 | E66: 1 | F66: - | G66: -
C67: Ungārija
A68: 45 | B68: Dobeles-Pasta-Blaumaņa ielu krust. | C68: EC-2, Nīderlande | D68: 4 | E68: 1 | F68: - | G68: -
A70: 46[4] | B70: Dobeles šosejas - 5.līnijas krust. | C70: EC-2, Nīderlande | D70: 6 | E70: - | F70: 8 | G70: 6
A74: [1] - luksoforu objekti, aprīkoti ar EC-2 kontrolieriem tiek attālināti kontrolēti no POIC.
A75: [2] - objektiem nr.1,2,3,4,5,6,12,13,14,15,16 garantijas laiks attiecas tikai uz luksoforu kontrolieriem.
A76: [3] - objektus, kuros notiek rekonstrukcijas darbi nav jāapsaimnieko līdz brīdim, kad tie tiks nodoti JPPA „Pilsētsaimniecība” ekspluatācijā, par rekonstruēto objektu pieņemšanu ekspluatācija Izpildītajam tiks paziņots rakstiski, orientējošs nodošanas datums ir 31.08.2012.
A77: [4] - līguma darbības laikā, līdz tā termiņa beigām, var tikt uzstādīti papildus vēl 8 luksoforu objekti, ar ko tiks papildināts saraksts, attiecīgi noslēdzot rakstisku vienošanos.

Sheet 26
A1: Ziņojuma datums (Date of report) | B1: Laiks (Time) | C1: Nedēļa (Week) | D1: Atskaitošā persona (Reporting person) | E1: Avots (Source) | F1: Ziņojuma apraksts (Description of reported issue) | G1: Atrašanās vieta (Location of issue) | H1: Ierīces tips (Device type) | I1: Problēmas veids (Type of issue) | J1: Piezīmes (Remarks) | K1: Veiktās darbības (Action take) | L1: Stāvoklis (Statuss) | M1: Rīcības datums (Date of action) | N1: Rīcības laiks (Action time) | O1: Nedēļa (Week) | P1: Darbības persona (Action person)
A2: 2022-01-03 | B2: 08:00:00 | C2: 1 | D2: Andrius Boznis | E2: Personīgi (personal) | F2: Login to servers (monitoring, imflow, snaps) | G2: _Server | H2: GENERAL | I2: UZTURĒŠANA (MAINTANANCE) | L2: GATAVS (DONE) | M2: 2021-01-04 | N2: 08:00:00 | O2: 1 | P2: Andrius Boznis
A3: 2022-01-03 | B3: 08:00:00 | C3: 1 | D3: Andrius Boznis | E3: Personīgi (personal) | F3: Resset alarm PB7 | G3: Rīgas-Loka | H3: GENERAL | I3: UZTURĒŠANA (MAINTANANCE) | L3: GATAVS (DONE) | M3: 2022-01-03 | N3: 08:00:00 | O3: 1 | P3: Andrius Boznis
A4: 2022-01-04 | B4: 08:00:00 | C4: 1 | D4: Andrius Boznis | E4: Personīgi (personal) | F4: Login to servers (monitoring, imflow, snaps) | G4: _Server | H4: GENERAL | I4: UZTURĒŠANA (MAINTANANCE) | L4: GATAVS (DONE) | M4: 2022-01-04 | N4: 08:00:00 | O4: 1 | P4: Andrius Boznis
A5: 2022-01-04 | B5: 08:00:00 | C5: 1 | D5: Andrius Boznis | E5: Personīgi (personal) | F5: Resset alarm PB7 | G5: Rīgas-Loka | H5: GENERAL | I5: UZTURĒŠANA (MAINTANANCE) | L5: GATAVS (DONE) | M5: 2022-01-04 | N5: 08:00:00 | O5: 1 | P5: Andrius Boznis
A6: 2022-01-04 | B6: 08:00:00 | C6: 1 | D6: Andrius Boznis | E6: Personīgi (personal) | F6: Resset alarm PP2 | G6: Lietuvas-Savienības | H6: GENERAL | I6: UZTURĒŠANA (MAINTANANCE) | L6: GATAVS (DONE) | M6: 2022-01-04 | N6: 08:00:00 | O6: 1 | P6: Andrius Boznis
A7: 2022-01-04 | B7: 08:00:00 | C7: 1 | D7: Andrius Boznis | E7: Personīgi (personal) | F7: Resset alarm D1 | G7: Rīgas-Brīvības | H7: GENERAL | I7: UZTURĒŠANA (MAINTANANCE) | L7: GATAVS (DONE) | M7: 2022-01-04 | N7: 08:00:00 | O7: 1 | P7: Andrius Boznis
A8: 2022-01-04 | B8: 08:00:00 | C8: 1 | D8: Andrius Boznis | E8: Personīgi (personal) | F8: Resset alarm PB4 | G8: Raiņa-Akadēmijas | H8: GENERAL | I8: UZTURĒŠANA (MAINTANANCE) | L8: GATAVS (DONE) | M8: 2022-01-04 | N8: 08:00:00 | O8: 1 | P8: Andrius Boznis
A9: 2022-01-04 | B9: 08:00:00 | C9: 1 | D9: Andrius Boznis | E9: Personīgi (personal) | F9: Resset alarm PB7 | G9: Lielā-Akadēmijas-Uzvaras | H9: GENERAL | I9: UZTURĒŠANA (MAINTANANCE) | L9: GATAVS (DONE) | M9: 2022-01-04 | N9: 08:00:00 | O9: 1 | P9: Andrius Boznis
A10: 2022-01-04 | B10: 08:00:00 | C10: 1 | D10: Andrius Boznis | E10: Personīgi (personal) | F10: Resset alarm PB1 | G10: Lielā-Pētera-Barona | H10: GENERAL | I10: UZTURĒŠANA (MAINTANANCE) | L10: GATAVS (DONE) | M10: 2022-01-04 | N10: 08:00:00 | O10: 1 | P10: Andrius Boznis
A11: 2022-01-04 | B11: 08:00:00 | C11: 1 | D11: Andrius Boznis | E11: Personīgi (personal) | F11: Resset alarm PP2 | G11: Pasta-Sporta-Zirgu | H11: GENERAL | I11: UZTURĒŠANA (MAINTANANCE) | L11: GATAVS (DONE) | M11: 2022-01-04 | N11: 08:00:00 | O11: 1 | P11: Andrius Boznis
A12: 2022-01-04 | B12: 08:00:00 | C12: 1 | D12: Andrius Boznis | E12: Personīgi (personal) | F12: Resset alarm PB7 | G12: Raiņa-Pasta | H12: GENERAL | I12: UZTURĒŠANA (MAINTANANCE) | L12: GATAVS (DONE) | M12: 2022-01-04 | N12: 08:00:00 | O12: 1 | P12: Andrius Boznis
A13: 2022-01-05 | B13: 08:00:00 | C13: 1 | D13: Andrius Boznis | E13: Personīgi (personal) | F13: Login to servers (monitoring, imflow, snaps) | G13: _Server | H13: GENERAL | I13: UZTURĒŠANA (MAINTANANCE) | L13: GATAVS (DONE) | M13: 2022-01-05 | N13: 08:00:00 | O13: 1 | P13: Andrius Boznis
A14: 2022-01-05 | B14: 08:00:00 | C14: 1 | D14: Andrius Boznis | E14: Personīgi (personal) | F14: Resset alarm PB7 | G14: Rīgas-Loka | H14: GENERAL | I14: UZTURĒŠANA (MAINTANANCE) | L14: GATAVS (DONE) | M14: 2022-01-05 | N14: 08:00:00 | O14: 1 | P14: Andrius Boznis
A15: 2022-01-05 | B15: 08:00:00 | C15: 1 | D15: Andrius Boznis | E15: Personīgi (personal) | F15: Resset alarm PB12 | G15: Lielā-Akadēmijas-Uzvaras | H15: GENERAL | I15: UZTURĒŠANA (MAINTANANCE) | L15: GATAVS (DONE) | M15: 2022-01-05 | N15: 08:00:00 | O15: 1 | P15: Andrius Boznis
A16: 2022-01-05 | B16: 08:00:00 | C16: 1 | D16: Andrius Boznis | E16: Personīgi (personal) | F16: Resset alarm PB7 | G16: Lielā-Katoļu | H16: GENERAL | I16: UZTURĒŠANA (MAINTANANCE) | L16: GATAVS (DONE) | M16: 2022-01-05 | N16: 08:00:00 | O16: 1 | P16: Andrius Boznis
A17: 2022-01-05 | B17: 08:00:00 | C17: 1 | D17: Andrius Boznis | E17: Personīgi (personal) | F17: Resset alarm PB1 | G17: Raiņa-Akadēmijas | H17: GENERAL | I17: UZTURĒŠANA (MAINTANANCE) | L17: GATAVS (DONE) | M17: 2022-01-05 | N17: 08:00:00 | O17: 1 | P17: Andrius Boznis
B23: DZELTENĀS IR IZVĒLES NO GATAVIEM DATIEM

Sheet 27
A1: Adrese | B1: Skaitītāja numurs | C1: Reģistra nosau-kums | D1: Pēdējā rādījuma datums | E1: Pēdējais Rādījums | F1: Rādījuma datums | G1: rādījums | H1: Patēriņš | J1: Objekta nosaukums, autoceļa apzīmejums, Pozicija, nosaukums nāk no adreses
A2: Autoceļš A8 Rīga-Jelgavas robeža 41,712-42,326km (Meitene) | B2: 210621 | C2: (+)WT2 | D2: 2014-12-30 | E2: 1554 | F2: 2015-01-31 | G2: 2166 | H2: =G2-E2 -> 612
B3: 210621 | C3: (+)WT4 | D3: 2014-12-30 | E3: 2000 | F3: 2015-01-31 | G3: 2706 | H3: 706
A4: Autoceļš A8 Rīga-Jelgava-Lietuvas robeža 30,06-31,54km (Meitene) | B4: 116335 | C4: (+)WT2 | D4: 2014-12-30 | E4: 00111767 | F4: 2015-01-31 | G4: 00114242 | H4: 2475
B5: 116335 | C5: (+)WT4 | D5: 2014-12-30 | E5: 00151878 | F5: 2015-01-31 | G5: 00154378 | H5: 2500
A6: Autoceļš A8 Rīga-Jelgava-Lietuvas robeža 29,30km(Dalbe) | B6: 106634 | C6: (+)WT2 | D6: 2014-12-30 | E6: 00049196 | F6: 2015-01-31 | G6: 00050092 | H6: 896
B7: 106634 | C7: (+)WT4 | D7: 2014-12-30 | E7: 00066323 | F7: 2015-01-31 | G7: 00067401 | H7: 1078
A8: Autoceļš P93 Jelgava-Jecava 12,74-13,74km | B8: 415288 | C8: (+)WT2 | D8: 2014-12-30 | E8: 00037129 | F8: 2015-01-31 | G8: 00038431 | H8: 1302 | L8: Reģistra nosau-kums | M8: OBIS
B9: 415288 | C9: (+)WT4 | D9: 2014-12-30 | E9: 00064878 | F9: 2015-01-31 | G9: 00066499 | H9: 1621 | L9: (+)WT2 | M9: 182
A10: Mežciems | B10: 230033 | C10: (+)WT2 | D10: 2014-12-30 | E10: 00037197 | F10: 2015-01-31 | G10: 00038601 | H10: 1404 | L10: (+)WT4 | M10: 184
B11: 230033 | C11: (+)WT4 | D11: 2014-12-30 | E11: 00076402 | F11: 2015-01-31 | G11: 00078334 | H11: 1932
A12: Lielupes tilta apgaismojums. | B12: 210621 | C12: 182 | D12: 2014-11-30 | E12: 989 | F12: 2014-12-30 | G12: 1554 | H12: 565
A13: Autoceļš A8Rīga‑Jelgava‑Lietuvas robeža 41,712‑42,326 km (Meitene) | C13: 184 | D13: 2014-11-30 | E13: 1299 | F13: 2014-12-30 | G13: 2000 | H13: 701
A14: Autoceļš A8 Rīga‑Jelgava‑Lietuvas robeža 30,06‑31,54 km (Meitene) | B14: 116335 | C14: 182 | D14: 2014-11-30 | E14: 00109322 | F14: 2014-12-30 | G14: 00111767 | H14: 2445
C15: 184 | D15: 2014-11-30 | E15: 00149211 | F15: 2014-12-30 | G15: 00151878 | H15: 2667
A16: Autoceļš A8 Rīga‑Jelgava‑Lietuvas robeža 29,30 km (Dalbe) | B16: 106634 | C16: 182 | D16: 2014-11-30 | E16: 00047655 | F16: 2014-12-30 | G16: 00049196 | H16: 1541
C17: 184 | D17: 2014-11-30 | E17: 00064565 | F17: 2014-12-30 | G17: 00066323 | H17: 1758
A18: Autoceļš P93 Jelgava‑Iecava 12,74‑13,74 km | B18: 415288 | C18: 182 | D18: 2014-11-30 | E18: 00036344 | F18: 2014-12-30 | G18: 00037129 | H18: 785
C19: 184 | D19: 2014-11-30 | E19: 00063979 | F19: 2014-12-30 | G19: 00064878 | H19: 899
A20: Mežciems | B20: 230033 | C20: 182 | D20: 2014-11-30 | E20: 00036333 | F20: 2014-12-30 | G20: 00037197 | H20: 864
C21: 184 | D21: 2014-11-30 | E21: 00075419 | F21: 2014-12-30 | G21: 00076402 | H21: 983

Sheet 28
A1: Objekts: Dobeles-5.līnijas
A2: Pasūtījums nr: xx-xxxx
A3: Datums: 01.03.2024
A4: Nr. | B4: Darba nosaukums | C4: Mērvienība | D4: Vienības izcenojums*, euro (bez PVN) | E4: Skaits | F4: Kopā
A5: I. | B5: Darbu veidi
A6: 4 | B6: Detekcijas kameru uzturēšanas un montāžas darbi
A7: 4.1. | B7: Detekcijas kameras uzstādīšana uz balsta vai konsoles, regulēšana, programmēšana, pieslēgšana pārraudzības sistēmai | C7: kompl. | D7: 150.00 | F7: =D7*E7 -> 0.00
A8: 4.2. | B8: Detekcijas kameras pagriešana uz balsta vai konsoles, pārregulēšana pēc postījumiem (vējš u.c), ieskaitot programmēšanu pārraudzības sistēmā | C8: kompl. | D8: 75.00 | F8: =D8*E8 -> 0.00
A9: 7 | B9: Luksoforu objektu ikdienas uzturēšana
A10: 7.3. | B10: Luksoforu objekta pieslēgšana un konfigurēšana piedāvātajai attālinātās pārraudzības un vadības sistēmai | C10: h | D10: 75.00 | F10: =D10*E10 -> 0.00
A11: II. | B11: Materiālu un iekārtu veidi | E11: 0.00
A12: 10 | B12: Balsti un balstu piederumi
A13: 10.7. | B13: Datorizēta akustiska gājēju izsaukuma poga Langmatz EK533 (vai ekvivalents) | C13: gab. | D13: 610.00 | E13: 2 | F13: =D13*E13 -> 1220.00
A14: 11 | B14: Signālgalvas un signālgalvu piederumi | E14: 0.00
A15: 11.1. | B15: Transporta signālgalva (3 lēcas, 300mm, LED 230V) SWARCO CIWAY (vai ekvivalents) | C15: gab. | D15: 410.00 | F15: =D15*E15 -> 0.00
A16: 11.2. | B16: Transporta signālgalva ar papildsekciju (4 lēcas, 300mm, LED 230V) SWARCO CIWAY (vai ekvivalents) | C16: gab. | D16: 385.00 | F16: 0.00
A17: 11.3. | B17: Gājēju signālgalva (2 lēcas, 200mm, LED 230V) Svvarco CIWAY (vai ekvivalents) | C17: gab. | D17: 295.00 | F17: 0.00
A18: 11.4. | B18: Gājēju signālgalva ar sekunžu skaitītāju (3 lēcas, 200mm, LED 230V) Svvarco CIWAY (vai ekvivalents) | C18: gab. | D18: 820.00 | F18: 0.00
A19: 11.5. | B19: Brīdinājuma signālgalva (1 lēca, 300mm, LED 230V) Swarco CIWAY (vai ekvivalents) | C19: gab. | D19: 130.00 | F19: 0.00
A20: 11.6. | B20: Transporta signālgalva (3 lēcas, 300mm, LED 42V) Peek Supreme(vai ekvivalents) | C20: gab. | D20: 430.00 | F20: 0.00
A21: 11.7. | B21: Transporta signālgalva ar papildsekciju (4 lēcas, 300mm, LED 42V) Peek Supreme (vai ekvivalents) | C21: gab. | D21: 570.00 | F21: 0.00
A22: 11.8. | B22: Gājēju signālgalva (2 lēcas, 3x200mm, LED 42V) Peek Supreme (vai ekvivalents) | C22: gab. | D22: 305.00 | F22: 0.00
A23: 11.9. | B23: Gājēju signālgalva ar sekunžu skaitītāju (3 lēcas, 200mm, LED 42V) Peek Supreme (vai ekvivalents) | C23: gab. | D23: 820.00 | F23: 0.00
A24: 11.10. | B24: Brīdinājuma signālgalva (1 lēca, 300mm, LED 42V) Peek Supreme (vai ekvivalents) | C24: gab. | D24: 130.00 | F24: 0.00
A25: 11.11. | B25: Signāllēca (300mm, LED 230V) Swarco Futurled (vai ekvivalents) | C25: gab. | D25: 95.00 | F25: 0.00
A26: 11.12. | B26: Signāllēca (200mm, LED 230V) Swarco Futurled (vai ekvivalents) | C26: gab. | D26: 72.00 | F26: 0.00
A27: 11.13. | B27: Signāllēca (300mm, LED 42V) Peek TLED (vai ekvivalents) | C27: gab. | D27: 95.00 | F27: 0.00
A28: 11.14. | B28: Signāllēca (200mm, LED 42V) Peek TLED (vai ekvivalents) | C28: gab. | D28: 85.00 | F28: 0.00
A29: 11.15. | B29: Signālgalvas stiprinājuma (alumīnija) kronšteins | C29: gab. | D29: 28.00 | F29: 0.00
A30: 11.16. | B30: Signālgalvas atstarojošais rāmītis | C30: gab. | D30: 185.00 | F30: 0.00
A31: 11.17. | B31: Signālgalvas atstarojošais rāmītis ar papildsekciju | C31: gab. | D31: 210.00 | F31: 0.00
A32: 11.18. | B32: Signālgalvas aizsargjumtiņš | C32: gab. | D32: 12.00 | F32: 0.00
A33: 12 | B33: Luksoforu kontrolieru piederumi
A34: 12.1. | B34: Skapis luksoforu kontrolieru montāžai (LVS) Thalassa enclosure 1250x750x320mm vai ekvivalents | C34: kompl. | D34: 1600.00 | F34: =D34*E34 -> 0.00
A35: 12.2. | B35: EC-2 MDU bloks | C35: gab. | D35: 620.00 | F35: 0.00
A36: 12.3. | B36: EC-2 CPU bloks | C36: gab. | D36: 595.00 | F36: 0.00
A37: 12.4. | B37: EC-2 LCM bloks | C37: gab. | D37: 825.00 | F37: 0.00
A38: 12.5. | B38: EC-2 101616 bloks | C38: gab. | D38: 325.00 | F38: 0.00
A39: 12.6. | B39: EC-2 ED316 bloks | C39: gab. | D39: 420.00 | F39: 0.00
A40: 12.7. | B40: EC-2 MMI bloks | C40: gab. | D40: 410.00 | F40: 0.00
A41: 12.8. | B41: EC-2 datu pārraides bloks GSM/GPRS | C41: gab. | D41: 520.00 | F41: 0.00
A42: 12.9. | B42: Optiskais konvertors CTC Union Technologies IFC-1400X-SC002 vai ekvivalents | C42: gab. | D42: 495.00 | F42: 0.00
A43: 12.10. | B43: Barošanas bloks 24V ICP DAS MDR-20-24 | C43: gab. | D43: 95.00 | F43: 0.00
A44: 12.11. | B44: Kontroliera vadības plates drošinātājs | C44: gab. | D44: 2.00 | F44: 0.00
A45: 12.12. | B45: Automātiskais slēdzis C2-32A 1 fāzu | C45: gab. | D45: 4.30 | F45: 0.00
A46: 12.13. | B46: Starprelejs 20A | C46: gab. | D46: 15.20 | F46: 0.00
A47: 12.14. | B47: Diferenciālas aizsardzības automāts 20A, 300mA 1 fāzu | C47: gab. | D47: 24.20 | F47: 0.00
E48: kopā | F48: =SUM(F5:F47) -> 1220.00

Sheet 29
A1: Vienfāzes skaitītāji
A2: Parametrs | B2: OBIS | D2: Ievēro normālformas
A3: Summārās aktīvās enerģijas Imports (A+), vēsturiskās vērtības | B3: OBIS 1.8.0*01
B4: OBIS 1.8.0*02
B5: OBIS 1.8.0*03
A6: Summārās aktīvās enerģijas Imports Tarifs 1 (A+), vēsturiskās vērtības | B6: OBIS 1.8.1*01
B7: OBIS 1.8.1*02
B8: OBIS 1.8.1*03
A9: Summārās aktīvās enerģijas Imports Tarifs 2 (A+), vēsturiskās vērtības | B9: OBIS 1.8.2*01
B10: OBIS 1.8.2*02
B11: OBIS 1.8.2*03
A12: Summārās aktīvās enerģijas Imports Tarifs 3 (A+), vēsturiskās vērtības | B12: OBIS 1.8.3*01
B13: OBIS 1.8.3*02
B14: OBIS 1.8.3*03
A15: Summārās aktīvās enerģijas Imports Tarifs 4 (A+), vēsturiskās vērtības | B15: OBIS 1.8.4*01
B16: OBIS 1.8.4*02
B17: OBIS 1.8.4*03
A18: Summārās aktīvās enerģijas Eksports (A-), vēsturiskās vērtības | B18: OBIS 2.8.0*01
B19: OBIS 2.8.0*02
B20: OBIS 2.8.0*03
A21: Kopējais aktīvas elektroenerģijas patēriņš Imports (A+), vēsturiskās vērtības | B21: OBIS 1.9.0*01
B22: OBIS 1.9.0*02
B23: OBIS 1.9.0*03
A24: Kopējais aktīvas elektroenerģijas patēriņš Eksports (A-), vēsturiskās vērtības | B24: OBIS 2.9.0*01
B25: OBIS 2.9.0*02
B26: OBIS 2.9.0*03
A27: Trīsfāzu skaitītāji
A28: Summārās aktīvās enerģijas Imports (A+), vēsturiskās vērtības | B28: OBIS 1.8.0*01
B29: OBIS 1.8.0*02
B30: OBIS 1.8.0*03
A31: Summārās aktīvās enerģijas Imports Tarifs 1 (A+), vēsturiskās vērtības | B31: OBIS 1.8.1*01
B32: OBIS 1.8.1*02
B33: OBIS 1.8.1*03
A34: Summārās aktīvās enerģijas Imports Tarifs 2 (A+), vēsturiskās vērtības | B34: OBIS 1.8.2*01
B35: OBIS 1.8.2*02
B36: OBIS 1.8.2*03
A37: Summārās aktīvās enerģijas Imports Tarifs 3 (A+), vēsturiskās vērtības | B37: OBIS 1.8.3*01
B38: OBIS 1.8.3*02
B39: OBIS 1.8.3*03
A40: Summārās aktīvās enerģijas Imports Tarifs 4 (A+), vēsturiskās vērtības | B40: OBIS 1.8.4*01
B41: OBIS 1.8.4*02
B42: OBIS 1.8.4*03
A43: Summārās aktīvās enerģijas Eksports (A-), vēsturiskās vērtības | B43: OBIS 2.8.0*01
B44: OBIS 2.8.0*02
B45: OBIS 2.8.0*03
A46: Summārās reaktīvās enerģijas Imports (R+), vēsturiskās vērtības | B46: OBIS 3.8.0*01
B47: OBIS 3.8.0*02
B48: OBIS 3.8.0*03
A49: Summārās reaktīvās enerģijas Eksports (R-), vēsturiskās vērtības | B49: OBIS 4.8.0*01
B50: OBIS 4.8.0*02
B51: OBIS 4.8.0*03
A52: Kopējais aktīvas elektroenerģijas patēriņš Imports (A+), vēsturiskās vērtības | B52: OBIS 1.9.0*01
B53: OBIS 1.9.0*02
B54: OBIS 1.9.0*03
A55: Kopējais aktīvas elektroenerģijas patēriņš Eksports (A-), vēsturiskās vērtības | B55: OBIS 2.9.0*01
B56: OBIS 2.9.0*02
B57: OBIS 2.9.0*03
A58: Kopējais reaktīvas elektroenerģijas patēriņš Imports (R+), vēsturiskās vērtības | B58: OBIS 3.9.0*01
B59: OBIS 3.9.0*02
B60: OBIS 3.9.0*03
A61: Kopējais reaktīvas elektroenerģijas patēriņš Eksports (R-), vēsturiskās vērtības | B61: OBIS 4.9.0*01
B62: OBIS 4.9.0*02
B63: OBIS 4.9.0*03

Sheet 30
A1: Pasūtītājs: JVPI Pilsētsaimniecība | F1: ACF 5.1.31
A2: Vien. reģ. Nr. 90001282486
A3: Pulkv.O.Kalpaka 16a, Jelgava
A5: Izpildītājs: Mītavas Elektra SIA
A6: Vien. reģ. Nr. 43603009810
A7: Jelgava, Vaļņu iela 8, LV-3001
A8: Līguma Nr. PIL/2-4/22/73
A9: Jelgavas valstspilsētas luksoforu objektu uzturēšana
A11: Akts Nr. 399/5189/2024-02
A13: Par 2024. gada februāra mēnesī izpildītajiem darbiem
A14: Datums / Kods | B14: Pakalpojuma veids | C14: Mēr- vienība | D14: Daudzums | E14: Vienības cena EUR | F14: Kopā EUR (bez PVN)
A15: 05.02.2024. - 05.02.2024. | B15: Dobeles šosejas - Satiksmes ielas krustojums , pasūtījuma nr: 106046
A16: 5 | B16: Signālgalvu uzturēšanas un montāžas darbi
A17: 5.13 | B17: Signāllēcas nomaiņa uz balsta | C17: gab. | D17: 1 | E17: 50.00 | F17: =ROUND(D17*E17,2) -> 50.00
A18: 11 | B18: Signālgalvas un signālgalvu piederumi
A19: 11.11 | B19: Signāllēca (300mm, LED 230V) Swarco Futurled | C19: gab. | D19: 1 | E19: 123.50 | F19: =ROUND(D19*E19,2) -> 123.50
A20: 09.02.2024. - 09.02.2024. | B20: Rūpniecības ielas - Mātera ielas krustojums , pasūtījuma nr: 106107
A21: 5 | B21: Signālgalvu uzturēšanas un montāžas darbi
A22: 5.10 | B22: Signālgalvas aizsargjumtiņa nomaiņa uz balsta | C22: gab. | D22: 2 | E22: 30.00 | F22: =ROUND(D22*E22,2) -> 60.00
A23: 5 | B23: Signālgalvu uzturēšanas un montāžas darbi
A24: 5.13 | B24: Signāllēcas nomaiņa uz balsta | C24: gab. | D24: 1 | E24: 50.00 | F24: =ROUND(D24*E24,2) -> 50.00
A25: 11 | B25: Signālgalvas un signālgalvu piederumi
A26: 11.12 | B26: Signāllēca (200mm, LED 230V) Swarco Futurled | C26: gab. | D26: 1 | E26: 93.60 | F26: =ROUND(D26*E26,2) -> 93.60
A27: 11 | B27: Signālgalvas un signālgalvu piederumi
A28: 11.18 | B28: Signālgalvas aizsargjumtiņš | C28: gab. | D28: 2 | E28: 15.60 | F28: =ROUND(D28*E28,2) -> 31.20
A29: 01.02.2024. - 29.02.2024. | B29: Visi luksoforu objekti (Atmodas ielas gājēju pāreja, Brīvības bulvāra - Garozas ielas krustojums, Brīvības bulvāra - Lāčplēša ielas krustojums, Dobeles ielas - Pulkveža Brieža ielas krustojums, Dobeles ielas - Uzvaras ielas krustojums, Dobeles šosejas - 4.līnijas krustojums, Dobeles šosejas - 5.līnijas krustojums, Dobeles šosejas - Atmodas ielas krustojums, Dobeles šosejas - Māras ielas krustojums, Dobeles šosejas - Satiksmes ielas krustojums, Krišjāņa Barona ielas - Uzvaras ielas krustojums, Lielās ielas - Akadēmijas ielas krustojums, Lielās ielas - Dambja ielas krustojums, Lielās ielas - Jāņa Čakstes bulvāra krustojums, Lielās ielas - Katoļu ielas krustojums, Lielās ielas - Mātera ielas krustojums, Lielās ielas - Pasta ielas krustojums, Lielās ielas - Pētera ielas krustojums, Lielās ielas - Pulkveža Oskara Kalpaka ielas krustojums, Lielās ielas gājēju pāreja, Lietuvas šosejas - Miera ielas krustojums, Lietuvas šosejas - Savienības ielas krustojums, Mātera ielas - Svētes ielas krustojums, Mātera ielas - Zirgu ielas krustojums, Meiju ceļa - Satiksmes ielas krustojums, Pasta ielas - Dobeles ielas - Blaumaņa ielas krustojums, Pasta ielas - Driksas ielas krustojums, Pasta ielas - Sudrabu Edžus ielas krustojums, Pasta ielas - Zirgu ielas - Sporta ielas krustojums, Pasta ielas gājēju pāreja pie Krišjāņa Barona ielas, Pasta ielas gājēju pāreja pirms rotācijas apļa, Raiņa ielas - Akadēmijas ielas krustojums, Raiņa ielas - Katoļu ielas krustojums, Raiņa ielas - Mātera ielas krustojums, Raiņa ielas - Pasta ielas krustojums, Raiņa ielas - Pulkveža Oskara Kalpaka ielas krustojums, Raiņa ielas - Sarmas ielas - Tērvetes ielas krustojums, Rīgas ielas - Brīvības bulvāra krustojums, Rīgas ielas - Institūta ielas krustojums, Rīgas ielas - Izstādes ielas krustojums, Rīgas ielas - Kalnciema ceļa krustojums, Rīgas ielas - Loka maģistrāles krustojums, Rīgas ielas - Pērnavas ielas - Pumpura ielas krustojums, Rīgas ielas - Strazdu ielas krustojums, Rīgas ielas - „Keramika” krustojums, Rūpniecības ielas - Dambja ielas krustojums, Rūpniecības ielas - Filozofu ielas krustojums, Rūpniecības ielas - Mātera ielas krustojums, Rūpniecības ielas - Pulkveža Oskara Kalpaka ielas krustojums, Rūpniecības ielas - Tērvetes ielas krustojums, Rūpniecības ielas gājēju pāreja, Zemgales prospekta – Jāņa ielas krustojuma gājēju pāreja, Zemgales prospekta – Sporta ielas krustojums (53 objekti)) , pasūtījuma nr: 106045
A30: 7 | B30: Luksoforu objektu ikdienas uzturēšana
A31: 7.1 | B31: Tehniskā apkope visiem (52) luksoforu objektiem | C31: mēnesis | D31: 1 | E31: 14000.00 | F31: =ROUND(D31*E31,2) -> 14000.00
D32: Kopā (bez PVN) EUR | F32: =SUM(F15:F31) -> 14408.30
D33: PVN 21% EUR | F33: =F32*0.21 -> 3025.74
D34: Kopā ar PVN EUR | F34: =F32+F33 -> 17434.04
A36: Datums:
